"Capital, Revenue or Balance Sheet",Directorate,SERCOP High Level Category,SERCOP Detailed Category,Transaction Number,Date,Service Area,Expenses Type,Amount,Supplier Name
Revenue,Adult Services,Adult Social Care,Learning Disability Suppt-adults (18-64),5105707171,11.05.2022,Learning Disability Residential 18-64,Charges from Independent Providers,"8,883.56",AITCH CARE HOMES (LONDON) LTD
Revenue,Adult Services,Adult Social Care,Learning Disability Suppt-adults (18-64),5105707186,11.05.2022,Learning Disability Residential 18-64,Charges from Independent Providers,"10,813.88",COMMUNITY HOMES IN INTENSIVE CARE
Revenue,Assistant Chief Executive,Central Services,Support Services,5105708375,27.05.2022,Organisational Intel,Consultants Fees,"9,750.00",HSO ENTERPISE SOLUTIONS LTD
Revenue,Assistant Chief Executive,Central Services,Support Services,5105708262,20.05.2022,Organisational Intel,Consultants Fees,"1,875.00",HSO ENTERPISE SOLUTIONS LTD
Revenue,Adult Services,Adult Social Care,Central Codes (to be reallocated),5105707306,11.05.2022,Gouldings Resource Centre,Consumable Cleaning Materials,276,A & M APPLIANCE CARE
Revenue,Adult Services,Adult Social Care,Central Codes (to be reallocated),5105708268,20.05.2022,Gouldings Resource Centre,Consumable Cleaning Materials,214,A & M APPLIANCE CARE
Revenue,Adult Services,Adult Social Care,Learning Disab Supp (to be reallocated),5105707338,11.05.2022,Saxonbury,Minor Works,122.9,A & M APPLIANCE CARE
Revenue,Adult Services,Adult Social Care,Learning Disab Supp (to be reallocated),5105706393,04.05.2022,Saxonbury,Minor Works,100.76,A & M APPLIANCE CARE
Revenue,Adult Services,Adult Social Care,Learning Disab Supp (to be reallocated),5105706449,04.05.2022,Saxonbury,Minor Works,151.82,A & M APPLIANCE CARE
Revenue,Adult Services,Adult Social Care,Central Codes (to be reallocated),5105707305,11.05.2022,Adelaide Resource Centre,Consumable Cleaning Materials,244,A & M APPLIANCE CARE
Revenue,Regeneration,Planning services,Economic Development,5105707942,18.05.2022,Camp Hill - Regeneration,Grounds Maintenance,"5,369.75",A GUSTAR T/A IVY TREE CARE
Revenue,Childrens Services,Children's & Education Services,Other Education and Community Budget,5105708672,25.05.2022,Home to School SEN Transport (LA),Taxis - Contract Hire,660,AMAR CABS OF NEWPORT
Revenue,Childrens Services,Children's & Education Services,Other Education and Community Budget,5105706671,13.05.2022,Home to School SEN Transport (LA),Taxis - Contract Hire,"1,342.00",AMAR CABS OF NEWPORT
Revenue,Childrens Services,Children's & Education Services,Other Education and Community Budget,5105708647,25.05.2022,Home to School SEN Transport (LA),Taxis - Contract Hire,550,AMAR EXCLUSIVES
Revenue,Childrens Services,Children's & Education Services,Special Schools & Alternative Provision,5105708750,25.05.2022,Island Learning Centre,Schools Catering Contract,84,AMAR EXCLUSIVES
Revenue,Neighbourhoods,Highways and Transport Services,Parking Services,5105709113,27.05.2022,Off-Street Parking Operations,Vehicle Maintenance Costs,536.07,ISLANDWIDE WINDSCREENS
Capital,Place,Capital,Capital,5105705763,13.05.2022,Parks and Gardens Capital,Payment to Contractors - Capital,"6,327.00",C & J GROUND MAINTENANCE
Revenue,Neighbourhoods,Environmental & Regulatory Services,"Cemetery, Cremation & Mortuary Services",5105708393,20.05.2022,Crematorium,Operational Equipment,185,C & J GROUND MAINTENANCE
Revenue,Childrens Services,Children's & Education Services,Other Education and Community Budget,5105707304,11.05.2022,Home to School SEN Transport (LA),Taxis - Contract Hire,360,MICK'S TAXI
Revenue,Childrens Services,Children's & Education Services,Other Education and Community Budget,5105707333,11.05.2022,Home to School SEN Transport (LA),Taxis - Contract Hire,605,CLARES CABS
Revenue,Resources,Central Services,Support Services,5105707944,26.05.2022,Litigation Costs,Legal Fees - Other Parties,750,COLLEGE CHAMBERS BARRISTERS
Revenue,Adult Services,Adult Social Care,Social Care Activities,5105706225,06.05.2022,DoLS/MCA,Professional Services,374.67,DR ALEXIS BOWERS LTD
Revenue,Adult Services,Adult Social Care,Social Care Activities,5105706477,04.05.2022,DoLS/MCA,Professional Services,223.08,DR ALEXIS BOWERS LTD
Revenue,Adult Services,Adult Social Care,Social Care Activities,5105709225,27.05.2022,Hospital Team,Professional Services,"1,300.00",FRAN OSMAN-NEWBURY LTD
Revenue,Childrens Services,Children's & Education Services,Other Education and Community Budget,5105707285,11.05.2022,Home to School SEN Transport (LA),Taxis - Contract Hire,616,HAYLES TAXIS
Revenue,Childrens Services,Children's & Education Services,Other Education and Community Budget,5105707282,11.05.2022,Home to School SEN Transport (LA),Taxis - Contract Hire,770,HAYLES TAXIS
Revenue,Childrens Services,Children's & Education Services,Management & Support Services,5105709369,27.05.2022,Direct Paymnts/Managed Educational Packages,Charges from Independent Providers,240,JOHN CATTLE'S SKATE CLUB
Revenue,Childrens Services,Children's & Education Services,Family Support Services,5105703759,04.05.2022,Short Breaks,Charges from Independent Providers,179.12,JOHN CATTLE'S SKATE CLUB
Revenue,Childrens Services,Children's & Education Services,Family Support Services,5105709362,27.05.2022,Short Breaks,Charges from Independent Providers,134.34,JOHN CATTLE'S SKATE CLUB
Capital,Resources,Capital,Capital,5105707253,11.05.2022,Strategic Projects,Payment to Contractors - Capital,100,LINSCH CONSULTANTS
Revenue,Neighbourhoods,Cultural and Related Services,Open Spaces,5105707250,11.05.2022,Rights of Way Operations,Payment to Private Contractors,175,LINSCH CONSULTANTS
Revenue,Adult Services,Adult Social Care,Social Care Activities,5105708590,25.05.2022,LSAB Conferences,Professional Services,50,MAKING CONNECTIONS (IW) LTD
Capital,Place,Capital,Capital,5105708293,20.05.2022,Rights Of Way Capital Programme,Payment to Contractors - Capital,"2,500.00",REDACTED PERSONAL DATA
Capital,Place,Capital,Capital,5105709455,30.05.2022,Rights Of Way Capital Programme,Payment to Contractors - Capital,"2,000.00",REDACTED PERSONAL DATA
Revenue,Resources,Children's & Education Services,Safeguarding Children/Young Peoples Svs,5105704615,04.05.2022,ASYE Programme,Training,60,MISSING SOLUTIONS LTD
Revenue,Neighbourhoods,Cultural and Related Services,Open Spaces,5105707066,11.05.2022,Tree Felling / Replacement,Payment to Private Contractors,250,NIGEL EARLEY SERVICES LTD
Revenue,Neighbourhoods,Cultural and Related Services,Open Spaces,5105707066,11.05.2022,Tree Felling / Replacement,Payment to Private Contractors,250,NIGEL EARLEY SERVICES LTD
Revenue,Neighbourhoods,Cultural and Related Services,Open Spaces,5105707066,11.05.2022,Tree Felling / Replacement,Payment to Private Contractors,"2,000.00",NIGEL EARLEY SERVICES LTD
Revenue,Neighbourhoods,Cultural and Related Services,Open Spaces,5105709149,27.05.2022,Tree Felling / Replacement,Payment to Private Contractors,375,NIGEL EARLEY SERVICES LTD
Revenue,Neighbourhoods,Cultural and Related Services,Open Spaces,5105709151,27.05.2022,Tree Felling / Replacement,Payment to Private Contractors,400,NIGEL EARLEY SERVICES LTD
Revenue,Neighbourhoods,Cultural and Related Services,Open Spaces,5105706669,06.05.2022,Tree Felling / Replacement,Payment to Private Contractors,550,NIGEL EARLEY SERVICES LTD
Revenue,Neighbourhoods,Environmental & Regulatory Services,"Cemetery, Cremation & Mortuary Services",5105707984,18.05.2022,Cemeteries Administration,Grounds Maintenance,300,NIGEL EARLEY SERVICES LTD
Revenue,Neighbourhoods,Environmental & Regulatory Services,"Cemetery, Cremation & Mortuary Services",5105707986,18.05.2022,Cemeteries Administration,Grounds Maintenance,250,NIGEL EARLEY SERVICES LTD
Revenue,Resources,Central Services,Support Services,5105707336,11.05.2022,Legal Services Section,Sundry Office Expenses,59.97,OD CONSULTANCY LTD
Revenue,Adult Services,Housing Services,Homelessness,5105708445,25.05.2022,Private Rented Sector Leasing Scheme,Accommodation Costs - Leaseholder Payments,695.89,REDACTED PERSONAL DATA
Revenue,Adult Services,Housing Services,Homelessness,5105708445,25.05.2022,Private Rented Sector Leasing Scheme,Accommodation Costs - Leaseholder Payments,695.89,REDACTED PERSONAL DATA
Revenue,Adult Services,Housing Services,Homelessness,5105708445,25.05.2022,Private Rented Sector Leasing Scheme,Accommodation Costs - Leaseholder Payments,695.89,REDACTED PERSONAL DATA
Revenue,Adult Services,Housing Services,Homelessness,5105708445,25.05.2022,Private Rented Sector Leasing Scheme,Accommodation Costs - Leaseholder Payments,695.89,REDACTED PERSONAL DATA
Revenue,Adult Services,Housing Services,Homelessness,5105708445,25.05.2022,Private Rented Sector Leasing Scheme,Accommodation Costs - Leaseholder Payments,695.89,REDACTED PERSONAL DATA
Revenue,Childrens Services,Children's & Education Services,Children Looked After,5105707472,11.05.2022,Adopt South Adoption Support Fund,Charges from Independent Providers,150,REDACTED PERSONAL DATA
Revenue,Childrens Services,Children's & Education Services,Children Looked After,5105709506,30.05.2022,Adopt South Adoption Support Fund,Charges from Independent Providers,-150,REDACTED PERSONAL DATA
Revenue,Regeneration,Central Services,Support Services,5105707241,18.05.2022,Properties  - Other Properties,Property Services - Planned Maintenance,210,R G PROPERTY SERVICES
Revenue,Childrens Services,Children's & Education Services,Other Education and Community Budget,5105708368,20.05.2022,Home to School SEN Transport (LA),Taxis - Contract Hire,-462,ROUNSEVELLS TAXIS
Revenue,Childrens Services,Children's & Education Services,Other Education and Community Budget,5105708369,20.05.2022,Home to School SEN Transport (LA),Taxis - Contract Hire,462,ROUNSEVELLS TAXIS
Revenue,Childrens Services,Children's & Education Services,Other Education and Community Budget,5105707795,20.05.2022,Home to School SEN Transport (LA),Taxis - Contract Hire,825,ROUNSEVELLS TAXIS
Revenue,Childrens Services,Children's & Education Services,Other Education and Community Budget,5105707791,20.05.2022,Home to School SEN Transport (LA),Taxis - Contract Hire,363,ROUNSEVELLS TAXIS
Revenue,Childrens Services,Children's & Education Services,Other Education and Community Budget,5105707793,25.05.2022,Home to School SEN Transport (LA),Taxis - Contract Hire,795,ROUNSEVELLS TAXIS
Revenue,Childrens Services,Children's & Education Services,Special Schools & Alternative Provision,5105707794,25.05.2022,Island Learning Centre,Transport of Clients,87.5,ROUNSEVELLS TAXIS
Revenue,Childrens Services,Children's & Education Services,Special Schools & Alternative Provision,5105705115,11.05.2022,Island Learning Centre,Transport of Clients,175,ROUNSEVELLS TAXIS
Revenue,Childrens Services,Children's & Education Services,Children Looked After,5105708406,26.05.2022,Support for Looked After Children,Support Children,130,SCALLYWAGS FUN CLUB
Revenue,Childrens Services,Children's & Education Services,Children Looked After,5105708297,26.05.2022,Support for Looked After Children,Support Children,51,SCALLYWAGS FUN CLUB
Revenue,Childrens Services,Children's & Education Services,Children Looked After,5105708300,26.05.2022,Support for Looked After Children,Support Children,102,SCALLYWAGS FUN CLUB
Revenue,Childrens Services,Children's & Education Services,Family Support Services,5105708296,26.05.2022,S17 Disabled Children,Support Children,500,SCALLYWAGS FUN CLUB
Revenue,Childrens Services,Children's & Education Services,Family Support Services,5105708294,26.05.2022,S17 Disabled Children,Support Children,225,SCALLYWAGS FUN CLUB
Revenue,Childrens Services,Children's & Education Services,Family Support Services,5105709321,27.05.2022,Holiday Activities & Food Programme,Payments to Voluntary and Other Associations,"8,111.04",SCALLYWAGS FUN CLUB
Revenue,Childrens Services,Children's & Education Services,Family Support Services,5105709282,27.05.2022,Holiday Activities & Food Programme,Payments to Voluntary and Other Associations,"2,027.60",SCALLYWAGS FUN CLUB
Revenue,Childrens Services,Children's & Education Services,Family Support Services,5105708025,18.05.2022,Short Breaks,Charges from Independent Providers,624,SCALLYWAGS FUN CLUB
Revenue,Adult Services,Adult Social Care,Social Care Activities,5105704751,20.05.2022,DoLS/MCA,Professional Services,"1,105.92",REDACTED PERSONAL DATA
Revenue,Neighbourhoods,Highways and Transport Services,"Airports, Harbours & Toll Facilities",5105709576,30.05.2022,Ryde Harbour,Payment to Private Contractors,350,SOUTH COAST FLAG POLES
Revenue,Regeneration,Planning services,Economic Development,5105708803,25.05.2022,Director of Regeneration,Consultants Fees,"3,600.00",SOUTH ISLAND ESTATES LTD
Revenue,Adult Services,Adult Social Care,Social Support - Social Isolation/Other,5105705896,06.05.2022,Social Isolation/Other Other ST Support,Professional Services,120,THE ROBOS SPECIALIST CLEANING
Revenue,Adult Services,Adult Social Care,Social Support - Social Isolation/Other,5105706467,06.05.2022,Social Isolation/Other Other ST Support,Professional Services,80,THE ROBOS SPECIALIST CLEANING
Revenue,Adult Services,Adult Social Care,Social Support - Social Isolation/Other,5105707308,11.05.2022,Social Isolation/Other Other ST Support,Professional Services,350,THE ROBOS SPECIALIST CLEANING
Revenue,Adult Services,Adult Social Care,Social Support - Social Isolation/Other,5105707261,11.05.2022,Social Isolation/Other Other ST Support,Professional Services,280,THE ROBOS SPECIALIST CLEANING
Revenue,Childrens Services,Children's & Education Services,Family Support Services,5105708743,25.05.2022,Short Breaks,Charges from Independent Providers,386.25,THE VECTIS RADIO 4PS TRAINING
Revenue,Childrens Services,Children's & Education Services,Other Education and Community Budget,5105707274,11.05.2022,Home to School SEN Transport (LA),Taxis - Contract Hire,"1,320.00",THOMPSON TAXI
Revenue,Childrens Services,Children's & Education Services,Other Education and Community Budget,5105707275,11.05.2022,Home to School Mainstream Transport,Taxis - Contract Hire,"1,320.00",THOMPSON TAXI
Revenue,Adult Services,Adult Social Care,Social Support - Social Isolation/Other,5105706524,18.05.2022,Social Isolation/Other Other ST Support,Professional Services,637,TOP MOPS LIMITED
Revenue,Childrens Services,Children's & Education Services,Other Education and Community Budget,5105708054,18.05.2022,Home to School SEN Transport (LA),Taxis - Contract Hire,600,TOP MOPS LIMITED
Revenue,Childrens Services,Children's & Education Services,Other Education and Community Budget,5105708312,20.05.2022,Home to School SEN Transport (LA),Taxis - Contract Hire,880,TOP MOPS LIMITED
Revenue,Childrens Services,Children's & Education Services,Other Education and Community Budget,5105706514,04.05.2022,Home to College Post 16 Transport,Taxis - Contract Hire,-900,TOP MOPS LIMITED
Revenue,Childrens Services,Children's & Education Services,Other Education and Community Budget,5105705946,04.05.2022,Home to College Post 16 Transport,Taxis - Contract Hire,900,TOP MOPS LIMITED
Revenue,Childrens Services,Children's & Education Services,Other Education and Community Budget,5105707061,11.05.2022,Home to College Post 16 Transport,Taxis - Contract Hire,875,TOP MOPS LIMITED
Revenue,Childrens Services,Children's & Education Services,Other Education and Community Budget,5105708052,18.05.2022,Home to College Post 16 Transport,Taxis - Contract Hire,450,TOP MOPS LIMITED
Revenue,Childrens Services,Children's & Education Services,Special Schools & Alternative Provision,5105705908,06.05.2022,Island Learning Centre,Cleaning Contracts,837,TOP MOPS LIMITED
Revenue,Childrens Services,Children's & Education Services,Special Schools & Alternative Provision,5105705910,06.05.2022,Island Learning Centre,Cleaning Contracts,"1,634.80",TOP MOPS LIMITED
Revenue,Childrens Services,Children's & Education Services,Special Schools & Alternative Provision,5105708694,27.05.2022,Island Learning Centre,Cleaning Contracts,"1,349.46",TOP MOPS LIMITED
Revenue,Childrens Services,Children's & Education Services,Special Schools & Alternative Provision,5105708698,27.05.2022,Island Learning Centre,Cleaning Contracts,446.1,TOP MOPS LIMITED
Revenue,Childrens Services,Children's & Education Services,Special Schools & Alternative Provision,5105708384,27.05.2022,Island Learning Centre,Cleaning Contracts,72.49,TOP MOPS LIMITED
Revenue,Childrens Services,Children's & Education Services,Other Education and Community Budget,5105705945,04.05.2022,Home to School Mainstream Transport,Taxis - Contract Hire,"2,461.00",TOP MOPS LIMITED
Revenue,Childrens Services,Children's & Education Services,Other Education and Community Budget,5105707230,11.05.2022,Home to School Mainstream Transport,Taxis - Contract Hire,"2,404.00",TOP MOPS LIMITED
Revenue,Childrens Services,Children's & Education Services,Other Education and Community Budget,5105706517,04.05.2022,Home to School Mainstream Transport,Taxis - Contract Hire,"-2,461.00",TOP MOPS LIMITED
Revenue,Neighbourhoods,Highways and Transport Services,Management and Support Services,5105708409,25.05.2022,Ryde Transport Hub,Cleaning Contracts,"1,240.00",TOP MOPS LIMITED
Revenue,Childrens Services,Children's & Education Services,Other Education and Community Budget,5105708055,18.05.2022,Home to School Mainstream Transport,Taxis - Contract Hire,"1,320.00",TOP MOPS LIMITED
Revenue,Childrens Services,Children's & Education Services,Other Education and Community Budget,5105708051,18.05.2022,Home to School Mainstream Transport,Taxis - Contract Hire,"1,215.00",TOP MOPS LIMITED
Revenue,Childrens Services,Children's & Education Services,Other Education and Community Budget,5105708053,18.05.2022,Home to School Mainstream Transport,Taxis - Contract Hire,"1,144.00",TOP MOPS LIMITED
Revenue,Childrens Services,Children's & Education Services,Other Education and Community Budget,5105709353,27.05.2022,Barton Primary Sshool Disposal,Security of Buildings,12,VECTIS GROUP SECURITY LTD
Revenue,Childrens Services,Children's & Education Services,Other Education and Community Budget,5105706450,04.05.2022,Barton Primary Sshool Disposal,Security of Buildings,12,VECTIS GROUP SECURITY LTD
Revenue,Regeneration,Planning services,Economic Development,5105708374,20.05.2022,Victoria Quays,Security of Buildings,147,VECTIS GROUP SECURITY LTD
Revenue,Regeneration,Central Services,Support Services,5105708496,26.05.2022,Elmdon (The Laurels),Security of Buildings,75,VECTIS GROUP SECURITY LTD
Revenue,Childrens Services,Children's & Education Services,Other Education and Community Budget,5105706455,04.05.2022,Weston Academy Closure,Security of Buildings,172,VECTIS GROUP SECURITY LTD
Revenue,Childrens Services,Children's & Education Services,Other Education and Community Budget,5105709356,27.05.2022,Weston Academy Closure,Security of Buildings,192,VECTIS GROUP SECURITY LTD
Revenue,Childrens Services,Children's & Education Services,Other Education and Community Budget,5105708280,20.05.2022,Ex Studio School Grange Rd East Cowes,Security of Buildings,132,VECTIS GROUP SECURITY LTD
Revenue,Regeneration,Central Services,Support Services,5105708371,27.05.2022,"Westridge, Ryde",Security of Buildings,12,VECTIS GROUP SECURITY LTD
Revenue,Regeneration,Central Services,Support Services,5105705851,06.05.2022,"Westridge, Ryde",Security of Buildings,12,VECTIS GROUP SECURITY LTD
Revenue,Childrens Services,Children's & Education Services,Special Schools & Alternative Provision,5105709332,27.05.2022,Island Learning Centre,Security of Buildings,12,VECTIS GROUP SECURITY LTD
Revenue,Childrens Services,Children's & Education Services,Special Schools & Alternative Provision,5105705018,26.05.2022,Island Learning Centre,Security of Buildings,12,VECTIS GROUP SECURITY LTD
Revenue,Childrens Services,Children's & Education Services,Special Schools & Alternative Provision,5105707704,26.05.2022,Island Learning Centre,Security of Buildings,12,VECTIS GROUP SECURITY LTD
Revenue,Childrens Services,Children's & Education Services,Special Schools & Alternative Provision,5105707704,26.05.2022,Island Learning Centre,Security of Buildings,15,VECTIS GROUP SECURITY LTD
Revenue,Neighbourhoods,Highways and Transport Services,Management and Support Services,5105707481,20.05.2022,Ryde Transport Hub,Security of Buildings,260,VECTIS GROUP SECURITY LTD
Revenue,Childrens Services,Children's & Education Services,Support Services,5105707350,13.05.2022,Grafton Street Sandown (ex Sandown Yth),Security of Buildings,147,VECTIS GROUP SECURITY LTD
Revenue,Regeneration,Central Services,Support Services,5105708373,26.05.2022,Public Sector Partnership Costs,Security of Buildings,60,VECTIS GROUP SECURITY LTD
Revenue,Childrens Services,Children's & Education Services,Other Education and Community Budget,5105709354,27.05.2022,Broadlea PS Berry Hill site (was 55909),Security of Buildings,7.5,VECTIS GROUP SECURITY LTD
Revenue,Childrens Services,Children's & Education Services,Other Education and Community Budget,5105709354,27.05.2022,Broadlea PS Berry Hill site (was 55909),Security of Buildings,22.5,VECTIS GROUP SECURITY LTD
Revenue,Childrens Services,Children's & Education Services,Other Education and Community Budget,5105706594,04.05.2022,Broadlea PS Berry Hill site (was 55909),Security of Buildings,45,VECTIS GROUP SECURITY LTD
Revenue,Childrens Services,Children's & Education Services,Other Education and Community Budget,5105706355,04.05.2022,Non-Delegated Building Maintenance,Security of Buildings,15,VECTIS GROUP SECURITY LTD
Revenue,Regeneration,Planning services,Planning Policy,5105707840,18.05.2022,Island Planning Strategy,Agency staff,"3,654.00",VIVID RESOURCING
Revenue,Childrens Services,Children's & Education Services,Other Education and Community Budget,5105707315,13.05.2022,Home to School SEN Transport (LA),Taxis - Contract Hire,"1,370.00",W W CARS OF SEAVIEW
Revenue,Childrens Services,Children's & Education Services,Other Education and Community Budget,5105707316,11.05.2022,Home to School SEN Transport (LA),Taxis - Contract Hire,660,W W CARS OF SEAVIEW
Revenue,Childrens Services,Children's & Education Services,Other Education and Community Budget,5105707317,25.05.2022,Home to School SEN Transport (LA),Taxis - Contract Hire,770,W W CARS OF SEAVIEW
Revenue,Childrens Services,Children's & Education Services,Other Education and Community Budget,5105707989,18.05.2022,Home to College Post 16 Transport,Taxis - Contract Hire,356.4,HAVEN TAXIS & PRIVATE HIRE
Revenue,Childrens Services,Children's & Education Services,Other Education and Community Budget,5105707990,18.05.2022,Home to School Mainstream Transport,Taxis - Contract Hire,878.9,HAVEN TAXIS & PRIVATE HIRE
Revenue,Neighbourhoods,Cultural and Related Services,Library Service,5105709542,30.05.2022,Newport Library,Property Services - Day to day Maintenance,97.5,WIGHT HEATING LTD
Revenue,Regeneration,Central Services,Support Services,5105709541,30.05.2022,Parklands,Property Services - Day to day Maintenance,120.98,WIGHT HEATING LTD
Revenue,Neighbourhoods,Cultural and Related Services,Library Service,5105706487,04.05.2022,Ryde Library,Property Services - Planned Maintenance,75,WIGHT HEATING LTD
Revenue,Adult Services,Adult Social Care,Social Support - Support for Carer,5105706491,04.05.2022,Westminster House,Property Services - Planned Maintenance,115,WIGHT HEATING LTD
Revenue,Neighbourhoods,Cultural and Related Services,Recreation and Sport,5105708546,25.05.2022,Medina Leisure Centre,Property Services - Day to day Maintenance,342.21,WIGHT HEATING LTD
Revenue,Adult Services,Adult Social Care,Learning Disab Supp (to be reallocated),5105706492,06.05.2022,Plean Dene,Property Services - Planned Maintenance,778.2,WIGHT HEATING LTD
Revenue,Neighbourhoods,Cultural and Related Services,Library Service,5105707867,18.05.2022,Ventnor Library,Property Services - Day to day Maintenance,363.49,WIGHT HEATING LTD
Revenue,Regeneration,Central Services,Support Services,5105706488,04.05.2022,"Guildhall,Newport",Property Services - Planned Maintenance,80,WIGHT HEATING LTD
Revenue,Regeneration,Central Services,Support Services,5105707280,11.05.2022,Properties  - Other Properties,Property Services - Planned Maintenance,118.35,WIGHT HEATING LTD
Capital,Resources,Capital,Capital,5105708547,25.05.2022,Management of Asbestos,Payment to Contractors - Capital,"1,418.82",WIGHT HEATING LTD
Capital,Resources,Capital,Capital,5105707026,11.05.2022,Management of Asbestos,Payment to Contractors - Capital,"25,000.00",WIGHT HEATING LTD
Revenue,Neighbourhoods,Cultural and Related Services,Library Service,5105707864,18.05.2022,Sandown Library,Property Services - Planned Maintenance,386.51,WIGHT HEATING LTD
Revenue,Neighbourhoods,Cultural and Related Services,Recreation and Sport,5105708547,25.05.2022,Westridge Squash Courts,Payment to Private Contractors,"1,418.82",WIGHT HEATING LTD
Revenue,Childrens Services,Children's & Education Services,Sure Start Children's Centres,5105706493,04.05.2022,Family Centres Maintenance,Minor Works,173.35,WIGHT HEATING LTD
Revenue,Adult Services,Adult Social Care,Central Codes (to be reallocated),5105707869,18.05.2022,Adelaide Resource Centre,Property Services - Day to day Maintenance,265,WIGHT HEATING LTD
Revenue,Neighbourhoods,Cultural and Related Services,Open Spaces,5105706490,04.05.2022,Open space lettings,Property Services - Planned Maintenance,110,WIGHT HEATING LTD
Revenue,Neighbourhoods,Cultural and Related Services,Recreation and Sport,5105708548,25.05.2022,The Heights,Property Services - Day to day Maintenance,170,WIGHT HEATING LTD
Revenue,Adult Services,Housing Services,Homelessness,5105708457,25.05.2022,Private Rented Sector Leasing Scheme,Accommodation Costs - Leaseholder Payments,866.67,2K PROPERTY
Revenue,Childrens Services,Children's & Education Services,Children Looked After,5105706835,06.05.2022,Children placed with Family&Friends,Boarding Out Allowances,252.13,REDACTED PERSONAL DATA
Revenue,Childrens Services,Children's & Education Services,Children Looked After,5105706835,06.05.2022,Children placed with Family&Friends,Boarding Out Allowances,285.93,REDACTED PERSONAL DATA
Revenue,Childrens Services,Children's & Education Services,Children Looked After,5105706835,06.05.2022,Children placed with Family&Friends,Boarding Out Allowances,285.93,REDACTED PERSONAL DATA
Revenue,Childrens Services,Children's & Education Services,Children Looked After,5105709032,27.05.2022,Children placed with Family&Friends,Boarding Out Allowances,252.13,REDACTED PERSONAL DATA
Revenue,Childrens Services,Children's & Education Services,Children Looked After,5105709032,27.05.2022,Children placed with Family&Friends,Boarding Out Allowances,285.93,REDACTED PERSONAL DATA
Revenue,Childrens Services,Children's & Education Services,Children Looked After,5105709032,27.05.2022,Children placed with Family&Friends,Boarding Out Allowances,285.93,REDACTED PERSONAL DATA
Revenue,Childrens Services,Children's & Education Services,Children Looked After,5105707639,13.05.2022,Children placed with Family&Friends,Boarding Out Allowances,252.13,REDACTED PERSONAL DATA
Revenue,Childrens Services,Children's & Education Services,Children Looked After,5105707639,13.05.2022,Children placed with Family&Friends,Boarding Out Allowances,285.93,REDACTED PERSONAL DATA
Revenue,Childrens Services,Children's & Education Services,Children Looked After,5105707639,13.05.2022,Children placed with Family&Friends,Boarding Out Allowances,285.93,REDACTED PERSONAL DATA
Revenue,Childrens Services,Children's & Education Services,Children Looked After,5105708237,20.05.2022,Children placed with Family&Friends,Boarding Out Allowances,252.13,REDACTED PERSONAL DATA
Revenue,Childrens Services,Children's & Education Services,Children Looked After,5105708237,20.05.2022,Children placed with Family&Friends,Boarding Out Allowances,285.93,REDACTED PERSONAL DATA
Revenue,Childrens Services,Children's & Education Services,Children Looked After,5105708237,20.05.2022,Children placed with Family&Friends,Boarding Out Allowances,285.93,REDACTED PERSONAL DATA
Revenue,Childrens Services,Children's & Education Services,Children Looked After,5105706696,06.05.2022,In-house Fostering,Boarding Out Allowances,318.67,REDACTED PERSONAL DATA
Revenue,Childrens Services,Children's & Education Services,Children Looked After,5105706696,06.05.2022,In-house Fostering,Boarding Out Allowances,318.67,REDACTED PERSONAL DATA
Revenue,Childrens Services,Children's & Education Services,Children Looked After,5105707501,13.05.2022,In-house Fostering,Boarding Out Allowances,318.67,REDACTED PERSONAL DATA
Revenue,Childrens Services,Children's & Education Services,Children Looked After,5105707501,13.05.2022,In-house Fostering,Boarding Out Allowances,318.67,REDACTED PERSONAL DATA
Revenue,Childrens Services,Children's & Education Services,Children Looked After,5105708894,27.05.2022,In-house Fostering,Boarding Out Allowances,318.67,REDACTED PERSONAL DATA
Revenue,Childrens Services,Children's & Education Services,Children Looked After,5105708894,27.05.2022,In-house Fostering,Boarding Out Allowances,318.67,REDACTED PERSONAL DATA
Revenue,Childrens Services,Children's & Education Services,Children Looked After,5105708098,20.05.2022,In-house Fostering,Boarding Out Allowances,318.67,REDACTED PERSONAL DATA
Revenue,Childrens Services,Children's & Education Services,Children Looked After,5105708098,20.05.2022,In-house Fostering,Boarding Out Allowances,318.67,REDACTED PERSONAL DATA
Revenue,Childrens Services,Children's & Education Services,Children Looked After,5105708243,20.05.2022,Special Guardianship Order Costs,Support Children,100,REDACTED PERSONAL DATA
Revenue,Childrens Services,Children's & Education Services,Children Looked After,5105707645,13.05.2022,Special Guardianship Order Costs,Support Children,100,REDACTED PERSONAL DATA
Revenue,Childrens Services,Children's & Education Services,Children Looked After,5105706841,06.05.2022,Special Guardianship Order Costs,Support Children,100,REDACTED PERSONAL DATA
Revenue,Childrens Services,Children's & Education Services,Children Looked After,5105709038,27.05.2022,Special Guardianship Order Costs,Support Children,100,REDACTED PERSONAL DATA
Revenue,Adult Services,Housing Services,Homelessness,5105708454,25.05.2022,Private Rented Sector Leasing Scheme,Accommodation Costs - Leaseholder Payments,510.25,REDACTED PERSONAL DATA
Revenue,Adult Services,Housing Services,Homelessness,5105708454,25.05.2022,Private Rented Sector Leasing Scheme,Accommodation Costs - Leaseholder Payments,510.25,REDACTED PERSONAL DATA
Revenue,Adult Services,Housing Services,Homelessness,5105708454,25.05.2022,Private Rented Sector Leasing Scheme,Accommodation Costs - Leaseholder Payments,510.25,REDACTED PERSONAL DATA
Revenue,Adult Services,Housing Services,Homelessness,5105708454,25.05.2022,Private Rented Sector Leasing Scheme,Accommodation Costs - Leaseholder Payments,510.25,REDACTED PERSONAL DATA
Revenue,Adult Services,Housing Services,Homelessness,5105708454,25.05.2022,Private Rented Sector Leasing Scheme,Accommodation Costs - Leaseholder Payments,510.25,REDACTED PERSONAL DATA
Revenue,Adult Services,Housing Services,Homelessness,5105708454,25.05.2022,Private Rented Sector Leasing Scheme,Accommodation Costs - Leaseholder Payments,510.25,REDACTED PERSONAL DATA
Revenue,Adult Services,Housing Services,Homelessness,5105708454,25.05.2022,Private Rented Sector Leasing Scheme,Accommodation Costs - Leaseholder Payments,510.25,REDACTED PERSONAL DATA
Revenue,Childrens Services,Children's & Education Services,Children Looked After,5105706446,04.05.2022,Leaving Care Costs,Support Children,19.99,REDACTED PERSONAL DATA
Revenue,Childrens Services,Children's & Education Services,Children Looked After,5105706684,06.05.2022,Adoption Costs,Support Children,225.83,REDACTED PERSONAL DATA
Revenue,Childrens Services,Children's & Education Services,Children Looked After,5105708086,20.05.2022,Adoption Costs,Support Children,225.83,REDACTED PERSONAL DATA
Revenue,Childrens Services,Children's & Education Services,Children Looked After,5105707489,13.05.2022,Adoption Costs,Support Children,225.83,REDACTED PERSONAL DATA
Revenue,Childrens Services,Children's & Education Services,Children Looked After,5105708882,27.05.2022,Adoption Costs,Support Children,225.83,REDACTED PERSONAL DATA
Revenue,Childrens Services,Children's & Education Services,Children Looked After,5105706445,04.05.2022,Unaccompanied Asylum Seeker Children,Support Children,19.99,REDACTED PERSONAL DATA
Revenue,Regeneration,Highways and Transport Services,Transport Planning Policy and Strategy,5105706636,13.05.2022,Restoring your Railway,Payment to Private Contractors,"3,600.00",A TO THERE SOLUTIONS LTD
Revenue,Neighbourhoods,Highways and Transport Services,"Airports, Harbours & Toll Facilities",5105707214,13.05.2022,Ferry Operation,Payment to Private Contractors,278.2,A&H TIMBER PRODUCTS LTD
Revenue,Neighbourhoods,Cultural and Related Services,Open Spaces,5105706573,04.05.2022,Fort Victoria,Operational Equipment,412.2,A&H TIMBER PRODUCTS LTD
Revenue,Childrens Services,Children's & Education Services,Services for Young People,5105708666,25.05.2022,Resilience Around the Family Team,General Materials,465,ALERE TOXICOLOGY PLC
Revenue,Adult Services,Adult Social Care,Central Codes (to be reallocated),5105707921,18.05.2022,Community Reablement,Computer Software Licencing,"3,088.00",ACCESS UK LTD
Revenue,Neighbourhoods,Highways and Transport Services,"Airports, Harbours & Toll Facilities",5105708278,20.05.2022,Ferry Operation,Payment to Private Contractors,"9,550.35",ACCOLADE ELECTRICAL
Revenue,Adult Services,Adult Social Care,Learning Disability Suppt-adults (18-64),5105707152,11.05.2022,Learning Disability Residential 18-64,Charges from Independent Providers,"2,393.16",REGARD PARTNERSHIP
Revenue,Adult Services,Adult Social Care,Learning Disability Suppt-adults (18-64),5105707152,11.05.2022,Learning Disability Residential 18-64,Charges from Independent Providers,404.04,REGARD PARTNERSHIP
Revenue,Adult Services,Adult Social Care,Learning Disability Suppt-adults (18-64),5105707152,11.05.2022,Learning Disability Residential 18-64,Charges from Independent Providers,"3,306.52",REGARD PARTNERSHIP
Revenue,Adult Services,Adult Social Care,Learning Disability Suppt-adults (18-64),5105707152,11.05.2022,Learning Disability Residential 18-64,Charges from Independent Providers,329,REGARD PARTNERSHIP
Revenue,Adult Services,Adult Social Care,Learning Disability Suppt-adults (18-64),5105707152,11.05.2022,Learning Disability Residential 18-64,Charges from Independent Providers,"2,393.16",REGARD PARTNERSHIP
Revenue,Adult Services,Adult Social Care,Learning Disability Suppt-adults (18-64),5105707152,11.05.2022,Learning Disability Residential 18-64,Charges from Independent Providers,"2,282.00",REGARD PARTNERSHIP
Revenue,Adult Services,Adult Social Care,Learning Disability Suppt-adults (18-64),5105707152,11.05.2022,Learning Disability Residential 18-64,Charges from Independent Providers,404.04,REGARD PARTNERSHIP
Revenue,Adult Services,Adult Social Care,Learning Disability Suppt-adults (18-64),5105707152,11.05.2022,Learning Disability Residential 18-64,Charges from Independent Providers,"3,467.52",REGARD PARTNERSHIP
Revenue,Adult Services,Adult Social Care,Learning Disability Suppt-adults (18-64),5105707152,11.05.2022,Learning Disability Residential 18-64,Charges from Independent Providers,480.2,REGARD PARTNERSHIP
Revenue,Adult Services,Adult Social Care,Learning Disability Suppt-adults (18-64),5105707152,11.05.2022,Learning Disability Residential 18-64,Charges from Independent Providers,"3,467.52",REGARD PARTNERSHIP
Revenue,Adult Services,Adult Social Care,Learning Disability Suppt-adults (18-64),5105707152,11.05.2022,Learning Disability Residential 18-64,Charges from Independent Providers,"2,282.00",REGARD PARTNERSHIP
Revenue,Adult Services,Adult Social Care,Learning Disability Suppt-adults (18-64),5105707152,11.05.2022,Learning Disability Residential 18-64,Charges from Independent Providers,240.24,REGARD PARTNERSHIP
Revenue,Adult Services,Adult Social Care,Learning Disability Suppt-adults (18-64),5105707152,11.05.2022,Learning Disability Residential 18-64,Charges from Independent Providers,"2,282.00",REGARD PARTNERSHIP
Revenue,Adult Services,Adult Social Care,Learning Disability Suppt-adults (18-64),5105707152,11.05.2022,Learning Disability Residential 18-64,Charges from Independent Providers,480.2,REGARD PARTNERSHIP
Revenue,Adult Services,Adult Social Care,Learning Disability Suppt-adults (18-64),5105707152,11.05.2022,Learning Disability Residential 18-64,Charges from Independent Providers,"3,467.52",REGARD PARTNERSHIP
Revenue,Adult Services,Adult Social Care,Learning Disability Suppt-adults (18-64),5105707152,11.05.2022,Learning Disability Residential 18-64,Charges from Independent Providers,"2,282.00",REGARD PARTNERSHIP
Revenue,Adult Services,Adult Social Care,Learning Disability Suppt-adults (18-64),5105707152,11.05.2022,Learning Disability Residential 18-64,Charges from Independent Providers,462.84,REGARD PARTNERSHIP
Revenue,Adult Services,Adult Social Care,Learning Disability Suppt-adults (18-64),5105707152,11.05.2022,Learning Disability Residential 18-64,Charges from Independent Providers,"2,393.16",REGARD PARTNERSHIP
Revenue,Adult Services,Adult Social Care,Learning Disability Suppt-adults (18-64),5105707152,11.05.2022,Learning Disability Residential 18-64,Charges from Independent Providers,462.84,REGARD PARTNERSHIP
Revenue,Childrens Services,Children's & Education Services,Children Looked After,5105707763,18.05.2022,Purchased Residential,Charges from Independent Providers,"15,685.48",ACORN CARE AND EDUCATION LTD
Revenue,Childrens Services,Children's & Education Services,Children Looked After,5105709136,27.05.2022,Purchased Residential,Charges from Independent Providers,"16,252.86",ACORN CARE AND EDUCATION LTD
Revenue,Childrens Services,Children's & Education Services,Children Looked After,5105709137,27.05.2022,Purchased Residential,Charges from Independent Providers,"4,736.31",ACORN CARE AND EDUCATION LTD
Revenue,Childrens Services,Children's & Education Services,Children Looked After,5105709138,27.05.2022,Purchased Residential,Charges from Independent Providers,"16,208.33",ACORN CARE AND EDUCATION LTD
Revenue,Childrens Services,Children's & Education Services,Children Looked After,5105706647,06.05.2022,Purchased Residential,Charges from Independent Providers,"15,728.57",ACORN CARE AND EDUCATION LTD
Revenue,Childrens Services,Children's & Education Services,Children Looked After,5105706648,18.05.2022,Purchased Residential,Charges from Independent Providers,"4,736.31",ACORN CARE AND EDUCATION LTD
Revenue,Neighbourhoods,Environmental & Regulatory Services,Regulatory Services,5105708397,25.05.2022,Trading Standards,Legal Fees - Other Parties,125,ACTSO LTD
Capital,Place,Capital,Capital,5105707467,11.05.2022,Cowes Floating Brdge,Payment to Contractors - Capital,"40,398.32",ADAMS PRECISION HYDRAULICS LIMITED
Revenue,Neighbourhoods,Highways and Transport Services,"Airports, Harbours & Toll Facilities",5105706629,04.05.2022,Ferry Maintenance,Payment to Private Contractors,"8,373.00",ADAMS PRECISION HYDRAULICS LIMITED
Revenue,Childrens Services,Children's & Education Services,Management & Support Services,5105708478,25.05.2022,Education Out of School,Agency staff,555,A-DAY CONSULTANTS LTD
Revenue,Childrens Services,Children's & Education Services,Management & Support Services,5105708479,25.05.2022,Education Out of School,Agency staff,555,A-DAY CONSULTANTS LTD
Revenue,Childrens Services,Children's & Education Services,Management & Support Services,5105709204,27.05.2022,Direct Paymnts/Managed Educational Packages,Charges from Independent Providers,342,A-DAY CONSULTANTS LTD
Revenue,Childrens Services,Children's & Education Services,Management & Support Services,5105709205,27.05.2022,Direct Paymnts/Managed Educational Packages,Charges from Independent Providers,456,A-DAY CONSULTANTS LTD
Revenue,Childrens Services,Children's & Education Services,Management & Support Services,5105709206,27.05.2022,Special Discretionary Grants,Charges from Independent Providers,715,A-DAY CONSULTANTS LTD
Revenue,Childrens Services,Children's & Education Services,Management & Support Services,5105709523,30.05.2022,Special Discretionary Grants,Charges from Independent Providers,715,A-DAY CONSULTANTS LTD
Revenue,Childrens Services,Children's & Education Services,Management & Support Services,5105708501,25.05.2022,Direct Paymnts/Managed Educational Packages,Charges from Independent Providers,342,A-DAY CONSULTANTS LTD
Revenue,Childrens Services,Children's & Education Services,Management & Support Services,5105708657,25.05.2022,Direct Paymnts/Managed Educational Packages,Charges from Independent Providers,342,A-DAY CONSULTANTS LTD
Revenue,Childrens Services,Children's & Education Services,Management & Support Services,5105708659,25.05.2022,Direct Paymnts/Managed Educational Packages,Charges from Independent Providers,228,A-DAY CONSULTANTS LTD
Revenue,Childrens Services,Children's & Education Services,Management & Support Services,5105708652,25.05.2022,Direct Paymnts/Managed Educational Packages,Charges from Independent Providers,456,A-DAY CONSULTANTS LTD
Revenue,Childrens Services,Children's & Education Services,Management & Support Services,5105708652,25.05.2022,Direct Paymnts/Managed Educational Packages,Charges from Independent Providers,570,A-DAY CONSULTANTS LTD
Revenue,Childrens Services,Children's & Education Services,Management & Support Services,5105708653,25.05.2022,Direct Paymnts/Managed Educational Packages,Charges from Independent Providers,342,A-DAY CONSULTANTS LTD
Revenue,Childrens Services,Children's & Education Services,Management & Support Services,5105708654,25.05.2022,Direct Paymnts/Managed Educational Packages,Charges from Independent Providers,275,A-DAY CONSULTANTS LTD
Revenue,Childrens Services,Children's & Education Services,Management & Support Services,5105708655,25.05.2022,Direct Paymnts/Managed Educational Packages,Charges from Independent Providers,342,A-DAY CONSULTANTS LTD
Revenue,Childrens Services,Children's & Education Services,Management & Support Services,5105708655,25.05.2022,Direct Paymnts/Managed Educational Packages,Charges from Independent Providers,456,A-DAY CONSULTANTS LTD
Revenue,Childrens Services,Children's & Education Services,Management & Support Services,5105707856,18.05.2022,Direct Paymnts/Managed Educational Packages,Charges from Independent Providers,456,A-DAY CONSULTANTS LTD
Revenue,Childrens Services,Children's & Education Services,Management & Support Services,5105707859,18.05.2022,Direct Paymnts/Managed Educational Packages,Charges from Independent Providers,228,A-DAY CONSULTANTS LTD
Revenue,Childrens Services,Children's & Education Services,Management & Support Services,5105707860,18.05.2022,Direct Paymnts/Managed Educational Packages,Charges from Independent Providers,330,A-DAY CONSULTANTS LTD
Revenue,Childrens Services,Children's & Education Services,Management & Support Services,5105707841,18.05.2022,Direct Paymnts/Managed Educational Packages,Charges from Independent Providers,684,A-DAY CONSULTANTS LTD
Revenue,Childrens Services,Children's & Education Services,Management & Support Services,5105707841,18.05.2022,Direct Paymnts/Managed Educational Packages,Charges from Independent Providers,570,A-DAY CONSULTANTS LTD
Revenue,Childrens Services,Children's & Education Services,Management & Support Services,5105707872,18.05.2022,Direct Paymnts/Managed Educational Packages,Charges from Independent Providers,456,A-DAY CONSULTANTS LTD
Revenue,Childrens Services,Children's & Education Services,Management & Support Services,5105707872,18.05.2022,Direct Paymnts/Managed Educational Packages,Charges from Independent Providers,570,A-DAY CONSULTANTS LTD
Revenue,Childrens Services,Children's & Education Services,Management & Support Services,5105706257,06.05.2022,Direct Paymnts/Managed Educational Packages,Charges from Independent Providers,220,A-DAY CONSULTANTS LTD
Revenue,Childrens Services,Children's & Education Services,Management & Support Services,5105709524,30.05.2022,Direct Paymnts/Managed Educational Packages,Charges from Independent Providers,342,A-DAY CONSULTANTS LTD
Revenue,Childrens Services,Children's & Education Services,Management & Support Services,5105709524,30.05.2022,Direct Paymnts/Managed Educational Packages,Charges from Independent Providers,570,A-DAY CONSULTANTS LTD
Revenue,Childrens Services,Children's & Education Services,Management & Support Services,5105709526,30.05.2022,Direct Paymnts/Managed Educational Packages,Charges from Independent Providers,570,A-DAY CONSULTANTS LTD
Revenue,Childrens Services,Children's & Education Services,Management & Support Services,5105709526,30.05.2022,Direct Paymnts/Managed Educational Packages,Charges from Independent Providers,684,A-DAY CONSULTANTS LTD
Revenue,Childrens Services,Children's & Education Services,Management & Support Services,5105709529,30.05.2022,Direct Paymnts/Managed Educational Packages,Charges from Independent Providers,228,A-DAY CONSULTANTS LTD
Revenue,Childrens Services,Children's & Education Services,Management & Support Services,5105709533,30.05.2022,Direct Paymnts/Managed Educational Packages,Charges from Independent Providers,385,A-DAY CONSULTANTS LTD
Revenue,Childrens Services,Children's & Education Services,Management & Support Services,5105709148,27.05.2022,Direct Paymnts/Managed Educational Packages,Charges from Independent Providers,330,A-DAY CONSULTANTS LTD
Revenue,Childrens Services,Children's & Education Services,Management & Support Services,5105709199,27.05.2022,Direct Paymnts/Managed Educational Packages,Charges from Independent Providers,570,A-DAY CONSULTANTS LTD
Revenue,Childrens Services,Children's & Education Services,Management & Support Services,5105709199,27.05.2022,Direct Paymnts/Managed Educational Packages,Charges from Independent Providers,456,A-DAY CONSULTANTS LTD
Revenue,Childrens Services,Children's & Education Services,Management & Support Services,5105709200,27.05.2022,Direct Paymnts/Managed Educational Packages,Charges from Independent Providers,684,A-DAY CONSULTANTS LTD
Revenue,Childrens Services,Children's & Education Services,Management & Support Services,5105709200,27.05.2022,Direct Paymnts/Managed Educational Packages,Charges from Independent Providers,570,A-DAY CONSULTANTS LTD
Revenue,Childrens Services,Children's & Education Services,Management & Support Services,5105709201,27.05.2022,Direct Paymnts/Managed Educational Packages,Charges from Independent Providers,570,A-DAY CONSULTANTS LTD
Revenue,Childrens Services,Children's & Education Services,Management & Support Services,5105709203,27.05.2022,Direct Paymnts/Managed Educational Packages,Charges from Independent Providers,228,A-DAY CONSULTANTS LTD
Revenue,Childrens Services,Children's & Education Services,Management & Support Services,5105707861,18.05.2022,Special Discretionary Grants,Charges from Independent Providers,715,A-DAY CONSULTANTS LTD
Revenue,Childrens Services,Children's & Education Services,Management & Support Services,5105708656,25.05.2022,Special Discretionary Grants,Charges from Independent Providers,"1,247.00",A-DAY CONSULTANTS LTD
Revenue,Childrens Services,Children's & Education Services,Special Schools & Alternative Provision,5105709403,27.05.2022,Island Learning Centre,Agency staff,925,A-DAY CONSULTANTS LTD
Revenue,Childrens Services,Children's & Education Services,Special Schools & Alternative Provision,5105709403,27.05.2022,Island Learning Centre,Agency staff,740,A-DAY CONSULTANTS LTD
Revenue,Childrens Services,Children's & Education Services,Special Schools & Alternative Provision,5105709403,27.05.2022,Island Learning Centre,Agency staff,111,A-DAY CONSULTANTS LTD
Revenue,Childrens Services,Children's & Education Services,Special Schools & Alternative Provision,5105709403,27.05.2022,Island Learning Centre,Agency staff,111,A-DAY CONSULTANTS LTD
Revenue,Childrens Services,Children's & Education Services,Special Schools & Alternative Provision,5105709403,27.05.2022,Island Learning Centre,Agency staff,111,A-DAY CONSULTANTS LTD
Revenue,Childrens Services,Children's & Education Services,Special Schools & Alternative Provision,5105709403,27.05.2022,Island Learning Centre,Agency staff,880,A-DAY CONSULTANTS LTD
Revenue,Childrens Services,Children's & Education Services,Special Schools & Alternative Provision,5105709404,27.05.2022,Island Learning Centre,Agency staff,768,A-DAY CONSULTANTS LTD
Revenue,Childrens Services,Children's & Education Services,Special Schools & Alternative Provision,5105709404,27.05.2022,Island Learning Centre,Agency staff,960,A-DAY CONSULTANTS LTD
Revenue,Childrens Services,Children's & Education Services,Special Schools & Alternative Provision,5105709404,27.05.2022,Island Learning Centre,Agency staff,82.5,A-DAY CONSULTANTS LTD
Revenue,Childrens Services,Children's & Education Services,Special Schools & Alternative Provision,5105709404,27.05.2022,Island Learning Centre,Agency staff,230,A-DAY CONSULTANTS LTD
Revenue,Childrens Services,Children's & Education Services,Special Schools & Alternative Provision,5105709404,27.05.2022,Island Learning Centre,Agency staff,230,A-DAY CONSULTANTS LTD
Revenue,Childrens Services,Children's & Education Services,Special Schools & Alternative Provision,5105709404,27.05.2022,Island Learning Centre,Agency staff,115,A-DAY CONSULTANTS LTD
Revenue,Childrens Services,Children's & Education Services,Special Schools & Alternative Provision,5105709404,27.05.2022,Island Learning Centre,Agency staff,115,A-DAY CONSULTANTS LTD
Revenue,Childrens Services,Children's & Education Services,Special Schools & Alternative Provision,5105709404,27.05.2022,Island Learning Centre,Agency staff,576,A-DAY CONSULTANTS LTD
Revenue,Childrens Services,Children's & Education Services,Special Schools & Alternative Provision,5105709404,27.05.2022,Island Learning Centre,Agency staff,230,A-DAY CONSULTANTS LTD
Revenue,Childrens Services,Children's & Education Services,Special Schools & Alternative Provision,5105709404,27.05.2022,Island Learning Centre,Agency staff,384,A-DAY CONSULTANTS LTD
Revenue,Childrens Services,Children's & Education Services,Special Schools & Alternative Provision,5105709404,27.05.2022,Island Learning Centre,Agency staff,230,A-DAY CONSULTANTS LTD
Revenue,Childrens Services,Children's & Education Services,Special Schools & Alternative Provision,5105709285,27.05.2022,Island Learning Centre,Agency staff,82.5,A-DAY CONSULTANTS LTD
Revenue,Childrens Services,Children's & Education Services,Special Schools & Alternative Provision,5105709229,27.05.2022,Island Learning Centre,Agency staff,196.8,A-DAY CONSULTANTS LTD
Revenue,Childrens Services,Children's & Education Services,Special Schools & Alternative Provision,5105709229,27.05.2022,Island Learning Centre,Agency staff,2,A-DAY CONSULTANTS LTD
Revenue,Childrens Services,Children's & Education Services,Special Schools & Alternative Provision,5105709229,27.05.2022,Island Learning Centre,Agency staff,925,A-DAY CONSULTANTS LTD
Revenue,Childrens Services,Children's & Education Services,Special Schools & Alternative Provision,5105709229,27.05.2022,Island Learning Centre,Agency staff,740,A-DAY CONSULTANTS LTD
Revenue,Childrens Services,Children's & Education Services,Special Schools & Alternative Provision,5105709229,27.05.2022,Island Learning Centre,Agency staff,111,A-DAY CONSULTANTS LTD
Revenue,Childrens Services,Children's & Education Services,Special Schools & Alternative Provision,5105709229,27.05.2022,Island Learning Centre,Agency staff,111,A-DAY CONSULTANTS LTD
Revenue,Childrens Services,Children's & Education Services,Special Schools & Alternative Provision,5105709229,27.05.2022,Island Learning Centre,Agency staff,880,A-DAY CONSULTANTS LTD
Revenue,Childrens Services,Children's & Education Services,Other Education and Community Budget,5105707733,18.05.2022,Home to School SEN Transport (LA),Taxis - Contract Hire,"1,420.00",REDACTED PERSONAL DATA
Revenue,Childrens Services,Children's & Education Services,Other Education and Community Budget,5105707731,18.05.2022,Home to School SEN Transport (LA),Taxis - Contract Hire,660,REDACTED PERSONAL DATA
Revenue,Childrens Services,Children's & Education Services,Other Education and Community Budget,5105707728,18.05.2022,Home to School SEN Transport (LA),Taxis - Contract Hire,880,REDACTED PERSONAL DATA
Revenue,Childrens Services,Children's & Education Services,Other Education and Community Budget,5105708009,25.05.2022,Home to School SEN Transport (LA),Taxis - Contract Hire,"1,300.00",REDACTED PERSONAL DATA
Revenue,Childrens Services,Children's & Education Services,Other Education and Community Budget,5105708011,25.05.2022,Home to School SEN Transport (LA),Taxis - Contract Hire,805,REDACTED PERSONAL DATA
Revenue,Childrens Services,Children's & Education Services,Other Education and Community Budget,5105707715,20.05.2022,Home to School SEN Transport (LA),Taxis - Contract Hire,"1,100.00",REDACTED PERSONAL DATA
Revenue,Childrens Services,Children's & Education Services,Other Education and Community Budget,5105707716,20.05.2022,Home to School SEN Transport (LA),Taxis - Contract Hire,"1,760.00",REDACTED PERSONAL DATA
Revenue,Childrens Services,Children's & Education Services,Other Education and Community Budget,5105707727,18.05.2022,Home to School SEN Transport (LA),Taxis - Contract Hire,660,REDACTED PERSONAL DATA
Revenue,Childrens Services,Children's & Education Services,Other Education and Community Budget,5105707723,20.05.2022,Home to School SEN Transport (LA),Taxis - Contract Hire,900,REDACTED PERSONAL DATA
Revenue,Childrens Services,Children's & Education Services,Other Education and Community Budget,5105707724,20.05.2022,Home to School SEN Transport (LA),Taxis - Contract Hire,800,REDACTED PERSONAL DATA
Revenue,Childrens Services,Children's & Education Services,Other Education and Community Budget,5105707725,20.05.2022,Home to School SEN Transport (LA),Taxis - Contract Hire,"2,356.00",REDACTED PERSONAL DATA
Revenue,Childrens Services,Children's & Education Services,Other Education and Community Budget,5105707713,20.05.2022,Home to College Post 16 Transport,Taxis - Contract Hire,340,REDACTED PERSONAL DATA
Revenue,Childrens Services,Children's & Education Services,Other Education and Community Budget,5105708008,20.05.2022,Home to College Post 16 Transport,Taxis - Contract Hire,"1,100.00",REDACTED PERSONAL DATA
Revenue,Childrens Services,Children's & Education Services,Other Education and Community Budget,5105707732,18.05.2022,Home to College Post 16 Transport,Taxis - Contract Hire,540,REDACTED PERSONAL DATA
Revenue,Childrens Services,Children's & Education Services,Other Education and Community Budget,5105707726,20.05.2022,Home to School Mainstream Transport,Taxis - Contract Hire,880,REDACTED PERSONAL DATA
Revenue,Childrens Services,Children's & Education Services,Other Education and Community Budget,5105707729,18.05.2022,Home to School Mainstream Transport,Taxis - Contract Hire,"2,200.00",REDACTED PERSONAL DATA
Revenue,Childrens Services,Children's & Education Services,Other Education and Community Budget,5105707730,18.05.2022,Home to School Mainstream Transport,Taxis - Contract Hire,"1,100.00",REDACTED PERSONAL DATA
Revenue,Regeneration,Central Services,Support Services,5105707902,16.05.2022,"Westridge, Ryde",Security of Buildings,-339.01,ADT FIRE AND SECURITY PLC
Revenue,Regeneration,Central Services,Support Services,5105704652,16.05.2022,"Westridge, Ryde",Security of Buildings,339.01,ADT FIRE AND SECURITY PLC
Revenue,Neighbourhoods,Cultural and Related Services,Culture and Heritage,5105706990,06.05.2022,Cothey Bottom Store RYDE,Security of Buildings,344,ADT FIRE AND SECURITY PLC
Revenue,Childrens Services,Children's & Education Services,Sure Start Children's Centres,5105708568,25.05.2022,Family Centres Maintenance,Security of Buildings,223,ADT FIRE AND SECURITY PLC
Revenue,Neighbourhoods,Environmental & Regulatory Services,"Cemetery, Cremation & Mortuary Services",5105708564,25.05.2022,Cemeteries-Northwood,Security of Buildings,60,ADT FIRE AND SECURITY PLC
Revenue,Neighbourhoods,Cultural and Related Services,Recreation and Sport,5105707355,13.05.2022,The Heights,Security of Buildings,76,ADT FIRE AND SECURITY PLC
Revenue,Childrens Services,Children's & Education Services,Other Education and Community Budget,5105709107,27.05.2022,Skills and Participation,Licences,220,ADVIZA PARTNERSHIP
Revenue,Resources,Central Services,Central Services to the Public,5105706567,04.05.2022,National Non Domestic Rates,Printing Costs,500,AIREY CONSULTANCY SERVICES LTD
Revenue,Resources,Central Services,Central Services to the Public,5105706567,04.05.2022,Support for Energy bills,Printing Costs,"1,000.00",AIREY CONSULTANCY SERVICES LTD
Revenue,Resources,Central Services,Support Services,5105706567,04.05.2022,COVID-19 Business Grants,Printing Costs,650,AIREY CONSULTANCY SERVICES LTD
Revenue,Adult Services,Adult Social Care,Central Codes (to be reallocated),5105708420,26.05.2022,Gouldings Resource Centre,Property Services - Day to day Maintenance,135,AIRTEK SERVICES IOW LTD
Revenue,Neighbourhoods,Cultural and Related Services,Culture and Heritage,5105707014,26.05.2022,Medina Theatre,Property Services - Day to day Maintenance,"1,950.00",AIRTEK SERVICES IOW LTD
Capital,Childrens Services,Capital,Capital,5105708394,20.05.2022,Children Services Early Years,Payment to Contractors - Capital,"7,792.00",AIRTEK SERVICES IOW LTD
Revenue,Neighbourhoods,Cultural and Related Services,Recreation and Sport,5105707014,26.05.2022,Medina Leisure Centre,Property Services - Day to day Maintenance,"3,290.00",AIRTEK SERVICES IOW LTD
Revenue,Regeneration,Central Services,Support Services,5105707014,26.05.2022,"Westridge, Ryde",Property Services - Day to day Maintenance,785,AIRTEK SERVICES IOW LTD
Revenue,Neighbourhoods,Cultural and Related Services,Recreation and Sport,5105707014,26.05.2022,The Heights,Property Services - Day to day Maintenance,"3,860.00",AIRTEK SERVICES IOW LTD
Revenue,Childrens Services,Children's & Education Services,Other Education and Community Budget,5105707851,18.05.2022,Home to School SEN Transport (LA),Taxis - Contract Hire,480,AKAR TAXIS
Revenue,Childrens Services,Children's & Education Services,Other Education and Community Budget,5105707474,18.05.2022,Home to School SEN Transport (LA),Taxis - Contract Hire,484,AKAR TAXIS
Revenue,Childrens Services,Children's & Education Services,Other Education and Community Budget,5105707849,18.05.2022,Home to School Mainstream Transport,Taxis - Contract Hire,800,AKAR TAXIS
Revenue,Adult Services,Adult Social Care,Assistive Equipment & Technology,5105704768,18.05.2022,BCF Community Equipment Store,Charges from Independent Providers,4.14,AKW MEDI-CARE LTD
Revenue,Neighbourhoods,Environmental & Regulatory Services,"Cemetery, Cremation & Mortuary Services",5105708640,25.05.2022,Crematorium,Operational Equipment,29.17,ALBANY FARM & G MACHINERY LTD
Revenue,Neighbourhoods,Environmental & Regulatory Services,"Cemetery, Cremation & Mortuary Services",5105706563,04.05.2022,Crematorium,Operational Equipment,164,ALBANY FARM & G MACHINERY LTD
Revenue,Childrens Services,Children's & Education Services,Other Education and Community Budget,5105707300,25.05.2022,Home to School SEN Transport (LA),Taxis - Contract Hire,"1,600.00",REDACTED PERSONAL DATA
Revenue,Resources,Adult Social Care,Physical Support (to be reallocated),5105707217,13.05.2022,Blue Badge Admin Team Shared Services,Printing Costs,529.85,ALLIED PUBLICITY SCVE (MANCHESTER)
Revenue,Neighbourhoods,Cultural and Related Services,Culture and Heritage,5105709079,27.05.2022,Dinosaur Isle Museum (Sandown Geology),Stock Purchases,424.8,ALLSORTED LTD
Revenue,Neighbourhoods,Cultural and Related Services,Culture and Heritage,5105709079,27.05.2022,Dinosaur Isle Museum (Sandown Geology),Stock Purchases,34.92,ALLSORTED LTD
Revenue,Resources,Highways and Transport Services,Public Transport,5105707001,06.05.2022,Transport Fleet Administration,Vehicle Fuel Costs,"14,748.54",ALLSTAR BUSINESS SOLUTIONS LTD
Revenue,Childrens Services,Children's & Education Services,Other Education and Community Budget,5105708677,25.05.2022,Home to School SEN Transport (LA),Taxis - Contract Hire,480,ALPHA (IOW) LTD
Revenue,Childrens Services,Children's & Education Services,Other Education and Community Budget,5105708677,25.05.2022,Home to School SEN Transport (LA),Taxis - Contract Hire,660,ALPHA (IOW) LTD
Revenue,Childrens Services,Children's & Education Services,Other Education and Community Budget,5105708677,25.05.2022,Home to School SEN Transport (LA),Taxis - Contract Hire,440,ALPHA (IOW) LTD
Revenue,Childrens Services,Children's & Education Services,Other Education and Community Budget,5105708677,25.05.2022,Home to School SEN Transport (LA),Taxis - Contract Hire,550,ALPHA (IOW) LTD
Revenue,Childrens Services,Children's & Education Services,Other Education and Community Budget,5105708677,25.05.2022,Home to School SEN Transport (LA),Taxis - Contract Hire,550,ALPHA (IOW) LTD
Revenue,Childrens Services,Children's & Education Services,Other Education and Community Budget,5105708677,25.05.2022,Home to School SEN Transport (LA),Taxis - Contract Hire,"1,694.00",ALPHA (IOW) LTD
Revenue,Childrens Services,Children's & Education Services,Other Education and Community Budget,5105708677,25.05.2022,Home to School SEN Transport (LA),Taxis - Contract Hire,"1,320.00",ALPHA (IOW) LTD
Revenue,Childrens Services,Children's & Education Services,Other Education and Community Budget,5105708677,25.05.2022,Home to School SEN Transport (LA),Taxis - Contract Hire,"1,540.00",ALPHA (IOW) LTD
Revenue,Childrens Services,Children's & Education Services,Other Education and Community Budget,5105708677,25.05.2022,Home to School SEN Transport (LA),Taxis - Contract Hire,275,ALPHA (IOW) LTD
Revenue,Childrens Services,Children's & Education Services,Other Education and Community Budget,5105708677,25.05.2022,Home to School SEN Transport (LA),Taxis - Contract Hire,"2,200.00",ALPHA (IOW) LTD
Revenue,Childrens Services,Children's & Education Services,Other Education and Community Budget,5105708677,25.05.2022,Home to School SEN Transport (LA),Taxis - Contract Hire,605,ALPHA (IOW) LTD
Revenue,Childrens Services,Children's & Education Services,Other Education and Community Budget,5105708677,25.05.2022,Home to School SEN Transport (LA),Taxis - Contract Hire,880,ALPHA (IOW) LTD
Revenue,Childrens Services,Children's & Education Services,Other Education and Community Budget,5105708677,25.05.2022,Home to College Post 16 Transport,Taxis - Contract Hire,540,ALPHA (IOW) LTD
Revenue,Childrens Services,Children's & Education Services,Other Education and Community Budget,5105708677,25.05.2022,Home to College Post 16 Transport,Taxis - Contract Hire,540,ALPHA (IOW) LTD
Revenue,Childrens Services,Children's & Education Services,Other Education and Community Budget,5105708677,25.05.2022,Home to College Post 16 Transport,Taxis - Contract Hire,640,ALPHA (IOW) LTD
Revenue,Childrens Services,Children's & Education Services,Other Education and Community Budget,5105708677,25.05.2022,Home to College Post 16 Transport,Taxis - Contract Hire,440,ALPHA (IOW) LTD
Revenue,Childrens Services,Children's & Education Services,Other Education and Community Budget,5105708677,25.05.2022,Home to College Post 16 Transport,Taxis - Contract Hire,660,ALPHA (IOW) LTD
Revenue,Childrens Services,Children's & Education Services,Other Education and Community Budget,5105708677,25.05.2022,Home to College Post 16 Transport,Taxis - Contract Hire,800,ALPHA (IOW) LTD
Revenue,Childrens Services,Children's & Education Services,Other Education and Community Budget,5105708677,25.05.2022,Home to College Post 16 Transport,Taxis - Contract Hire,180,ALPHA (IOW) LTD
Revenue,Childrens Services,Children's & Education Services,Other Education and Community Budget,5105708677,25.05.2022,Home to School Mainstream Transport,Taxis - Contract Hire,"1,144.00",ALPHA (IOW) LTD
Revenue,Childrens Services,Children's & Education Services,Other Education and Community Budget,5105708677,25.05.2022,Home to School Mainstream Transport,Taxis - Contract Hire,550,ALPHA (IOW) LTD
Revenue,Childrens Services,Children's & Education Services,Other Education and Community Budget,5105708677,25.05.2022,Home to School Mainstream Transport,Taxis - Contract Hire,"2,400.00",ALPHA (IOW) LTD
Revenue,Childrens Services,Children's & Education Services,Other Education and Community Budget,5105708677,25.05.2022,Home to School Mainstream Transport,Taxis - Contract Hire,880,ALPHA (IOW) LTD
Revenue,Childrens Services,Children's & Education Services,Other Education and Community Budget,5105708677,25.05.2022,Home to School Mainstream Transport,Taxis - Contract Hire,550,ALPHA (IOW) LTD
Revenue,Childrens Services,Children's & Education Services,Other Education and Community Budget,5105708677,25.05.2022,Home to School Mainstream Transport,Taxis - Contract Hire,"1,100.00",ALPHA (IOW) LTD
Revenue,Childrens Services,Children's & Education Services,Other Education and Community Budget,5105708677,25.05.2022,Home to School Mainstream Transport,Taxis - Contract Hire,660,ALPHA (IOW) LTD
Revenue,Childrens Services,Children's & Education Services,Other Education and Community Budget,5105708677,25.05.2022,Home to School Mainstream Transport,Taxis - Contract Hire,900,ALPHA (IOW) LTD
Revenue,Adult Services,Adult Social Care,Learning Disability Suppt-adults (18-64),5105707134,11.05.2022,Learning Disability Residential 18-64,Charges from Independent Providers,"3,896.76",ALPHAGRANGE LTD
Revenue,Childrens Services,Children's & Education Services,Children Looked After,5105708972,27.05.2022,Children placed with Family&Friends,Boarding Out Allowances,198,REDACTED PERSONAL DATA
Revenue,Childrens Services,Children's & Education Services,Children Looked After,5105707580,13.05.2022,Children placed with Family&Friends,Boarding Out Allowances,198,REDACTED PERSONAL DATA
Revenue,Childrens Services,Children's & Education Services,Children Looked After,5105706775,06.05.2022,Children placed with Family&Friends,Boarding Out Allowances,198,REDACTED PERSONAL DATA
Revenue,Childrens Services,Children's & Education Services,Children Looked After,5105708177,20.05.2022,Children placed with Family&Friends,Boarding Out Allowances,198,REDACTED PERSONAL DATA
Revenue,Adult Services,Adult Social Care,Social Support -Substance Misuse Support,5105708075,20.05.2022,Substance Misuse Residential,Charges from Independent Providers,"7,285.80",ANA TREATMENT CENTRES LTD
Revenue,Adult Services,Adult Social Care,Mental Health Support - adults (18-64),5105707111,11.05.2022,Mental Health Residential 18-64,Charges from Independent Providers,"3,400.04",ANA TREATMENT CENTRES LTD
Revenue,Adult Services,Adult Social Care,Social Support - Social Isolation/Other,5105708348,20.05.2022,Social Isolation/Other Residential,Charges from Independent Providers,"7,337.88",ANCHOR HANOVER GROUP
Revenue,Adult Services,Central Services,Emergency Planning,5105708348,20.05.2022,NHS C19 Residential,Charges from Independent Providers,"3,021.48",ANCHOR HANOVER GROUP
Revenue,Childrens Services,Children's & Education Services,Children Looked After,5105707643,13.05.2022,Children placed with Family&Friends,Boarding Out Allowances,285.93,REDACTED PERSONAL DATA
Revenue,Childrens Services,Children's & Education Services,Children Looked After,5105706839,06.05.2022,Children placed with Family&Friends,Boarding Out Allowances,285.93,REDACTED PERSONAL DATA
Revenue,Childrens Services,Children's & Education Services,Children Looked After,5105706839,06.05.2022,Children placed with Family&Friends,Boarding Out Allowances,285.93,REDACTED PERSONAL DATA
Revenue,Childrens Services,Children's & Education Services,Children Looked After,5105709036,27.05.2022,Children placed with Family&Friends,Boarding Out Allowances,285.93,REDACTED PERSONAL DATA
Revenue,Childrens Services,Children's & Education Services,Children Looked After,5105709036,27.05.2022,Children placed with Family&Friends,Boarding Out Allowances,285.93,REDACTED PERSONAL DATA
Revenue,Childrens Services,Children's & Education Services,Children Looked After,5105707643,13.05.2022,Children placed with Family&Friends,Boarding Out Allowances,285.93,REDACTED PERSONAL DATA
Revenue,Childrens Services,Children's & Education Services,Children Looked After,5105708241,20.05.2022,Children placed with Family&Friends,Boarding Out Allowances,285.93,REDACTED PERSONAL DATA
Revenue,Childrens Services,Children's & Education Services,Children Looked After,5105708241,20.05.2022,Children placed with Family&Friends,Boarding Out Allowances,285.93,REDACTED PERSONAL DATA
Revenue,Adult Services,Adult Social Care,Assistive Equipment & Technology,5105706862,06.05.2022,Wightcare,Operational Equipment,"1,200.00",ANYWHERE CARE LIMITED
Revenue,Adult Services,Adult Social Care,Assistive Equipment & Technology,5105706867,06.05.2022,Wightcare,Operational Equipment,900,ANYWHERE CARE LIMITED
Revenue,Adult Services,Adult Social Care,Assistive Equipment & Technology,5105706868,06.05.2022,Wightcare,Operational Equipment,900,ANYWHERE CARE LIMITED
Revenue,Adult Services,Adult Social Care,Assistive Equipment & Technology,5105707055,11.05.2022,Wightcare,General Materials,"1,200.00",ANYWHERE CARE LIMITED
Revenue,Adult Services,Adult Social Care,Assistive Equipment & Technology,5105707056,11.05.2022,Wightcare,Operational Equipment,60,ANYWHERE CARE LIMITED
Revenue,Neighbourhoods,Cultural and Related Services,Recreation and Sport,5105708424,27.05.2022,Medina Leisure Centre,Stock Purchases,45,APG SPORTS GROUP LTD
Revenue,Neighbourhoods,Cultural and Related Services,Recreation and Sport,5105708425,27.05.2022,Medina Leisure Centre,Stock Purchases,186,APG SPORTS GROUP LTD
Revenue,Neighbourhoods,Cultural and Related Services,Recreation and Sport,5105708425,27.05.2022,Medina Leisure Centre,Stock Purchases,37.5,APG SPORTS GROUP LTD
Revenue,Neighbourhoods,Cultural and Related Services,Recreation and Sport,5105705582,04.05.2022,Medina Leisure Centre,Stock Purchases,381,APG SPORTS GROUP LTD
Revenue,Neighbourhoods,Cultural and Related Services,Recreation and Sport,5105706248,04.05.2022,Medina Leisure Centre,Stock Purchases,91.2,APG SPORTS GROUP LTD
Revenue,Neighbourhoods,Cultural and Related Services,Recreation and Sport,5105706644,04.05.2022,Medina Leisure Centre,Stock Purchases,-6,APG SPORTS GROUP LTD
Revenue,Neighbourhoods,Cultural and Related Services,Recreation and Sport,5105708372,27.05.2022,The Heights,Stock Purchases,49.98,APG SPORTS GROUP LTD
Revenue,Neighbourhoods,Cultural and Related Services,Recreation and Sport,5105708372,27.05.2022,The Heights,Stock Purchases,20.82,APG SPORTS GROUP LTD
Revenue,Neighbourhoods,Cultural and Related Services,Recreation and Sport,5105708399,27.05.2022,The Heights,Stock Purchases,498,APG SPORTS GROUP LTD
Revenue,Neighbourhoods,Cultural and Related Services,Recreation and Sport,5105708430,25.05.2022,The Heights,Stock Purchases,8.33,APG SPORTS GROUP LTD
Revenue,Neighbourhoods,Cultural and Related Services,Recreation and Sport,5105708431,27.05.2022,The Heights,Stock Purchases,21.66,APG SPORTS GROUP LTD
Revenue,Neighbourhoods,Cultural and Related Services,Recreation and Sport,5105708433,27.05.2022,The Heights,Stock Purchases,110,APG SPORTS GROUP LTD
Capital,Resources,Capital,Capital,5105706589,06.05.2022,Management of Asbestos,Payment to Contractors - Capital,880.5,APTIVA LTD
Revenue,Regeneration,Planning services,Economic Development,5105708535,27.05.2022,Victoria Quays,Professional Services,"1,008.00",ARC CONSULTING LTD
Revenue,Neighbourhoods,Cultural and Related Services,Recreation and Sport,5105706271,06.05.2022,Beach Safety & Inspection / Beach Awards,Payment to Private Contractors,"2,650.00",ARC CONSULTING LTD
Revenue,Neighbourhoods,Highways and Transport Services,"Airports, Harbours & Toll Facilities",5105709154,27.05.2022,Ferry Operation,Clothing & Laundry,23.08,ARCO LTD
Revenue,Neighbourhoods,Highways and Transport Services,"Airports, Harbours & Toll Facilities",5105709154,27.05.2022,Ferry Operation,Clothing & Laundry,23.08,ARCO LTD
Revenue,Neighbourhoods,Highways and Transport Services,"Airports, Harbours & Toll Facilities",5105707323,11.05.2022,Ferry Operation,Clothing & Laundry,7.2,ARCO LTD
Revenue,Neighbourhoods,Highways and Transport Services,"Airports, Harbours & Toll Facilities",5105707323,11.05.2022,Ferry Operation,Clothing & Laundry,28.56,ARCO LTD
Revenue,Neighbourhoods,Highways and Transport Services,"Airports, Harbours & Toll Facilities",5105707298,20.05.2022,Ferry Operation,Clothing & Laundry,60.48,ARCO LTD
Revenue,Neighbourhoods,Highways and Transport Services,"Airports, Harbours & Toll Facilities",5105707298,20.05.2022,Ferry Operation,Clothing & Laundry,46.16,ARCO LTD
Revenue,Childrens Services,Children's & Education Services,Special Schools & Alternative Provision,5105709302,27.05.2022,Island Learning Centre,Client Expenses,58.9,ARCO LTD
Revenue,Adult Services,Adult Social Care,Central Codes (to be reallocated),5105707046,11.05.2022,Adelaide Resource Centre,Clothing & Laundry,54.27,ARCO LTD
Revenue,Resources,Central Services,Support Services,5105707299,18.05.2022,Corporate Stores,Clothing & Laundry,15.29,ARCO LTD
Revenue,Resources,Central Services,Support Services,5105705981,06.05.2022,Corporate Stores,Clothing & Laundry,94.73,ARCO LTD
Revenue,Resources,Central Services,Support Services,5105706638,11.05.2022,Corporate Stores,Clothing & Laundry,167.62,ARCO LTD
Revenue,Neighbourhoods,Cultural and Related Services,Recreation and Sport,5105707928,25.05.2022,The Heights,Clothing & Laundry,13.32,ARCO LTD
Capital,Place,Capital,Capital,5105707682,13.05.2022,Parks and Gardens Capital,External Design and Supervision Fees,"1,000.00",ARID DESIGN LTD
Capital,Place,Capital,Capital,5105707683,20.05.2022,Parks and Gardens Capital,External Design and Supervision Fees,"7,400.00",ARID DESIGN LTD
Revenue,Adult Services,Adult Social Care,Learning Disab Supp (to be reallocated),5105706556,06.05.2022,Saxonbury,Minor Works,89,ARJO UK LTD
Revenue,Adult Services,Adult Social Care,Learning Disab Supp (to be reallocated),5105706557,06.05.2022,Plean Dene,Minor Works,79,ARJO UK LTD
Revenue,Regeneration,Planning services,Planning Policy,5105707301,25.05.2022,Island Planning Strategy,Consultants Fees,687.5,ASPINALL VERDI LTD
Revenue,Adult Services,Adult Social Care,Commissioning & Service Delivery,5105707320,11.05.2022,BCF Early Help,Payment to Private Contractors,"58,758.33",ASPIRE RYDE
Revenue,Adult Services,Adult Social Care,Commissioning & Service Delivery,5105707321,11.05.2022,BCF Early Help,Payment to Private Contractors,"58,758.33",ASPIRE RYDE
Revenue,Neighbourhoods,Cultural and Related Services,Culture and Heritage,5105707992,18.05.2022,Archaeology,Professional Subscriptions,190,ASSOCIATION OF LOCAL GOVERNMENT ARCHAEOLOGICAL OFFICERS
Balance Sheet,Adult Services,Balance Sheet,Balance Sheet,5105707118,11.05.2022,REDACTED PERSONAL DATA,Order Settlement to Bal Sht GL,"2,950.64",AUTUMN HOUSE CARE LTD
Revenue,Adult Services,Adult Social Care,Support - Memory /Cognition-older people (65+),5105707030,11.05.2022,Memory & Cognition Residential 65+,Charges from Independent Providers,599.9,AUTUMN HOUSE CARE LTD
Revenue,Adult Services,Adult Social Care,Support - Memory /Cognition-older people (65+),5105707118,11.05.2022,Memory & Cognition Residential 65+,Charges from Independent Providers,"2,653.56",AUTUMN HOUSE CARE LTD
Revenue,Adult Services,Adult Social Care,Support - Memory /Cognition-older people (65+),5105707118,11.05.2022,Memory & Cognition Residential 65+,Charges from Independent Providers,"2,653.56",AUTUMN HOUSE CARE LTD
Revenue,Adult Services,Adult Social Care,Support - Memory /Cognition-older people (65+),5105707118,11.05.2022,Memory & Cognition Residential 65+,Charges from Independent Providers,"2,653.56",AUTUMN HOUSE CARE LTD
Revenue,Adult Services,Adult Social Care,Support - Memory /Cognition-older people (65+),5105707118,11.05.2022,Memory & Cognition Residential 65+,Charges from Independent Providers,"2,950.64",AUTUMN HOUSE CARE LTD
Revenue,Adult Services,Adult Social Care,Support - Memory /Cognition-older people (65+),5105707118,11.05.2022,Memory & Cognition Residential 65+,Charges from Independent Providers,"2,653.56",AUTUMN HOUSE CARE LTD
Revenue,Adult Services,Adult Social Care,Support - Memory /Cognition-older people (65+),5105707118,11.05.2022,Memory & Cognition Residential 65+,Charges from Independent Providers,"2,257.08",AUTUMN HOUSE CARE LTD
Revenue,Adult Services,Adult Social Care,Support - Memory /Cognition-older people (65+),5105707118,11.05.2022,Memory & Cognition Residential 65+,Charges from Independent Providers,"2,653.56",AUTUMN HOUSE CARE LTD
Revenue,Adult Services,Adult Social Care,Support - Memory /Cognition-older people (65+),5105707118,11.05.2022,Memory & Cognition Residential 65+,Charges from Independent Providers,"2,653.56",AUTUMN HOUSE CARE LTD
Revenue,Adult Services,Adult Social Care,Support - Memory /Cognition-older people (65+),5105707118,11.05.2022,Memory & Cognition Residential 65+,Charges from Independent Providers,"2,653.56",AUTUMN HOUSE CARE LTD
Revenue,Adult Services,Adult Social Care,Physical Support - adults (18-64),5105707118,11.05.2022,Physical Support Residential 18-64,Charges from Independent Providers,"2,529.52",AUTUMN HOUSE CARE LTD
Revenue,Adult Services,Adult Social Care,Support - Memory /Cognition-older people (65+),5105709428,30.05.2022,Memory & Cognition Residential 65+,Charges from Independent Providers,"1,445.44",AUTUMN HOUSE CARE LTD
Revenue,Adult Services,Adult Social Care,Support - Memory /Cognition-older people (65+),5105709428,30.05.2022,Memory & Cognition Residential 65+,Charges from Independent Providers,"1,611.09",AUTUMN HOUSE CARE LTD
Revenue,Adult Services,Adult Social Care,Support - Memory /Cognition-older people (65+),5105709428,30.05.2022,Memory & Cognition Residential 65+,Charges from Independent Providers,"5,307.12",AUTUMN HOUSE CARE LTD
Revenue,Adult Services,Central Services,Emergency Planning,5105709428,30.05.2022,NHS C19 Residential,Charges from Independent Providers,"3,095.12",AUTUMN HOUSE CARE LTD
Revenue,Adult Services,Central Services,Emergency Planning,5105709428,30.05.2022,NHS C19 Residential,Charges from Independent Providers,"3,240.16",AUTUMN HOUSE CARE LTD
Revenue,Adult Services,Central Services,Emergency Planning,5105709428,30.05.2022,NHS C19 Residential,Charges from Independent Providers,"1,105.40",AUTUMN HOUSE CARE LTD
Balance Sheet,Adult Services,Balance Sheet,Balance Sheet,5105707118,11.05.2022,REDACTED PERSONAL DATA,Order Settlement to Bal Sht GL,"2,257.08",AUTUMN HOUSE CARE LTD
Revenue,Adult Services,Adult Social Care,Physical Support - older people (65+),5105707118,11.05.2022,Physical Support Residential 65+,Charges from Independent Providers,"3,400.04",AUTUMN HOUSE CARE LTD
Revenue,Adult Services,Adult Social Care,Physical Support - older people (65+),5105707118,11.05.2022,Physical Support Residential 65+,Charges from Independent Providers,"2,950.64",AUTUMN HOUSE CARE LTD
Revenue,Adult Services,Adult Social Care,Physical Support - older people (65+),5105707118,11.05.2022,Physical Support Residential 65+,Charges from Independent Providers,"2,653.56",AUTUMN HOUSE CARE LTD
Revenue,Adult Services,Adult Social Care,Physical Support - older people (65+),5105707118,11.05.2022,Physical Support Residential 65+,Charges from Independent Providers,"2,257.08",AUTUMN HOUSE CARE LTD
Revenue,Adult Services,Adult Social Care,Physical Support - older people (65+),5105707118,11.05.2022,Physical Support Residential 65+,Charges from Independent Providers,"2,950.64",AUTUMN HOUSE CARE LTD
Revenue,Adult Services,Adult Social Care,Physical Support - older people (65+),5105707118,11.05.2022,Physical Support Residential 65+,Charges from Independent Providers,"2,950.64",AUTUMN HOUSE CARE LTD
Revenue,Adult Services,Adult Social Care,Physical Support - older people (65+),5105707118,11.05.2022,Physical Support Residential 65+,Charges from Independent Providers,"2,653.56",AUTUMN HOUSE CARE LTD
Revenue,Adult Services,Adult Social Care,Physical Support - older people (65+),5105707118,11.05.2022,Physical Support Residential 65+,Charges from Independent Providers,"2,653.56",AUTUMN HOUSE CARE LTD
Revenue,Adult Services,Adult Social Care,Physical Support - older people (65+),5105707118,11.05.2022,Physical Support Residential 65+,Charges from Independent Providers,"2,653.56",AUTUMN HOUSE CARE LTD
Revenue,Adult Services,Adult Social Care,Physical Support - older people (65+),5105707118,11.05.2022,Physical Support Residential 65+,Charges from Independent Providers,"2,653.56",AUTUMN HOUSE CARE LTD
Revenue,Adult Services,Adult Social Care,Physical Support - older people (65+),5105707118,11.05.2022,Physical Support Residential 65+,Charges from Independent Providers,"2,653.56",AUTUMN HOUSE CARE LTD
Revenue,Adult Services,Adult Social Care,Physical Support - older people (65+),5105707118,11.05.2022,Physical Support Residential 65+,Charges from Independent Providers,"2,653.56",AUTUMN HOUSE CARE LTD
Revenue,Adult Services,Adult Social Care,Physical Support - older people (65+),5105707118,11.05.2022,Physical Support Residential 65+,Charges from Independent Providers,"2,653.56",AUTUMN HOUSE CARE LTD
Revenue,Adult Services,Adult Social Care,Physical Support - older people (65+),5105707118,11.05.2022,Physical Support Residential 65+,Charges from Independent Providers,"2,653.56",AUTUMN HOUSE CARE LTD
Revenue,Adult Services,Adult Social Care,Physical Support - older people (65+),5105707118,11.05.2022,Physical Support Residential 65+,Charges from Independent Providers,"2,653.56",AUTUMN HOUSE CARE LTD
Revenue,Resources,Central Services,Support Services,5105707459,11.05.2022,ICT Contracts,Computer Purchase & Rental,"23,039.11",AVOIRA LIMITED
Revenue,Resources,Central Services,Support Services,5105707460,11.05.2022,ICT Contracts,Computer Purchase & Rental,"15,299.21",AVOIRA LIMITED
Revenue,Resources,Central Services,Support Services,5105704364,11.05.2022,ICT Contracts,Computer Purchase & Rental,"3,885.00",AVOIRA LIMITED
Revenue,Resources,Central Services,Support Services,5105704374,11.05.2022,ICT Contracts,Computer Purchase & Rental,"4,750.24",AVOIRA LIMITED
Revenue,Resources,Central Services,Support Services,5105704441,11.05.2022,ICT Contracts,Computer Purchase & Rental,"3,578.09",AVOIRA LIMITED
Revenue,Resources,Central Services,Support Services,5105704442,11.05.2022,ICT Contracts,Computer Purchase & Rental,"4,256.05",AVOIRA LIMITED
Revenue,Resources,Central Services,Support Services,5105704814,11.05.2022,ICT Contracts,Computer Purchase & Rental,"4,356.05",AVOIRA LIMITED
Revenue,Resources,Central Services,Support Services,5105704815,11.05.2022,ICT Contracts,Computer Purchase & Rental,"5,888.51",AVOIRA LIMITED
Revenue,Neighbourhoods,Cultural and Related Services,Service Management and Support Services,5105708031,20.05.2022,Duke of Edingburgh Award,Operational Equipment,96,AWARD SCHEME LTD
Revenue,Neighbourhoods,Cultural and Related Services,Service Management and Support Services,5105708031,20.05.2022,Duke of Edingburgh Award,Operational Equipment,2.5,AWARD SCHEME LTD
Revenue,Neighbourhoods,Cultural and Related Services,Service Management and Support Services,5105708031,20.05.2022,Duke of Edingburgh Award,Operational Equipment,10,AWARD SCHEME LTD
Revenue,Neighbourhoods,Cultural and Related Services,Service Management and Support Services,5105707340,11.05.2022,Duke of Edingburgh Award,Licences,"1,140.00",AWARD SCHEME LTD
Revenue,Adult Services,Adult Social Care,Social Care Activities,5105708728,25.05.2022,DoLS/MCA,Professional Services,"2,257.62",AYASHMEDICAL SERVICES LTD
Revenue,Adult Services,Adult Social Care,Social Care Activities,5105708719,25.05.2022,DoLS/MCA,Professional Services,"1,636.18",AYASHMEDICAL SERVICES LTD
Revenue,Adult Services,Adult Social Care,Social Care Activities,5105708722,25.05.2022,DoLS/MCA,Professional Services,"2,276.38",AYASHMEDICAL SERVICES LTD
Revenue,Adult Services,Adult Social Care,Social Care Activities,5105708725,25.05.2022,DoLS/MCA,Professional Services,"1,493.32",AYASHMEDICAL SERVICES LTD
Revenue,Childrens Services,Children's & Education Services,Children Looked After,5105706691,06.05.2022,In-house Fostering,Boarding Out Allowances,561.77,REDACTED PERSONAL DATA
Revenue,Childrens Services,Children's & Education Services,Children Looked After,5105707496,13.05.2022,In-house Fostering,Boarding Out Allowances,561.77,REDACTED PERSONAL DATA
Revenue,Childrens Services,Children's & Education Services,Children Looked After,5105708889,27.05.2022,In-house Fostering,Boarding Out Allowances,561.77,REDACTED PERSONAL DATA
Revenue,Childrens Services,Children's & Education Services,Children Looked After,5105708093,20.05.2022,In-house Fostering,Boarding Out Allowances,561.77,REDACTED PERSONAL DATA
Revenue,Adult Services,Housing Services,Homelessness,5105708448,25.05.2022,Private Rented Sector Leasing Scheme,Accommodation Costs - Leaseholder Payments,866.67,REDACTED PERSONAL DATA
Revenue,Adult Services,Adult Social Care,Assistive Equipment & Technology,5105704085,06.05.2022,BCF Community Equipment Store,Operational Equipment,"1,739.70",B.E.S REHAB LTD
Revenue,Adult Services,Adult Social Care,Assistive Equipment & Technology,5105705734,18.05.2022,BCF Community Equipment Store,Operational Equipment,752.15,B.E.S REHAB LTD
Revenue,Adult Services,Adult Social Care,Assistive Equipment & Technology,5105705613,11.05.2022,BCF Community Equipment Store,Operational Equipment,461.45,B.E.S REHAB LTD
Revenue,Adult Services,Adult Social Care,Assistive Equipment & Technology,5105705615,20.05.2022,BCF Community Equipment Store,Operational Equipment,752.15,B.E.S REHAB LTD
Revenue,Adult Services,Adult Social Care,Assistive Equipment & Technology,5105705616,11.05.2022,BCF Community Equipment Store,Operational Equipment,616.45,B.E.S REHAB LTD
Revenue,Regeneration,Planning services,Economic Development,5105708486,26.05.2022,Rangefinder House (Ascensos),Rent of Buildings and Rooms,"10,907.50",BAE SYSTEMS PROPERTIES LTD
Revenue,Adult Services,Adult Social Care,Commissioning & Service Delivery,5105707183,11.05.2022,CHC Nursing Care,Charges from Independent Providers,"10,447.64",BAGSHOT PARK CARE CENTRE
Revenue,Childrens Services,Children's & Education Services,Children Looked After,5105708010,20.05.2022,Unaccompanied Asylum Seeker Children,Charges from Independent Providers,"3,930.00",BANYA FAMILY PLACEMENT AGENCY LTD
Revenue,Adult Services,Adult Social Care,Physical Support - older people (65+),5105707197,11.05.2022,Physical Support Residential 65+,Charges from Independent Providers,"2,653.56",BARCHESTER HEALTHCARE
Revenue,Adult Services,Adult Social Care,Physical Support - older people (65+),5105707197,11.05.2022,Physical Support Residential 65+,Charges from Independent Providers,"3,270.68",BARCHESTER HEALTHCARE
Revenue,Adult Services,Adult Social Care,Commissioning & Service Delivery,5105707917,18.05.2022,CHC Nursing Care,Charges from Independent Providers,"26,603.10",BARCHESTER HEALTHCARE
Revenue,Childrens Services,Children's & Education Services,Family Support Services,5105704107,04.05.2022,COVID Region Recovery/ Build Back Better,Payment to Private Contractors,"40,000.00",BARNARDO'S
Revenue,Neighbourhoods,Cultural and Related Services,Recreation and Sport,5105707881,25.05.2022,Medina Leisure Centre,Consumable Cleaning Materials,14.88,LAKE CLEANING & CATERING SUPPLIES
Revenue,Neighbourhoods,Cultural and Related Services,Recreation and Sport,5105707881,25.05.2022,Medina Leisure Centre,Consumable Cleaning Materials,16.52,LAKE CLEANING & CATERING SUPPLIES
Revenue,Neighbourhoods,Cultural and Related Services,Recreation and Sport,5105707881,25.05.2022,Medina Leisure Centre,Consumable Cleaning Materials,16.52,LAKE CLEANING & CATERING SUPPLIES
Revenue,Neighbourhoods,Cultural and Related Services,Recreation and Sport,5105706565,04.05.2022,Medina Leisure Centre,Consumable Cleaning Materials,35.5,LAKE CLEANING & CATERING SUPPLIES
Revenue,Neighbourhoods,Cultural and Related Services,Recreation and Sport,5105707881,25.05.2022,Medina Leisure Centre,Consumable Cleaning Materials,79.8,LAKE CLEANING & CATERING SUPPLIES
Revenue,Neighbourhoods,Cultural and Related Services,Recreation and Sport,5105707881,25.05.2022,Medina Leisure Centre,Consumable Cleaning Materials,47.8,LAKE CLEANING & CATERING SUPPLIES
Revenue,Neighbourhoods,Cultural and Related Services,Recreation and Sport,5105707881,25.05.2022,Medina Leisure Centre,Consumable Cleaning Materials,36.72,LAKE CLEANING & CATERING SUPPLIES
Revenue,Neighbourhoods,Cultural and Related Services,Recreation and Sport,5105707881,25.05.2022,Medina Leisure Centre,Consumable Cleaning Materials,33.28,LAKE CLEANING & CATERING SUPPLIES
Revenue,Neighbourhoods,Cultural and Related Services,Recreation and Sport,5105707881,25.05.2022,Medina Leisure Centre,Consumable Cleaning Materials,6.87,LAKE CLEANING & CATERING SUPPLIES
Revenue,Neighbourhoods,Cultural and Related Services,Recreation and Sport,5105707881,25.05.2022,Medina Leisure Centre,Consumable Cleaning Materials,12.65,LAKE CLEANING & CATERING SUPPLIES
Revenue,Neighbourhoods,Cultural and Related Services,Recreation and Sport,5105707881,25.05.2022,Medina Leisure Centre,Consumable Cleaning Materials,25.3,LAKE CLEANING & CATERING SUPPLIES
Revenue,Neighbourhoods,Cultural and Related Services,Recreation and Sport,5105706561,04.05.2022,Medina Leisure Centre,Consumable Cleaning Materials,19.5,LAKE CLEANING & CATERING SUPPLIES
Revenue,Neighbourhoods,Cultural and Related Services,Recreation and Sport,5105706561,04.05.2022,Medina Leisure Centre,Consumable Cleaning Materials,19.5,LAKE CLEANING & CATERING SUPPLIES
Revenue,Neighbourhoods,Cultural and Related Services,Recreation and Sport,5105706565,04.05.2022,Medina Leisure Centre,Consumable Cleaning Materials,15.18,LAKE CLEANING & CATERING SUPPLIES
Revenue,Neighbourhoods,Cultural and Related Services,Recreation and Sport,5105706565,04.05.2022,Medina Leisure Centre,Consumable Cleaning Materials,22.95,LAKE CLEANING & CATERING SUPPLIES
Revenue,Neighbourhoods,Cultural and Related Services,Recreation and Sport,5105706565,04.05.2022,Medina Leisure Centre,Consumable Cleaning Materials,26.2,LAKE CLEANING & CATERING SUPPLIES
Revenue,Neighbourhoods,Cultural and Related Services,Recreation and Sport,5105706565,04.05.2022,Medina Leisure Centre,Consumable Cleaning Materials,146.9,LAKE CLEANING & CATERING SUPPLIES
Revenue,Neighbourhoods,Cultural and Related Services,Recreation and Sport,5105706561,04.05.2022,Medina Leisure Centre,Consumable Cleaning Materials,19.11,LAKE CLEANING & CATERING SUPPLIES
Revenue,Neighbourhoods,Cultural and Related Services,Recreation and Sport,5105706561,04.05.2022,Medina Leisure Centre,Consumable Cleaning Materials,25.46,LAKE CLEANING & CATERING SUPPLIES
Revenue,Neighbourhoods,Cultural and Related Services,Recreation and Sport,5105706561,04.05.2022,Medina Leisure Centre,Consumable Cleaning Materials,22.94,LAKE CLEANING & CATERING SUPPLIES
Revenue,Neighbourhoods,Cultural and Related Services,Recreation and Sport,5105706561,04.05.2022,Medina Leisure Centre,Consumable Cleaning Materials,31.68,LAKE CLEANING & CATERING SUPPLIES
Revenue,Neighbourhoods,Cultural and Related Services,Recreation and Sport,5105706561,04.05.2022,Medina Leisure Centre,Consumable Cleaning Materials,23.5,LAKE CLEANING & CATERING SUPPLIES
Revenue,Neighbourhoods,Cultural and Related Services,Recreation and Sport,5105706561,04.05.2022,Medina Leisure Centre,Consumable Cleaning Materials,14.88,LAKE CLEANING & CATERING SUPPLIES
Revenue,Adult Services,Adult Social Care,Learning Disab Supp (to be reallocated),5105706368,04.05.2022,Plean Dene,Consumable Cleaning Materials,12.84,LAKE CLEANING & CATERING SUPPLIES
Revenue,Adult Services,Adult Social Care,Learning Disab Supp (to be reallocated),5105706369,04.05.2022,Plean Dene,Consumable Cleaning Materials,115.72,LAKE CLEANING & CATERING SUPPLIES
Revenue,Adult Services,Adult Social Care,Learning Disab Supp (to be reallocated),5105706370,04.05.2022,Plean Dene,Consumable Cleaning Materials,25.91,LAKE CLEANING & CATERING SUPPLIES
Revenue,Adult Services,Adult Social Care,Learning Disab Supp (to be reallocated),5105706371,13.05.2022,Plean Dene,Consumable Cleaning Materials,68.28,LAKE CLEANING & CATERING SUPPLIES
Revenue,Adult Services,Adult Social Care,Learning Disab Supp (to be reallocated),5105706372,13.05.2022,Plean Dene,Consumable Cleaning Materials,15.26,LAKE CLEANING & CATERING SUPPLIES
Revenue,Adult Services,Adult Social Care,Learning Disab Supp (to be reallocated),5105707877,18.05.2022,Plean Dene,Consumable Cleaning Materials,22.74,LAKE CLEANING & CATERING SUPPLIES
Revenue,Adult Services,Adult Social Care,Learning Disab Supp (to be reallocated),5105707262,18.05.2022,Plean Dene,Consumable Cleaning Materials,15.26,LAKE CLEANING & CATERING SUPPLIES
Revenue,Adult Services,Adult Social Care,Learning Disab Supp (to be reallocated),5105708387,20.05.2022,Plean Dene,Consumable Cleaning Materials,18,LAKE CLEANING & CATERING SUPPLIES
Revenue,Adult Services,Adult Social Care,Learning Disab Supp (to be reallocated),5105709129,27.05.2022,Plean Dene,Consumable Cleaning Materials,65.57,LAKE CLEANING & CATERING SUPPLIES
Revenue,Adult Services,Adult Social Care,Learning Disab Supp (to be reallocated),5105706457,18.05.2022,Plean Dene,Consumable Cleaning Materials,16.14,LAKE CLEANING & CATERING SUPPLIES
Revenue,Adult Services,Adult Social Care,Learning Disab Supp (to be reallocated),5105706913,18.05.2022,Plean Dene,Consumable Cleaning Materials,-50.32,LAKE CLEANING & CATERING SUPPLIES
Revenue,Childrens Services,Children's & Education Services,Children Looked After,5105706859,06.05.2022,Beaulieu House,General Materials,337.9,LAKE CLEANING & CATERING SUPPLIES
Revenue,Childrens Services,Children's & Education Services,Children Looked After,5105709284,27.05.2022,Beaulieu House,General Materials,363.88,LAKE CLEANING & CATERING SUPPLIES
Revenue,Childrens Services,Children's & Education Services,Children Looked After,5105706582,04.05.2022,Beaulieu House,General Materials,140.48,LAKE CLEANING & CATERING SUPPLIES
Revenue,Childrens Services,Children's & Education Services,Children Looked After,5105706583,04.05.2022,Beaulieu House,General Materials,136.35,LAKE CLEANING & CATERING SUPPLIES
Revenue,Childrens Services,Children's & Education Services,Children Looked After,5105707828,18.05.2022,Beaulieu House,General Materials,108.98,LAKE CLEANING & CATERING SUPPLIES
Revenue,Neighbourhoods,Cultural and Related Services,Recreation and Sport,5105709128,27.05.2022,Westridge Squash Courts,Consumable Cleaning Materials,67.87,LAKE CLEANING & CATERING SUPPLIES
Revenue,Neighbourhoods,Cultural and Related Services,Recreation and Sport,5105707265,11.05.2022,The Heights,Consumable Cleaning Materials,75.05,LAKE CLEANING & CATERING SUPPLIES
Revenue,Neighbourhoods,Cultural and Related Services,Recreation and Sport,5105708036,18.05.2022,The Heights,Consumable Cleaning Materials,9.92,LAKE CLEANING & CATERING SUPPLIES
Revenue,Neighbourhoods,Cultural and Related Services,Recreation and Sport,5105709574,30.05.2022,The Heights,Consumable Cleaning Materials,63.24,LAKE CLEANING & CATERING SUPPLIES
Revenue,Neighbourhoods,Cultural and Related Services,Recreation and Sport,5105707886,18.05.2022,The Heights,Consumable Cleaning Materials,196.07,LAKE CLEANING & CATERING SUPPLIES
Revenue,Neighbourhoods,Cultural and Related Services,Recreation and Sport,5105709325,27.05.2022,The Heights,Consumable Cleaning Materials,151.79,LAKE CLEANING & CATERING SUPPLIES
Revenue,Neighbourhoods,Cultural and Related Services,Recreation and Sport,5105709405,27.05.2022,The Heights,Consumable Cleaning Materials,239.71,LAKE CLEANING & CATERING SUPPLIES
Revenue,Adult Services,Adult Social Care,Central Codes (to be reallocated),5105707737,18.05.2022,Community Reablement,Stationery,-43.7,BATES OFFICE SERVICES LIMITED
Revenue,Adult Services,Adult Social Care,Central Codes (to be reallocated),5105707737,18.05.2022,Community Reablement,Stationery,-44.2,BATES OFFICE SERVICES LIMITED
Revenue,Adult Services,Adult Social Care,Central Codes (to be reallocated),5105707737,18.05.2022,Community Reablement,Stationery,-14,BATES OFFICE SERVICES LIMITED
Revenue,Adult Services,Adult Social Care,Central Codes (to be reallocated),5105707737,18.05.2022,Community Reablement,Stationery,-2.96,BATES OFFICE SERVICES LIMITED
Revenue,Adult Services,Adult Social Care,Central Codes (to be reallocated),5105703796,18.05.2022,Community Reablement,Stationery,43.7,BATES OFFICE SERVICES LIMITED
Revenue,Adult Services,Adult Social Care,Central Codes (to be reallocated),5105703796,18.05.2022,Community Reablement,Stationery,44.2,BATES OFFICE SERVICES LIMITED
Revenue,Adult Services,Adult Social Care,Central Codes (to be reallocated),5105703796,18.05.2022,Community Reablement,Stationery,14,BATES OFFICE SERVICES LIMITED
Revenue,Adult Services,Adult Social Care,Central Codes (to be reallocated),5105703796,18.05.2022,Community Reablement,Stationery,2.96,BATES OFFICE SERVICES LIMITED
Revenue,Childrens Services,Children's & Education Services,Children Looked After,5105707364,11.05.2022,Purchased Residential,Charges from Independent Providers,"17,520.71",BEAUFORT SUPPORT SERVICES LTD
Revenue,Childrens Services,Children's & Education Services,Management & Support Services,5105705128,04.05.2022,Independent Schools Non-Special Educational Needs,Charges from Independent Providers,"2,160.00",BEECHFIELD EDUCATION LIMITED
Revenue,Childrens Services,Children's & Education Services,Management & Support Services,5105707479,18.05.2022,Independent Schools Non-Special Educational Needs,Charges from Independent Providers,990,BEECHFIELD EDUCATION LIMITED
Revenue,Childrens Services,Children's & Education Services,Children Looked After,5105706442,04.05.2022,Leaving Care Costs,Support Children,19.99,REDACTED PERSONAL DATA
Revenue,Childrens Services,Children's & Education Services,Children Looked After,5105706442,04.05.2022,Leaving Care Costs,Transport of Clients,96.5,REDACTED PERSONAL DATA
Revenue,Childrens Services,Children's & Education Services,Children Looked After,5105706451,06.05.2022,Purchased Residential,Charges from Independent Providers,"3,850.00",BENECARE FOSTERING LTD
Revenue,Childrens Services,Children's & Education Services,Children Looked After,5105706452,06.05.2022,Purchased Residential,Charges from Independent Providers,"3,850.00",BENECARE FOSTERING LTD
Revenue,Childrens Services,Children's & Education Services,Children Looked After,5105706453,06.05.2022,Purchased Residential,Charges from Independent Providers,"3,850.00",BENECARE FOSTERING LTD
Revenue,Childrens Services,Children's & Education Services,Children Looked After,5105706454,06.05.2022,Purchased Residential,Charges from Independent Providers,"3,850.00",BENECARE FOSTERING LTD
Revenue,Childrens Services,Children's & Education Services,Children Looked After,5105709363,27.05.2022,Purchased Residential,Charges from Independent Providers,"3,850.00",BENECARE FOSTERING LTD
Revenue,Childrens Services,Children's & Education Services,Children Looked After,5105709364,27.05.2022,Purchased Residential,Charges from Independent Providers,"3,850.00",BENECARE FOSTERING LTD
Revenue,Childrens Services,Children's & Education Services,Children Looked After,5105709365,27.05.2022,Purchased Residential,Charges from Independent Providers,"3,850.00",BENECARE FOSTERING LTD
Revenue,Childrens Services,Children's & Education Services,Children Looked After,5105709366,27.05.2022,Purchased Residential,Charges from Independent Providers,"3,850.00",BENECARE FOSTERING LTD
Revenue,Adult Services,Housing Services,Homelessness,5105708498,25.05.2022,B&B Properties,Accommodation Costs - Bed & Breakfast,"7,775.00",BERTRAM LODGE
Revenue,Regeneration,Planning services,Economic Development,5105707053,11.05.2022,Director of Regeneration,Stationery,5.46,BETA PAK LTD
Revenue,Regeneration,Planning services,Economic Development,5105707053,11.05.2022,Director of Regeneration,Stationery,0.42,BETA PAK LTD
Revenue,Resources,Central Services,Central Services to the Public,5105707719,13.05.2022,Electoral Registration Office,Stationery,5.53,BETA PAK LTD
Revenue,Adult Services,Adult Social Care,Central Codes (to be reallocated),5105707247,11.05.2022,Gouldings Resource Centre,Consumable Cleaning Materials,184.11,BETA PAK LTD
Revenue,Adult Services,Adult Social Care,Central Codes (to be reallocated),5105709250,27.05.2022,Gouldings Resource Centre,Stationery,26.98,BETA PAK LTD
Revenue,Adult Services,Adult Social Care,Central Codes (to be reallocated),5105708673,25.05.2022,Gouldings Resource Centre,Stationery,26.98,BETA PAK LTD
Revenue,Adult Services,Adult Social Care,Central Codes (to be reallocated),5105708519,25.05.2022,Gouldings Resource Centre,Stationery,4.02,BETA PAK LTD
Revenue,Adult Services,Adult Social Care,Central Codes (to be reallocated),5105708519,25.05.2022,Gouldings Resource Centre,Stationery,5.59,BETA PAK LTD
Revenue,Adult Services,Adult Social Care,Central Codes (to be reallocated),5105708404,25.05.2022,Gouldings Resource Centre,Stationery,5.65,BETA PAK LTD
Revenue,Adult Services,Adult Social Care,Central Codes (to be reallocated),5105708404,25.05.2022,Gouldings Resource Centre,Stationery,5.53,BETA PAK LTD
Revenue,Adult Services,Adult Social Care,Central Codes (to be reallocated),5105708404,25.05.2022,Gouldings Resource Centre,Stationery,4.02,BETA PAK LTD
Revenue,Adult Services,Adult Social Care,Central Codes (to be reallocated),5105708404,25.05.2022,Gouldings Resource Centre,Stationery,2.42,BETA PAK LTD
Revenue,Adult Services,Adult Social Care,Central Codes (to be reallocated),5105708519,25.05.2022,Gouldings Resource Centre,Stationery,1.34,BETA PAK LTD
Revenue,Adult Services,Adult Social Care,Central Codes (to be reallocated),5105708519,25.05.2022,Gouldings Resource Centre,Stationery,12.1,BETA PAK LTD
Revenue,Adult Services,Adult Social Care,Central Codes (to be reallocated),5105708519,25.05.2022,Gouldings Resource Centre,Stationery,3.96,BETA PAK LTD
Revenue,Adult Services,Adult Social Care,Central Codes (to be reallocated),5105708519,25.05.2022,Gouldings Resource Centre,Stationery,3.23,BETA PAK LTD
Revenue,Adult Services,Adult Social Care,Central Codes (to be reallocated),5105708519,25.05.2022,Gouldings Resource Centre,Stationery,5.34,BETA PAK LTD
Revenue,Adult Services,Adult Social Care,Central Codes (to be reallocated),5105708519,25.05.2022,Gouldings Resource Centre,Stationery,7.89,BETA PAK LTD
Revenue,Adult Services,Adult Social Care,Central Codes (to be reallocated),5105709254,27.05.2022,Gouldings Resource Centre,Consumable Cleaning Materials,117.4,BETA PAK LTD
Revenue,Adult Services,Adult Social Care,Central Codes (to be reallocated),5105708519,25.05.2022,Gouldings Resource Centre,Stationery,5.92,BETA PAK LTD
Revenue,Adult Services,Adult Social Care,Central Codes (to be reallocated),5105708306,20.05.2022,Gouldings Resource Centre,Consumable Cleaning Materials,4.98,BETA PAK LTD
Revenue,Adult Services,Adult Social Care,Central Codes (to be reallocated),5105707898,18.05.2022,Gouldings Resource Centre,Consumable Cleaning Materials,2.08,BETA PAK LTD
Revenue,Adult Services,Adult Social Care,Central Codes (to be reallocated),5105708667,25.05.2022,Gouldings Resource Centre,Consumable Cleaning Materials,89.57,BETA PAK LTD
Revenue,Adult Services,Adult Social Care,Central Codes (to be reallocated),5105709253,27.05.2022,Gouldings Resource Centre,Consumable Cleaning Materials,44,BETA PAK LTD
Revenue,Neighbourhoods,Highways and Transport Services,Management and Support Services,5105708421,26.05.2022,Highways PFI Project,Stationery,12.59,BETA PAK LTD
Revenue,Neighbourhoods,Highways and Transport Services,Management and Support Services,5105708516,25.05.2022,Highways PFI Project,Stationery,13.49,BETA PAK LTD
Revenue,Neighbourhoods,Highways and Transport Services,Management and Support Services,5105708516,25.05.2022,Highways PFI Project,Stationery,4.02,BETA PAK LTD
Revenue,Neighbourhoods,Highways and Transport Services,Management and Support Services,5105708421,26.05.2022,Highways PFI Project,Stationery,4.42,BETA PAK LTD
Revenue,Neighbourhoods,Highways and Transport Services,Management and Support Services,5105708421,26.05.2022,Highways PFI Project,Stationery,11.9,BETA PAK LTD
Revenue,Neighbourhoods,Highways and Transport Services,Management and Support Services,5105708421,26.05.2022,Highways PFI Project,Stationery,7.56,BETA PAK LTD
Revenue,Childrens Services,Children's & Education Services,Support Services,5105707897,18.05.2022,Learning & Development Running Costs,Stationery,94.12,BETA PAK LTD
Revenue,Childrens Services,Children's & Education Services,Other Education and Community Budget,5105706529,11.05.2022,Pupil Resources Business Support Team,Stationery,13.49,BETA PAK LTD
Revenue,Adult Services,Adult Social Care,Social Support - Support for Carer,5105708791,27.05.2022,Westminster House,Operational Equipment,241.14,BETA PAK LTD
Revenue,Adult Services,Adult Social Care,Social Support - Support for Carer,5105708311,20.05.2022,Westminster House,Operational Equipment,7.99,BETA PAK LTD
Revenue,Adult Services,Adult Social Care,Social Support - Support for Carer,5105706350,04.05.2022,Westminster House,Operational Equipment,171.16,BETA PAK LTD
Revenue,Adult Services,Adult Social Care,Social Support - Support for Carer,5105709454,30.05.2022,Westminster House,Operational Equipment,15.91,BETA PAK LTD
Revenue,Adult Services,Adult Social Care,Social Support - Support for Carer,5105709318,27.05.2022,Westminster House,Operational Equipment,4.99,BETA PAK LTD
Revenue,Adult Services,Adult Social Care,Social Support - Support for Carer,5105709319,27.05.2022,Westminster House,Operational Equipment,135.66,BETA PAK LTD
Revenue,Adult Services,Adult Social Care,Social Support - Support for Carer,5105709340,27.05.2022,Westminster House,Operational Equipment,70,BETA PAK LTD
Revenue,Adult Services,Adult Social Care,Social Support - Support for Carer,5105707287,13.05.2022,Westminster House,Operational Equipment,216.48,BETA PAK LTD
Revenue,Neighbourhoods,Cultural and Related Services,Service Management and Support Services,5105706464,06.05.2022,Leisure Management & Admin,Stationery,26.98,BETA PAK LTD
Revenue,Neighbourhoods,Cultural and Related Services,Service Management and Support Services,5105706529,11.05.2022,Leisure Management & Admin,Stationery,26.98,BETA PAK LTD
Revenue,Neighbourhoods,Cultural and Related Services,Culture and Heritage,5105706598,04.05.2022,Archaeology,Stationery,1.4,BETA PAK LTD
Revenue,Neighbourhoods,Cultural and Related Services,Culture and Heritage,5105706598,04.05.2022,Archaeology,Stationery,1.81,BETA PAK LTD
Revenue,Neighbourhoods,Cultural and Related Services,Culture and Heritage,5105706598,04.05.2022,Archaeology,Stationery,9.04,BETA PAK LTD
Revenue,Neighbourhoods,Cultural and Related Services,Culture and Heritage,5105706598,04.05.2022,Archaeology,Stationery,3.9,BETA PAK LTD
Revenue,Neighbourhoods,Cultural and Related Services,Culture and Heritage,5105706532,04.05.2022,Archaeology,Stationery,5.65,BETA PAK LTD
Revenue,Neighbourhoods,Cultural and Related Services,Culture and Heritage,5105706532,04.05.2022,Archaeology,Stationery,11.28,BETA PAK LTD
Revenue,Neighbourhoods,Cultural and Related Services,Culture and Heritage,5105706532,04.05.2022,Archaeology,Stationery,15.37,BETA PAK LTD
Revenue,Neighbourhoods,Cultural and Related Services,Culture and Heritage,5105707085,11.05.2022,Archaeology,Stationery,43.64,BETA PAK LTD
Revenue,Neighbourhoods,Cultural and Related Services,Culture and Heritage,5105706598,04.05.2022,Archaeology,Stationery,1.42,BETA PAK LTD
Revenue,Neighbourhoods,Cultural and Related Services,Recreation and Sport,5105708401,20.05.2022,Medina Leisure Centre,Stationery,33.54,BETA PAK LTD
Revenue,Neighbourhoods,Cultural and Related Services,Recreation and Sport,5105708401,20.05.2022,Medina Leisure Centre,Stationery,1.82,BETA PAK LTD
Revenue,Neighbourhoods,Cultural and Related Services,Recreation and Sport,5105708401,20.05.2022,Medina Leisure Centre,Stationery,7.08,BETA PAK LTD
Revenue,Neighbourhoods,Cultural and Related Services,Recreation and Sport,5105708007,20.05.2022,Medina Leisure Centre,Stationery,85.44,BETA PAK LTD
Revenue,Adult Services,Adult Social Care,Learning Disab Supp (to be reallocated),5105706397,13.05.2022,Plean Dene,Operational Equipment,37.47,BETA PAK LTD
Revenue,Adult Services,Adult Social Care,Learning Disab Supp (to be reallocated),5105707894,18.05.2022,Plean Dene,Operational Equipment,11,BETA PAK LTD
Revenue,Adult Services,Adult Social Care,Learning Disab Supp (to be reallocated),5105708022,18.05.2022,Plean Dene,Operational Equipment,153.37,BETA PAK LTD
Revenue,Adult Services,Adult Social Care,Learning Disab Supp (to be reallocated),5105707069,18.05.2022,Plean Dene,Operational Equipment,61.5,BETA PAK LTD
Revenue,Adult Services,Adult Social Care,Learning Disab Supp (to be reallocated),5105708002,18.05.2022,Saxonbury,Operational Equipment,127.63,BETA PAK LTD
Revenue,Resources,Central Services,Support Services,5105708310,20.05.2022,County Hall Central Mail Room,Stationery,1.32,BETA PAK LTD
Revenue,Resources,Central Services,Support Services,5105707721,13.05.2022,County Hall Central Mail Room,Stationery,9.7,BETA PAK LTD
Revenue,Resources,Central Services,Support Services,5105707198,11.05.2022,County Hall Central Mail Room,Stationery,3.96,BETA PAK LTD
Revenue,Resources,Central Services,Support Services,5105707065,27.05.2022,County Hall Central Mail Room,Stationery,38.8,BETA PAK LTD
Revenue,Resources,Central Services,Support Services,5105707065,27.05.2022,County Hall Central Mail Room,Stationery,13.62,BETA PAK LTD
Revenue,Neighbourhoods,Cultural and Related Services,Recreation and Sport,5105708007,20.05.2022,Medina Leisure Centre,Stationery,13.49,BETA PAK LTD
Revenue,Neighbourhoods,Cultural and Related Services,Recreation and Sport,5105709314,27.05.2022,Medina Leisure Centre,Stationery,1.56,BETA PAK LTD
Revenue,Childrens Services,Children's & Education Services,Children Looked After,5105708305,20.05.2022,Beaulieu House,Stationery,3.96,BETA PAK LTD
Revenue,Childrens Services,Children's & Education Services,Children Looked After,5105708013,18.05.2022,Beaulieu House,Stationery,4.31,BETA PAK LTD
Revenue,Childrens Services,Children's & Education Services,Children Looked After,5105708013,18.05.2022,Beaulieu House,Stationery,19.4,BETA PAK LTD
Revenue,Childrens Services,Children's & Education Services,Children Looked After,5105708013,18.05.2022,Beaulieu House,Stationery,0.33,BETA PAK LTD
Revenue,Childrens Services,Children's & Education Services,Children Looked After,5105708013,18.05.2022,Beaulieu House,Stationery,1.56,BETA PAK LTD
Revenue,Childrens Services,Children's & Education Services,Children Looked After,5105708013,18.05.2022,Beaulieu House,Stationery,11.28,BETA PAK LTD
Revenue,Childrens Services,Children's & Education Services,Safeguarding Children/Young Peoples Svs,5105708422,20.05.2022,Children's office costs,Stationery,1.82,BETA PAK LTD
Revenue,Childrens Services,Children's & Education Services,Safeguarding Children/Young Peoples Svs,5105708520,25.05.2022,Children's office costs,Stationery,19.4,BETA PAK LTD
Revenue,Childrens Services,Children's & Education Services,Safeguarding Children/Young Peoples Svs,5105708520,25.05.2022,Children's office costs,Stationery,18.2,BETA PAK LTD
Revenue,Childrens Services,Children's & Education Services,Safeguarding Children/Young Peoples Svs,5105708520,25.05.2022,Children's office costs,Stationery,13.62,BETA PAK LTD
Revenue,Childrens Services,Children's & Education Services,Safeguarding Children/Young Peoples Svs,5105707198,11.05.2022,Children's office costs,Stationery,59.5,BETA PAK LTD
Revenue,Childrens Services,Children's & Education Services,Safeguarding Children/Young Peoples Svs,5105707198,11.05.2022,Children's office costs,Stationery,5.14,BETA PAK LTD
Revenue,Childrens Services,Children's & Education Services,Safeguarding Children/Young Peoples Svs,5105706529,11.05.2022,Children's office costs,Stationery,53.96,BETA PAK LTD
Revenue,Childrens Services,Children's & Education Services,Safeguarding Children/Young Peoples Svs,5105707065,27.05.2022,Children's office costs,Stationery,13.62,BETA PAK LTD
Revenue,Childrens Services,Children's & Education Services,Safeguarding Children/Young Peoples Svs,5105707065,27.05.2022,Children's office costs,Stationery,5.53,BETA PAK LTD
Revenue,Childrens Services,Children's & Education Services,Safeguarding Children/Young Peoples Svs,5105707065,27.05.2022,Children's office costs,Stationery,19.98,BETA PAK LTD
Revenue,Childrens Services,Children's & Education Services,Safeguarding Children/Young Peoples Svs,5105707065,27.05.2022,Children's office costs,Stationery,35.2,BETA PAK LTD
Revenue,Childrens Services,Children's & Education Services,Safeguarding Children/Young Peoples Svs,5105707065,27.05.2022,Children's office costs,Stationery,23.14,BETA PAK LTD
Revenue,Childrens Services,Children's & Education Services,Safeguarding Children/Young Peoples Svs,5105707065,27.05.2022,Children's office costs,Stationery,27.24,BETA PAK LTD
Revenue,Childrens Services,Children's & Education Services,Safeguarding Children/Young Peoples Svs,5105707065,27.05.2022,Children's office costs,Stationery,2.63,BETA PAK LTD
Revenue,Childrens Services,Children's & Education Services,Safeguarding Children/Young Peoples Svs,5105707065,27.05.2022,Children's office costs,Stationery,11.06,BETA PAK LTD
Revenue,Childrens Services,Children's & Education Services,Safeguarding Children/Young Peoples Svs,5105707065,27.05.2022,Children's office costs,Stationery,1.98,BETA PAK LTD
Revenue,Childrens Services,Children's & Education Services,Safeguarding Children/Young Peoples Svs,5105707065,27.05.2022,Children's office costs,Stationery,1.98,BETA PAK LTD
Revenue,Childrens Services,Children's & Education Services,Safeguarding Children/Young Peoples Svs,5105707065,27.05.2022,Children's office costs,Stationery,1.09,BETA PAK LTD
Revenue,Childrens Services,Children's & Education Services,Safeguarding Children/Young Peoples Svs,5105707065,27.05.2022,Children's office costs,Stationery,22.56,BETA PAK LTD
Revenue,Childrens Services,Children's & Education Services,Safeguarding Children/Young Peoples Svs,5105707065,27.05.2022,Children's office costs,Stationery,3.25,BETA PAK LTD
Revenue,Childrens Services,Children's & Education Services,Safeguarding Children/Young Peoples Svs,5105707065,27.05.2022,Children's office costs,Stationery,0.82,BETA PAK LTD
Revenue,Childrens Services,Children's & Education Services,Safeguarding Children/Young Peoples Svs,5105707065,27.05.2022,Children's office costs,Stationery,22.56,BETA PAK LTD
Revenue,Childrens Services,Children's & Education Services,Safeguarding Children/Young Peoples Svs,5105707065,27.05.2022,Children's office costs,Stationery,30.74,BETA PAK LTD
Revenue,Resources,Central Services,Support Services,5105708520,25.05.2022,Legal Services Section,Stationery,22.56,BETA PAK LTD
Revenue,Resources,Central Services,Support Services,5105707719,13.05.2022,Legal Services Section,Stationery,11.9,BETA PAK LTD
Revenue,Resources,Central Services,Support Services,5105707719,13.05.2022,Legal Services Section,Stationery,4.31,BETA PAK LTD
Revenue,Resources,Central Services,Support Services,5105707719,13.05.2022,Legal Services Section,Stationery,3.02,BETA PAK LTD
Revenue,Resources,Central Services,Support Services,5105707719,13.05.2022,Legal Services Section,Stationery,16.6,BETA PAK LTD
Revenue,Resources,Central Services,Support Services,5105706464,06.05.2022,Legal Services Section,Stationery,53.96,BETA PAK LTD
Revenue,Neighbourhoods,Central Services,Central Services to the Public,5105707722,13.05.2022,"Registration Of Births,Deaths, Marriages",Stationery,16.77,BETA PAK LTD
Revenue,Neighbourhoods,Central Services,Central Services to the Public,5105707722,13.05.2022,"Registration Of Births,Deaths, Marriages",Stationery,15.37,BETA PAK LTD
Revenue,Neighbourhoods,Central Services,Central Services to the Public,5105707722,13.05.2022,"Registration Of Births,Deaths, Marriages",Stationery,1.98,BETA PAK LTD
Revenue,Neighbourhoods,Central Services,Central Services to the Public,5105707722,13.05.2022,"Registration Of Births,Deaths, Marriages",Stationery,3.22,BETA PAK LTD
Revenue,Neighbourhoods,Central Services,Central Services to the Public,5105707722,13.05.2022,"Registration Of Births,Deaths, Marriages",Stationery,5.26,BETA PAK LTD
Revenue,Adult Services,Adult Social Care,Commissioning & Service Delivery,5105708014,18.05.2022,Group Manager Leaning Disability Homes,Stationery,13.49,BETA PAK LTD
Revenue,Adult Services,Adult Social Care,Commissioning & Service Delivery,5105707891,25.05.2022,Group Manager Leaning Disability Homes,Stationery,3.64,BETA PAK LTD
Revenue,Adult Services,Adult Social Care,Commissioning & Service Delivery,5105707891,25.05.2022,Group Manager Leaning Disability Homes,Stationery,4.84,BETA PAK LTD
Revenue,Adult Services,Adult Social Care,Commissioning & Service Delivery,5105707891,25.05.2022,Group Manager Leaning Disability Homes,Stationery,2.96,BETA PAK LTD
Revenue,Adult Services,Adult Social Care,Commissioning & Service Delivery,5105707720,18.05.2022,Group Manager Leaning Disability Homes,Stationery,2.63,BETA PAK LTD
Revenue,Adult Services,Adult Social Care,Central Codes (to be reallocated),5105708786,27.05.2022,Community Reablement,Stationery,15.21,BETA PAK LTD
Revenue,Adult Services,Adult Social Care,Central Codes (to be reallocated),5105708661,27.05.2022,Community Reablement,Stationery,47.2,BETA PAK LTD
Revenue,Adult Services,Adult Social Care,Central Codes (to be reallocated),5105709252,27.05.2022,Community Reablement,Professional Services,2.55,BETA PAK LTD
Revenue,Adult Services,Adult Social Care,Central Codes (to be reallocated),5105708726,25.05.2022,Community Reablement,Professional Services,11.9,BETA PAK LTD
Revenue,Adult Services,Adult Social Care,Central Codes (to be reallocated),5105708513,25.05.2022,Community Reablement,Professional Services,13.49,BETA PAK LTD
Revenue,Adult Services,Adult Social Care,Central Codes (to be reallocated),5105708513,25.05.2022,Community Reablement,Professional Services,35.7,BETA PAK LTD
Revenue,Adult Services,Adult Social Care,Central Codes (to be reallocated),5105708513,25.05.2022,Community Reablement,Professional Services,11.06,BETA PAK LTD
Revenue,Adult Services,Adult Social Care,Central Codes (to be reallocated),5105708403,20.05.2022,Community Reablement,Professional Services,75.56,BETA PAK LTD
Revenue,Adult Services,Adult Social Care,Central Codes (to be reallocated),5105708403,20.05.2022,Community Reablement,Professional Services,226.68,BETA PAK LTD
Revenue,Adult Services,Adult Social Care,Central Codes (to be reallocated),5105708403,20.05.2022,Community Reablement,Professional Services,3.44,BETA PAK LTD
Revenue,Adult Services,Adult Social Care,Central Codes (to be reallocated),5105708403,20.05.2022,Community Reablement,Professional Services,0.46,BETA PAK LTD
Revenue,Adult Services,Adult Social Care,Central Codes (to be reallocated),5105707995,18.05.2022,Community Reablement,Professional Services,13.49,BETA PAK LTD
Revenue,Neighbourhoods,Environmental & Regulatory Services,Service Management and Support Services,5105706529,11.05.2022,Regulatory Management & Admin Support,Stationery,32.3,BETA PAK LTD
Revenue,Neighbourhoods,Environmental & Regulatory Services,Service Management and Support Services,5105706600,11.05.2022,Regulatory Management & Admin Support,Stationery,19.18,BETA PAK LTD
Revenue,Adult Services,Adult Social Care,Commissioning & Service Delivery,5105708422,20.05.2022,ASC County Hall office costs,Stationery,35.7,BETA PAK LTD
Revenue,Adult Services,Adult Social Care,Commissioning & Service Delivery,5105708422,20.05.2022,ASC County Hall office costs,Stationery,5.53,BETA PAK LTD
Revenue,Adult Services,Adult Social Care,Commissioning & Service Delivery,5105708520,25.05.2022,ASC County Hall office costs,Stationery,35.7,BETA PAK LTD
Revenue,Adult Services,Adult Social Care,Commissioning & Service Delivery,5105708520,25.05.2022,ASC County Hall office costs,Stationery,11.06,BETA PAK LTD
Revenue,Adult Services,Adult Social Care,Commissioning & Service Delivery,5105708520,25.05.2022,ASC County Hall office costs,Stationery,12.59,BETA PAK LTD
Revenue,Adult Services,Adult Social Care,Commissioning & Service Delivery,5105707721,13.05.2022,ASC County Hall office costs,Stationery,4.31,BETA PAK LTD
Revenue,Adult Services,Adult Social Care,Commissioning & Service Delivery,5105707198,11.05.2022,ASC County Hall office costs,Stationery,47.6,BETA PAK LTD
Revenue,Adult Services,Adult Social Care,Commissioning & Service Delivery,5105709251,27.05.2022,ASC County Hall office costs,Stationery,5.59,BETA PAK LTD
Revenue,Adult Services,Adult Social Care,Commissioning & Service Delivery,5105707065,27.05.2022,ASC County Hall office costs,Stationery,4.84,BETA PAK LTD
Revenue,Adult Services,Adult Social Care,Commissioning & Service Delivery,5105707065,27.05.2022,ASC County Hall office costs,Stationery,19.64,BETA PAK LTD
Revenue,Adult Services,Adult Social Care,Commissioning & Service Delivery,5105707065,27.05.2022,ASC County Hall office costs,Stationery,23.14,BETA PAK LTD
Revenue,Adult Services,Adult Social Care,Commissioning & Service Delivery,5105707065,27.05.2022,ASC County Hall office costs,Stationery,16.59,BETA PAK LTD
Revenue,Adult Services,Adult Social Care,Commissioning & Service Delivery,5105707065,27.05.2022,ASC County Hall office costs,Stationery,3.22,BETA PAK LTD
Revenue,Adult Services,Adult Social Care,Commissioning & Service Delivery,5105707065,27.05.2022,ASC County Hall office costs,Stationery,3.44,BETA PAK LTD
Revenue,Adult Services,Adult Social Care,Commissioning & Service Delivery,5105707065,27.05.2022,ASC County Hall office costs,Stationery,3.44,BETA PAK LTD
Revenue,Adult Services,Adult Social Care,Commissioning & Service Delivery,5105707065,27.05.2022,ASC County Hall office costs,Stationery,3.96,BETA PAK LTD
Revenue,Adult Services,Adult Social Care,Commissioning & Service Delivery,5105707065,27.05.2022,ASC County Hall office costs,Stationery,3.96,BETA PAK LTD
Revenue,Adult Services,Adult Social Care,Commissioning & Service Delivery,5105707065,27.05.2022,ASC County Hall office costs,Stationery,6.08,BETA PAK LTD
Revenue,Adult Services,Adult Social Care,Commissioning & Service Delivery,5105707065,27.05.2022,ASC County Hall office costs,Stationery,32.32,BETA PAK LTD
Revenue,Adult Services,Adult Social Care,Commissioning & Service Delivery,5105707065,27.05.2022,ASC County Hall office costs,Stationery,31.84,BETA PAK LTD
Revenue,Adult Services,Adult Social Care,Commissioning & Service Delivery,5105707065,27.05.2022,ASC County Hall office costs,Stationery,38.36,BETA PAK LTD
Revenue,Adult Services,Adult Social Care,Commissioning & Service Delivery,5105707065,27.05.2022,ASC County Hall office costs,Stationery,32.3,BETA PAK LTD
Revenue,Adult Services,Adult Social Care,Commissioning & Service Delivery,5105707065,27.05.2022,ASC County Hall office costs,Stationery,23.8,BETA PAK LTD
Revenue,Adult Services,Adult Social Care,Commissioning & Service Delivery,5105707065,27.05.2022,ASC County Hall office costs,Stationery,5.26,BETA PAK LTD
Revenue,Adult Services,Adult Social Care,Commissioning & Service Delivery,5105707065,27.05.2022,ASC County Hall office costs,Stationery,6.04,BETA PAK LTD
Revenue,Adult Services,Adult Social Care,Commissioning & Service Delivery,5105707065,27.05.2022,ASC County Hall office costs,Stationery,2.3,BETA PAK LTD
Revenue,Adult Services,Adult Social Care,Commissioning & Service Delivery,5105706600,11.05.2022,ASC County Hall office costs,Stationery,11.18,BETA PAK LTD
Revenue,Adult Services,Adult Social Care,Commissioning & Service Delivery,5105706600,11.05.2022,ASC County Hall office costs,Stationery,5.59,BETA PAK LTD
Revenue,Adult Services,Adult Social Care,Commissioning & Service Delivery,5105706600,11.05.2022,ASC County Hall office costs,Stationery,2.38,BETA PAK LTD
Revenue,Adult Services,Adult Social Care,Commissioning & Service Delivery,5105706600,11.05.2022,ASC County Hall office costs,Stationery,23.8,BETA PAK LTD
Revenue,Adult Services,Adult Social Care,Social Care Activities,5105708520,25.05.2022,Hospital Team,Stationery,1.98,BETA PAK LTD
Revenue,Adult Services,Adult Social Care,Social Care Activities,5105707719,13.05.2022,Hospital Team,Stationery,11.9,BETA PAK LTD
Revenue,Adult Services,Adult Social Care,Social Care Activities,5105707719,13.05.2022,Hospital Team,Stationery,1.32,BETA PAK LTD
Revenue,Childrens Services,Children's & Education Services,Other Education and Community Budget,5105706600,11.05.2022,Skills and Participation,Stationery,15.64,BETA PAK LTD
Revenue,Childrens Services,Children's & Education Services,Other Education and Community Budget,5105706600,11.05.2022,Skills and Participation,Stationery,5.53,BETA PAK LTD
Revenue,Neighbourhoods,Highways and Transport Services,Parking Services,5105707065,27.05.2022,Parking Management,Stationery,19.4,BETA PAK LTD
Revenue,Neighbourhoods,Cultural and Related Services,Library Service,5105706532,04.05.2022,Public Libraries Central,Stationery,15.95,BETA PAK LTD
Revenue,Neighbourhoods,Cultural and Related Services,Library Service,5105706598,04.05.2022,Public Libraries Central,Stationery,3.05,BETA PAK LTD
Revenue,Resources,Central Services,Corporate and Democratic Core,5105707719,13.05.2022,Committee and Scrutiny Team,Stationery,16.15,BETA PAK LTD
Revenue,Resources,Central Services,Corporate and Democratic Core,5105707719,13.05.2022,Committee and Scrutiny Team,Stationery,1.98,BETA PAK LTD
Revenue,Resources,Central Services,Corporate and Democratic Core,5105707065,27.05.2022,Committee and Scrutiny Team,Stationery,15.92,BETA PAK LTD
Revenue,Resources,Central Services,Corporate and Democratic Core,5105707065,27.05.2022,Committee and Scrutiny Team,Stationery,14.63,BETA PAK LTD
Revenue,Resources,Central Services,Support Services,5105708520,25.05.2022,Revenues & Benefits Operational Support,Stationery,5.46,BETA PAK LTD
Revenue,Resources,Central Services,Support Services,5105708520,25.05.2022,Revenues & Benefits Operational Support,Stationery,3.28,BETA PAK LTD
Revenue,Resources,Central Services,Support Services,5105707719,13.05.2022,Revenues & Benefits Operational Support,Stationery,5.46,BETA PAK LTD
Revenue,Resources,Central Services,Support Services,5105707719,13.05.2022,Revenues & Benefits Operational Support,Stationery,3.28,BETA PAK LTD
Revenue,Resources,Central Services,Support Services,5105707719,13.05.2022,Revenues & Benefits Operational Support,Stationery,19.98,BETA PAK LTD
Revenue,Resources,Central Services,Support Services,5105707719,13.05.2022,Revenues & Benefits Operational Support,Stationery,5.46,BETA PAK LTD
Revenue,Resources,Central Services,Support Services,5105707719,13.05.2022,Revenues & Benefits Operational Support,Stationery,3.28,BETA PAK LTD
Revenue,Resources,Highways and Transport Services,Off Street Parking,5105707065,27.05.2022,Parking Services,Stationery,38.8,BETA PAK LTD
Revenue,Resources,Central Services,Support Services,5105707065,27.05.2022,Call Centre,Stationery,5.53,BETA PAK LTD
Revenue,Adult Services,Adult Social Care,Commissioning & Service Delivery,5105706529,11.05.2022,Director of Adult Social Services,Stationery,13.49,BETA PAK LTD
Revenue,Adult Services,Adult Social Care,Central Codes (to be reallocated),5105707064,11.05.2022,Adelaide Resource Centre,Consumable Cleaning Materials,291.31,BETA PAK LTD
Revenue,Adult Services,Adult Social Care,Central Codes (to be reallocated),5105709452,30.05.2022,Adelaide Resource Centre,Consumable Cleaning Materials,321.89,BETA PAK LTD
Revenue,Adult Services,Adult Social Care,Central Codes (to be reallocated),5105708370,20.05.2022,Adelaide Resource Centre,Consumable Cleaning Materials,77.9,BETA PAK LTD
Revenue,Adult Services,Adult Social Care,Central Codes (to be reallocated),5105708004,18.05.2022,Adelaide Resource Centre,Consumable Cleaning Materials,278.05,BETA PAK LTD
Revenue,Adult Services,Adult Social Care,Central Codes (to be reallocated),5105707290,11.05.2022,Adelaide Resource Centre,Consumable Cleaning Materials,89.88,BETA PAK LTD
Revenue,Adult Services,Adult Social Care,Central Codes (to be reallocated),5105708658,25.05.2022,Adelaide Resource Centre,Stationery,1.32,BETA PAK LTD
Revenue,Adult Services,Adult Social Care,Central Codes (to be reallocated),5105708785,25.05.2022,Adelaide Resource Centre,Stationery,7.96,BETA PAK LTD
Revenue,Adult Services,Adult Social Care,Central Codes (to be reallocated),5105708785,25.05.2022,Adelaide Resource Centre,Stationery,5.7,BETA PAK LTD
Revenue,Adult Services,Adult Social Care,Central Codes (to be reallocated),5105708785,25.05.2022,Adelaide Resource Centre,Stationery,8.3,BETA PAK LTD
Revenue,Adult Services,Adult Social Care,Central Codes (to be reallocated),5105708785,25.05.2022,Adelaide Resource Centre,Stationery,1.74,BETA PAK LTD
Revenue,Adult Services,Adult Social Care,Central Codes (to be reallocated),5105708785,25.05.2022,Adelaide Resource Centre,Stationery,6.04,BETA PAK LTD
Revenue,Adult Services,Adult Social Care,Central Codes (to be reallocated),5105708785,25.05.2022,Adelaide Resource Centre,Stationery,2.63,BETA PAK LTD
Revenue,Adult Services,Adult Social Care,Central Codes (to be reallocated),5105708785,25.05.2022,Adelaide Resource Centre,Stationery,4.76,BETA PAK LTD
Revenue,Adult Services,Adult Social Care,Central Codes (to be reallocated),5105708785,25.05.2022,Adelaide Resource Centre,Stationery,0.46,BETA PAK LTD
Revenue,Adult Services,Adult Social Care,Central Codes (to be reallocated),5105708785,25.05.2022,Adelaide Resource Centre,Stationery,3.96,BETA PAK LTD
Revenue,Adult Services,Adult Social Care,Central Codes (to be reallocated),5105708785,25.05.2022,Adelaide Resource Centre,Stationery,1.32,BETA PAK LTD
Revenue,Adult Services,Adult Social Care,Central Codes (to be reallocated),5105708785,25.05.2022,Adelaide Resource Centre,Stationery,1.64,BETA PAK LTD
Revenue,Adult Services,Adult Social Care,Central Codes (to be reallocated),5105708785,25.05.2022,Adelaide Resource Centre,Stationery,3.32,BETA PAK LTD
Revenue,Adult Services,Adult Social Care,Central Codes (to be reallocated),5105708785,25.05.2022,Adelaide Resource Centre,Stationery,5.14,BETA PAK LTD
Revenue,Adult Services,Adult Social Care,Central Codes (to be reallocated),5105708785,25.05.2022,Adelaide Resource Centre,Stationery,3.48,BETA PAK LTD
Revenue,Adult Services,Adult Social Care,Central Codes (to be reallocated),5105708785,25.05.2022,Adelaide Resource Centre,Stationery,1.42,BETA PAK LTD
Revenue,Adult Services,Adult Social Care,Central Codes (to be reallocated),5105708785,25.05.2022,Adelaide Resource Centre,Stationery,21.82,BETA PAK LTD
Revenue,Adult Services,Adult Social Care,Central Codes (to be reallocated),5105708518,25.05.2022,Adelaide Resource Centre,Stationery,11.9,BETA PAK LTD
Revenue,Adult Services,Adult Social Care,Central Codes (to be reallocated),5105707999,18.05.2022,Adelaide Resource Centre,Operational Equipment,46.8,BETA PAK LTD
Revenue,Resources,Central Services,Support Services,5105707065,27.05.2022,Help Centres Shared Service Centre,Stationery,16.77,BETA PAK LTD
Revenue,Adult Services,Adult Social Care,Central Codes (to be reallocated),5105709317,27.05.2022,Adelaide Resource Centre,Operational Equipment,59.88,BETA PAK LTD
Revenue,Adult Services,Adult Social Care,Central Codes (to be reallocated),5105707068,11.05.2022,Adelaide Resource Centre,Operational Equipment,47.94,BETA PAK LTD
Revenue,Adult Services,Adult Social Care,Central Codes (to be reallocated),5105706963,06.05.2022,Adelaide Resource Centre,Operational Equipment,16.47,BETA PAK LTD
Revenue,Regeneration,Planning services,Management & Support Services,5105705089,04.05.2022,Planning Management,Stationery,11.76,BETA PAK LTD
Revenue,Regeneration,Planning services,Management & Support Services,5105707722,13.05.2022,Planning Management,Stationery,5.53,BETA PAK LTD
Revenue,Regeneration,Planning services,Management & Support Services,5105707722,13.05.2022,Planning Management,Stationery,22.54,BETA PAK LTD
Revenue,Neighbourhoods,Environmental & Regulatory Services,"Cemetery, Cremation & Mortuary Services",5105708756,25.05.2022,Crematorium,Stationery,10.68,BETA PAK LTD
Revenue,Neighbourhoods,Environmental & Regulatory Services,"Cemetery, Cremation & Mortuary Services",5105708756,25.05.2022,Crematorium,Stationery,3.71,BETA PAK LTD
Revenue,Neighbourhoods,Environmental & Regulatory Services,"Cemetery, Cremation & Mortuary Services",5105708304,20.05.2022,Crematorium,Stationery,2.64,BETA PAK LTD
Revenue,Neighbourhoods,Environmental & Regulatory Services,"Cemetery, Cremation & Mortuary Services",5105707895,18.05.2022,Crematorium,Stationery,2.19,BETA PAK LTD
Revenue,Neighbourhoods,Environmental & Regulatory Services,"Cemetery, Cremation & Mortuary Services",5105707895,18.05.2022,Crematorium,Stationery,1.98,BETA PAK LTD
Revenue,Neighbourhoods,Environmental & Regulatory Services,"Cemetery, Cremation & Mortuary Services",5105707895,18.05.2022,Crematorium,Stationery,14.52,BETA PAK LTD
Revenue,Neighbourhoods,Environmental & Regulatory Services,"Cemetery, Cremation & Mortuary Services",5105707895,18.05.2022,Crematorium,Stationery,4.6,BETA PAK LTD
Revenue,Neighbourhoods,Environmental & Regulatory Services,"Cemetery, Cremation & Mortuary Services",5105707895,18.05.2022,Crematorium,Stationery,6.04,BETA PAK LTD
Revenue,Neighbourhoods,Environmental & Regulatory Services,"Cemetery, Cremation & Mortuary Services",5105707895,18.05.2022,Crematorium,Stationery,0.66,BETA PAK LTD
Revenue,Neighbourhoods,Environmental & Regulatory Services,"Cemetery, Cremation & Mortuary Services",5105707895,18.05.2022,Crematorium,Stationery,19.82,BETA PAK LTD
Revenue,Neighbourhoods,Environmental & Regulatory Services,"Cemetery, Cremation & Mortuary Services",5105707895,18.05.2022,Crematorium,Stationery,7.82,BETA PAK LTD
Revenue,Neighbourhoods,Environmental & Regulatory Services,"Cemetery, Cremation & Mortuary Services",5105708021,18.05.2022,Crematorium,Stationery,40.47,BETA PAK LTD
Revenue,Neighbourhoods,Cultural and Related Services,Recreation and Sport,5105705605,11.05.2022,The Heights,Stationery,11.57,BETA PAK LTD
Revenue,Neighbourhoods,Cultural and Related Services,Recreation and Sport,5105707896,18.05.2022,The Heights,Stationery,8.62,BETA PAK LTD
Revenue,Neighbourhoods,Highways and Transport Services,Management and Support Services,5105707997,18.05.2022,Highways PFI Project,Legal Fees - Other Parties,"4,145.00",BEVAN BRITTAN
Revenue,Neighbourhoods,Highways and Transport Services,Management and Support Services,5105707998,18.05.2022,Highways PFI Project,Legal Fees - Other Parties,"1,949.80",BEVAN BRITTAN
Revenue,Neighbourhoods,Highways and Transport Services,Management and Support Services,5105708000,18.05.2022,Highways PFI Project,Legal Fees - Other Parties,224,BEVAN BRITTAN
Revenue,Neighbourhoods,Highways and Transport Services,Management and Support Services,5105708047,18.05.2022,Highways PFI Project,Legal Fees - Other Parties,80,BEVAN BRITTAN
Capital,Place,Capital,Capital,5105706998,06.05.2022,Parks and Gardens Capital,Legal Fees - Other Parties,195.5,BEVAN BRITTAN
Capital,Place,Capital,Capital,5105707871,18.05.2022,Regeneration Projects,External Design and Supervision Fees,"2,355.00",BEVAN BRITTAN
Capital,Place,Capital,Capital,5105707058,11.05.2022,Regeneration Projects,External Design and Supervision Fees,680.2,BEVAN BRITTAN
Revenue,Neighbourhoods,Highways and Transport Services,Management and Support Services,5105707665,13.05.2022,Milestone 14 Dispute Resolution Process,Legal Fees - Other Parties,"31,265.00",BEVAN BRITTAN
Revenue,Neighbourhoods,Highways and Transport Services,Management and Support Services,5105707666,13.05.2022,Milestone 14 Dispute Resolution Process,Legal Fees - Other Parties,"7,363.00",BEVAN BRITTAN
Revenue,Regeneration,Central Services,Support Services,5105708438,25.05.2022,Public Sector Partnership Costs,Legal Fees - Other Parties,981.7,BEVAN BRITTAN
Revenue,Regeneration,Central Services,Support Services,5105705631,04.05.2022,Public Sector Partnership Costs,Legal Fees - Other Parties,"3,513.80",BEVAN BRITTAN
Revenue,Regeneration,Central Services,Support Services,5105703893,11.05.2022,Public Sector Partnership Costs,Legal Fees - Other Parties,"2,566.90",BEVAN BRITTAN
Revenue,Regeneration,Central Services,Support Services,5105709517,30.05.2022,Public Sector Partnership Costs,Legal Fees - Other Parties,"-2,566.90",BEVAN BRITTAN
Revenue,Resources,Central Services,Support Services,5105708379,20.05.2022,Litigation Costs,Legal Fees - Other Parties,74,BEVAN BRITTAN
Revenue,Adult Services,Adult Social Care,Central Codes (to be reallocated),5105708552,25.05.2022,Gouldings Resource Centre,Catering Purchases,331.46,3663 (BFS GROUP LTD)
Revenue,Adult Services,Adult Social Care,Central Codes (to be reallocated),5105708552,25.05.2022,Gouldings Resource Centre,Catering Purchases,5.92,3663 (BFS GROUP LTD)
Revenue,Adult Services,Adult Social Care,Central Codes (to be reallocated),5105708553,25.05.2022,Gouldings Resource Centre,Catering Purchases,164.23,3663 (BFS GROUP LTD)
Revenue,Adult Services,Adult Social Care,Central Codes (to be reallocated),5105708553,25.05.2022,Gouldings Resource Centre,Catering Purchases,38.34,3663 (BFS GROUP LTD)
Revenue,Adult Services,Adult Social Care,Central Codes (to be reallocated),5105707024,11.05.2022,Gouldings Resource Centre,Catering Purchases,99.88,3663 (BFS GROUP LTD)
Revenue,Adult Services,Adult Social Care,Central Codes (to be reallocated),5105707024,11.05.2022,Gouldings Resource Centre,Catering Purchases,60.08,3663 (BFS GROUP LTD)
Revenue,Neighbourhoods,Cultural and Related Services,Library Service,5105708481,25.05.2022,Public Libraries Central,Stationery,78.96,BIBLIOTHECA LTD
Revenue,Neighbourhoods,Cultural and Related Services,Library Service,5105706489,04.05.2022,Public Libraries Central,Stationery,89.46,BIBLIOTHECA LTD
Revenue,Public Health,Public Health,Central Codes (to be reallocated),5105707335,18.05.2022,Public Health Practitioners,Consultants Fees,"2,200.00",BIELEC CONSULTANCY
Revenue,Neighbourhoods,Highways and Transport Services,"Airports, Harbours & Toll Facilities",5105709331,27.05.2022,Ferry Management,"Refuse Collection, Disposal and Recycling Costs",77.2,BIFFA WASTE SERVICES LTD
Revenue,Neighbourhoods,Highways and Transport Services,"Airports, Harbours & Toll Facilities",5105706677,11.05.2022,Ferry Management,"Refuse Collection, Disposal and Recycling Costs",77.2,BIFFA WASTE SERVICES LTD
Revenue,Neighbourhoods,Highways and Transport Services,"Airports, Harbours & Toll Facilities",5105703835,20.05.2022,Ferry Management,"Refuse Collection, Disposal and Recycling Costs",96.5,BIFFA WASTE SERVICES LTD
Revenue,Adult Services,Adult Social Care,Central Codes (to be reallocated),5105706677,11.05.2022,Gouldings Resource Centre,"Refuse Collection, Disposal and Recycling Costs",200.52,BIFFA WASTE SERVICES LTD
Revenue,Adult Services,Adult Social Care,Central Codes (to be reallocated),5105703835,20.05.2022,Gouldings Resource Centre,"Refuse Collection, Disposal and Recycling Costs",250.65,BIFFA WASTE SERVICES LTD
Revenue,Adult Services,Adult Social Care,Central Codes (to be reallocated),5105709331,27.05.2022,Gouldings Resource Centre,"Refuse Collection, Disposal and Recycling Costs",200.52,BIFFA WASTE SERVICES LTD
Revenue,Neighbourhoods,Environmental & Regulatory Services,Waste Disposal,5105709076,27.05.2022,Lynnbottom Leachate Treatment Works,Payment to Private Contractors,"10,395.04",BIFFA WASTE SERVICES LTD
Revenue,Neighbourhoods,Environmental & Regulatory Services,Waste Disposal,5105709075,27.05.2022,Lynnbottom Leachate Treatment Works,Payment to Private Contractors,"17,916.86",BIFFA WASTE SERVICES LTD
Revenue,Regeneration,Central Services,Support Services,5105706677,11.05.2022,Parklands,"Refuse Collection, Disposal and Recycling Costs",5.6,BIFFA WASTE SERVICES LTD
Revenue,Regeneration,Central Services,Support Services,5105709331,27.05.2022,Parklands,"Refuse Collection, Disposal and Recycling Costs",5.6,BIFFA WASTE SERVICES LTD
Revenue,Regeneration,Central Services,Support Services,5105703835,20.05.2022,Parklands,"Refuse Collection, Disposal and Recycling Costs",7,BIFFA WASTE SERVICES LTD
Revenue,Childrens Services,Children's & Education Services,Other Education and Community Budget,5105706677,11.05.2022,SEND Independent Advice & Support,"Refuse Collection, Disposal and Recycling Costs",40.72,BIFFA WASTE SERVICES LTD
Revenue,Childrens Services,Children's & Education Services,Other Education and Community Budget,5105703835,20.05.2022,SEND Independent Advice & Support,"Refuse Collection, Disposal and Recycling Costs",50.9,BIFFA WASTE SERVICES LTD
Revenue,Childrens Services,Children's & Education Services,Other Education and Community Budget,5105709331,27.05.2022,SEND Independent Advice & Support,"Refuse Collection, Disposal and Recycling Costs",40.72,BIFFA WASTE SERVICES LTD
Revenue,Neighbourhoods,Cultural and Related Services,Recreation and Sport,5105709331,27.05.2022,Seaclose Skate Park & Netball Courts,"Refuse Collection, Disposal and Recycling Costs",86.24,BIFFA WASTE SERVICES LTD
Revenue,Neighbourhoods,Cultural and Related Services,Recreation and Sport,5105703835,20.05.2022,Seaclose Skate Park & Netball Courts,"Refuse Collection, Disposal and Recycling Costs",107.8,BIFFA WASTE SERVICES LTD
Revenue,Neighbourhoods,Cultural and Related Services,Recreation and Sport,5105709331,27.05.2022,Medina Leisure Centre,"Refuse Collection, Disposal and Recycling Costs",276.61,BIFFA WASTE SERVICES LTD
Revenue,Adult Services,Adult Social Care,Learning Disab Supp (to be reallocated),5105709331,27.05.2022,Plean Dene,"Refuse Collection, Disposal and Recycling Costs",177.52,BIFFA WASTE SERVICES LTD
Revenue,Adult Services,Adult Social Care,Learning Disab Supp (to be reallocated),5105703835,20.05.2022,Plean Dene,"Refuse Collection, Disposal and Recycling Costs",239.9,BIFFA WASTE SERVICES LTD
Revenue,Adult Services,Adult Social Care,Learning Disab Supp (to be reallocated),5105706677,11.05.2022,Plean Dene,"Refuse Collection, Disposal and Recycling Costs",262.92,BIFFA WASTE SERVICES LTD
Revenue,Adult Services,Adult Social Care,Learning Disab Supp (to be reallocated),5105709331,27.05.2022,Saxonbury,"Refuse Collection, Disposal and Recycling Costs",87.52,BIFFA WASTE SERVICES LTD
Revenue,Adult Services,Adult Social Care,Learning Disab Supp (to be reallocated),5105706677,11.05.2022,Saxonbury,"Refuse Collection, Disposal and Recycling Costs",87.52,BIFFA WASTE SERVICES LTD
Revenue,Adult Services,Adult Social Care,Learning Disab Supp (to be reallocated),5105703835,20.05.2022,Saxonbury,"Refuse Collection, Disposal and Recycling Costs",109.4,BIFFA WASTE SERVICES LTD
Revenue,Adult Services,Adult Social Care,Assistive Equipment & Technology,5105706677,11.05.2022,BCF Community Equipment Store,"Refuse Collection, Disposal and Recycling Costs",217.32,BIFFA WASTE SERVICES LTD
Revenue,Adult Services,Adult Social Care,Assistive Equipment & Technology,5105703835,20.05.2022,BCF Community Equipment Store,"Refuse Collection, Disposal and Recycling Costs",366.76,BIFFA WASTE SERVICES LTD
Revenue,Adult Services,Adult Social Care,Assistive Equipment & Technology,5105709331,27.05.2022,BCF Community Equipment Store,"Refuse Collection, Disposal and Recycling Costs",325.24,BIFFA WASTE SERVICES LTD
Revenue,Neighbourhoods,Cultural and Related Services,Recreation and Sport,5105703835,20.05.2022,Medina Leisure Centre,"Refuse Collection, Disposal and Recycling Costs",395.1,BIFFA WASTE SERVICES LTD
Revenue,Neighbourhoods,Cultural and Related Services,Recreation and Sport,5105706677,11.05.2022,Medina Leisure Centre,"Refuse Collection, Disposal and Recycling Costs",319,BIFFA WASTE SERVICES LTD
Revenue,Neighbourhoods,Highways and Transport Services,"Airports, Harbours & Toll Facilities",5105703835,20.05.2022,Ryde Harbour,"Refuse Collection, Disposal and Recycling Costs",45.36,BIFFA WASTE SERVICES LTD
Revenue,Neighbourhoods,Highways and Transport Services,"Airports, Harbours & Toll Facilities",5105706677,11.05.2022,Ryde Harbour,"Refuse Collection, Disposal and Recycling Costs",35.76,BIFFA WASTE SERVICES LTD
Revenue,Childrens Services,Children's & Education Services,Children Looked After,5105709331,27.05.2022,Beaulieu House,"Refuse Collection, Disposal and Recycling Costs",148.3,BIFFA WASTE SERVICES LTD
Revenue,Childrens Services,Children's & Education Services,Children Looked After,5105706677,11.05.2022,Beaulieu House,"Refuse Collection, Disposal and Recycling Costs",157.76,BIFFA WASTE SERVICES LTD
Revenue,Childrens Services,Children's & Education Services,Children Looked After,5105703835,20.05.2022,Beaulieu House,"Refuse Collection, Disposal and Recycling Costs",200.62,BIFFA WASTE SERVICES LTD
Revenue,Regeneration,Central Services,Support Services,5105706677,11.05.2022,"Seaclose Offices, Newport","Refuse Collection, Disposal and Recycling Costs",732.38,BIFFA WASTE SERVICES LTD
Revenue,Regeneration,Central Services,Support Services,5105709331,27.05.2022,"Westridge, Ryde","Refuse Collection, Disposal and Recycling Costs",270.56,BIFFA WASTE SERVICES LTD
Revenue,Regeneration,Central Services,Support Services,5105703835,20.05.2022,"Westridge, Ryde","Refuse Collection, Disposal and Recycling Costs",187.3,BIFFA WASTE SERVICES LTD
Revenue,Regeneration,Central Services,Support Services,5105706677,11.05.2022,"Westridge, Ryde","Refuse Collection, Disposal and Recycling Costs",122.68,BIFFA WASTE SERVICES LTD
Revenue,Regeneration,Central Services,Support Services,5105703835,20.05.2022,"County Hall,Newport","Refuse Collection, Disposal and Recycling Costs",603.18,BIFFA WASTE SERVICES LTD
Revenue,Regeneration,Central Services,Support Services,5105709331,27.05.2022,"County Hall,Newport","Refuse Collection, Disposal and Recycling Costs",442.25,BIFFA WASTE SERVICES LTD
Revenue,Regeneration,Central Services,Support Services,5105706677,11.05.2022,"County Hall,Newport","Refuse Collection, Disposal and Recycling Costs",425.96,BIFFA WASTE SERVICES LTD
Revenue,Regeneration,Central Services,Support Services,5105709331,27.05.2022,"Jubilee Stores, Newport","Refuse Collection, Disposal and Recycling Costs",116.44,BIFFA WASTE SERVICES LTD
Revenue,Regeneration,Central Services,Support Services,5105703835,20.05.2022,"Jubilee Stores, Newport","Refuse Collection, Disposal and Recycling Costs",128.85,BIFFA WASTE SERVICES LTD
Revenue,Regeneration,Central Services,Support Services,5105706677,11.05.2022,"Jubilee Stores, Newport","Refuse Collection, Disposal and Recycling Costs",103.08,BIFFA WASTE SERVICES LTD
Revenue,Neighbourhoods,Cultural and Related Services,Open Spaces,5105706677,11.05.2022,Fort Victoria,"Refuse Collection, Disposal and Recycling Costs",30.99,BIFFA WASTE SERVICES LTD
Revenue,Neighbourhoods,Cultural and Related Services,Open Spaces,5105703835,20.05.2022,Fort Victoria,"Refuse Collection, Disposal and Recycling Costs",9.1,BIFFA WASTE SERVICES LTD
Revenue,Neighbourhoods,Highways and Transport Services,"Airports, Harbours & Toll Facilities",5105709331,27.05.2022,Newport Harbour Account,"Refuse Collection, Disposal and Recycling Costs",480.28,BIFFA WASTE SERVICES LTD
Revenue,Neighbourhoods,Highways and Transport Services,"Airports, Harbours & Toll Facilities",5105709331,27.05.2022,Newport Harbour Account,"Refuse Collection, Disposal and Recycling Costs",109.2,BIFFA WASTE SERVICES LTD
Revenue,Neighbourhoods,Highways and Transport Services,"Airports, Harbours & Toll Facilities",5105703835,20.05.2022,Newport Harbour Account,"Refuse Collection, Disposal and Recycling Costs",136.5,BIFFA WASTE SERVICES LTD
Revenue,Neighbourhoods,Highways and Transport Services,"Airports, Harbours & Toll Facilities",5105706677,11.05.2022,Newport Harbour Account,"Refuse Collection, Disposal and Recycling Costs",245.94,BIFFA WASTE SERVICES LTD
Revenue,Neighbourhoods,Highways and Transport Services,"Airports, Harbours & Toll Facilities",5105706677,11.05.2022,Newport Harbour Account,"Refuse Collection, Disposal and Recycling Costs",109.2,BIFFA WASTE SERVICES LTD
Revenue,Neighbourhoods,Cultural and Related Services,Library Service,5105709331,27.05.2022,Public Libraries Central,"Refuse Collection, Disposal and Recycling Costs",145.92,BIFFA WASTE SERVICES LTD
Revenue,Neighbourhoods,Cultural and Related Services,Library Service,5105703835,20.05.2022,Public Libraries Central,"Refuse Collection, Disposal and Recycling Costs","2,525.69",BIFFA WASTE SERVICES LTD
Revenue,Neighbourhoods,Cultural and Related Services,Library Service,5105706677,11.05.2022,Public Libraries Central,"Refuse Collection, Disposal and Recycling Costs",127.72,BIFFA WASTE SERVICES LTD
Revenue,Neighbourhoods,Cultural and Related Services,Recreation and Sport,5105709331,27.05.2022,Westridge Squash Courts,"Refuse Collection, Disposal and Recycling Costs",4.48,BIFFA WASTE SERVICES LTD
Revenue,Neighbourhoods,Cultural and Related Services,Recreation and Sport,5105706677,11.05.2022,Westridge Squash Courts,"Refuse Collection, Disposal and Recycling Costs",122.67,BIFFA WASTE SERVICES LTD
Revenue,Neighbourhoods,Cultural and Related Services,Recreation and Sport,5105703835,20.05.2022,Westridge Squash Courts,"Refuse Collection, Disposal and Recycling Costs",153.77,BIFFA WASTE SERVICES LTD
Revenue,Neighbourhoods,Environmental & Regulatory Services,Waste Disposal,5105709076,27.05.2022,Lynnbottom Landfill Site,Payment to Private Contractors,451.89,BIFFA WASTE SERVICES LTD
Revenue,Neighbourhoods,Environmental & Regulatory Services,Waste Disposal,5105709075,27.05.2022,Lynnbottom Landfill Site,Payment to Private Contractors,390.22,BIFFA WASTE SERVICES LTD
Revenue,Neighbourhoods,Environmental & Regulatory Services,"Cemetery, Cremation & Mortuary Services",5105709331,27.05.2022,Crematorium,"Refuse Collection, Disposal and Recycling Costs",164.92,BIFFA WASTE SERVICES LTD
Revenue,Neighbourhoods,Environmental & Regulatory Services,"Cemetery, Cremation & Mortuary Services",5105706677,11.05.2022,Crematorium,"Refuse Collection, Disposal and Recycling Costs",182,BIFFA WASTE SERVICES LTD
Revenue,Neighbourhoods,Environmental & Regulatory Services,"Cemetery, Cremation & Mortuary Services",5105703835,20.05.2022,Crematorium,"Refuse Collection, Disposal and Recycling Costs",227.5,BIFFA WASTE SERVICES LTD
Revenue,Childrens Services,Children's & Education Services,Management & Support Services,5105703835,20.05.2022,Specialist Service Business Admin,"Refuse Collection, Disposal and Recycling Costs",161.05,BIFFA WASTE SERVICES LTD
Revenue,Childrens Services,Children's & Education Services,Management & Support Services,5105709331,27.05.2022,Specialist Service Business Admin,"Refuse Collection, Disposal and Recycling Costs",91.01,BIFFA WASTE SERVICES LTD
Revenue,Childrens Services,Children's & Education Services,Management & Support Services,5105706677,11.05.2022,Specialist Service Business Admin,"Refuse Collection, Disposal and Recycling Costs",128.84,BIFFA WASTE SERVICES LTD
Revenue,Neighbourhoods,Cultural and Related Services,Culture and Heritage,5105709331,27.05.2022,Dinosaur Isle Museum (Sandown Geology),"Refuse Collection, Disposal and Recycling Costs",13.44,BIFFA WASTE SERVICES LTD
Revenue,Neighbourhoods,Cultural and Related Services,Culture and Heritage,5105703835,20.05.2022,Dinosaur Isle Museum (Sandown Geology),"Refuse Collection, Disposal and Recycling Costs",16.8,BIFFA WASTE SERVICES LTD
Revenue,Neighbourhoods,Cultural and Related Services,Culture and Heritage,5105706677,11.05.2022,Dinosaur Isle Museum (Sandown Geology),"Refuse Collection, Disposal and Recycling Costs",50.48,BIFFA WASTE SERVICES LTD
Revenue,Neighbourhoods,Cultural and Related Services,Recreation and Sport,5105706677,11.05.2022,The Heights,"Refuse Collection, Disposal and Recycling Costs",160.72,BIFFA WASTE SERVICES LTD
Revenue,Neighbourhoods,Cultural and Related Services,Recreation and Sport,5105703835,20.05.2022,The Heights,"Refuse Collection, Disposal and Recycling Costs",192.08,BIFFA WASTE SERVICES LTD
Revenue,Neighbourhoods,Cultural and Related Services,Recreation and Sport,5105709331,27.05.2022,The Heights,"Refuse Collection, Disposal and Recycling Costs",164.08,BIFFA WASTE SERVICES LTD
Revenue,Regeneration,Central Services,Support Services,5105703835,20.05.2022,"Civic Centre,Sandown",Professional Services,86.24,BIFFA WASTE SERVICES LTD
Revenue,Regeneration,Planning services,Environmental Initiatives,5105709313,27.05.2022,A.O.N.B.,Advertising & Publicity,110,BILTMORE PRINTERS
Revenue,Childrens Services,Children's & Education Services,Family Support Services,5105707201,11.05.2022,S17 Child Protection,Support Children,"1,080.00",BINSTEAD STEPPING STONES PRE-SCHOOL
Revenue,Childrens Services,Children's & Education Services,Children Looked After,5105708678,25.05.2022,Purchased Fostering,Charges from Independent Providers,"6,510.00",BLUE SKY FOSTERING LTD
Revenue,Neighbourhoods,Cultural and Related Services,Culture and Heritage,5105709406,27.05.2022,Medina Theatre,Payment to Private Contractors,240,BLUELINE SECURITY MANAGEMENT LTD
Revenue,Adult Services,Adult Social Care,Support - Memory /Cognition-older people (65+),5105707191,11.05.2022,Memory & Cognition Nursing 65+,Charges from Independent Providers,"3,920.00",BLUEWATER CARE HOMES LTD
Revenue,Childrens Services,Children's & Education Services,Management & Support Services,5105707324,11.05.2022,Direct Paymnts/Managed Educational Packages,Charges from Independent Providers,120,BODSTER EQUINE ASSISTED LEARN CIC
Revenue,Childrens Services,Children's & Education Services,Family Support Services,5105707833,18.05.2022,Short Breaks,Charges from Independent Providers,225.25,BODSTER EQUINE ASSISTED LEARN CIC
Revenue,Neighbourhoods,Cultural and Related Services,Library Service,5105707385,11.05.2022,Public Libraries Central,Purchase of Books,233.95,BOLINDA UK LTD
Revenue,Neighbourhoods,Cultural and Related Services,Library Service,5105706646,04.05.2022,Public Libraries Central,Purchase of Books,"4,000.00",BOLINDA UK LTD
Revenue,Adult Services,Adult Social Care,Learning Disab Supp (to be reallocated),5105708696,27.05.2022,Plean Dene,Catering Purchases,1.49,BOOKER CASH & CARRY LTD
Revenue,Adult Services,Adult Social Care,Learning Disab Supp (to be reallocated),5105708696,27.05.2022,Plean Dene,Catering Purchases,1.69,BOOKER CASH & CARRY LTD
Revenue,Adult Services,Adult Social Care,Learning Disab Supp (to be reallocated),5105708507,27.05.2022,Plean Dene,Catering Purchases,112.18,BOOKER CASH & CARRY LTD
Revenue,Adult Services,Adult Social Care,Learning Disab Supp (to be reallocated),5105708508,25.05.2022,Plean Dene,Catering Purchases,15.19,BOOKER CASH & CARRY LTD
Revenue,Adult Services,Adult Social Care,Learning Disab Supp (to be reallocated),5105707052,11.05.2022,Plean Dene,Catering Purchases,118.88,BOOKER CASH & CARRY LTD
Revenue,Adult Services,Adult Social Care,Learning Disab Supp (to be reallocated),5105706590,11.05.2022,Plean Dene,Catering Purchases,9.76,BOOKER CASH & CARRY LTD
Revenue,Adult Services,Adult Social Care,Learning Disab Supp (to be reallocated),5105709249,27.05.2022,Plean Dene,Catering Purchases,9.04,BOOKER CASH & CARRY LTD
Revenue,Adult Services,Adult Social Care,Learning Disab Supp (to be reallocated),5105709085,27.05.2022,Plean Dene,Catering Purchases,123.66,BOOKER CASH & CARRY LTD
Revenue,Adult Services,Adult Social Care,Learning Disab Supp (to be reallocated),5105708801,27.05.2022,Plean Dene,Catering Purchases,15.73,BOOKER CASH & CARRY LTD
Revenue,Adult Services,Adult Social Care,Learning Disab Supp (to be reallocated),5105707690,13.05.2022,Plean Dene,Catering Purchases,98.72,BOOKER CASH & CARRY LTD
Revenue,Adult Services,Adult Social Care,Learning Disab Supp (to be reallocated),5105707387,13.05.2022,Plean Dene,Catering Purchases,19.97,BOOKER CASH & CARRY LTD
Revenue,Adult Services,Adult Social Care,Learning Disab Supp (to be reallocated),5105706400,11.05.2022,Plean Dene,Catering Purchases,5.44,BOOKER CASH & CARRY LTD
Revenue,Public Health,Public Health,Sexual Health,5105706897,13.05.2022,Contraception P,Payment to Private Contractors,688,BOOTS THE CHEMIST LTD (Ryde)
Revenue,Public Health,Public Health,Sexual Health,5105706897,13.05.2022,Contraception P,Payment to Private Contractors,119.6,BOOTS THE CHEMIST LTD (Ryde)
Revenue,Public Health,Public Health,Sexual Health,5105706897,13.05.2022,Contraception P,Payment to Private Contractors,140.5,BOOTS THE CHEMIST LTD (Ryde)
Revenue,Public Health,Public Health,Substance Misuse,5105706897,13.05.2022,Drug Misuse Adult- Treatment NP,Payment to Private Contractors,30,BOOTS THE CHEMIST LTD (Ryde)
Revenue,Public Health,Public Health,Substance Misuse,5105706912,18.05.2022,Drug Misuse Adult- Treatment NP,Payment to Private Contractors,30,BOOTS UK LTD (SANDOWN LARGE STORE)
Revenue,Public Health,Public Health,Sexual Health,5105706914,06.05.2022,Contraception P,Payment to Private Contractors,215,BOOTS UK LTD (107 HIGH ST SANDOWN)
Revenue,Public Health,Public Health,Sexual Health,5105706914,06.05.2022,Contraception P,Payment to Private Contractors,140.5,BOOTS UK LTD (107 HIGH ST SANDOWN)
Revenue,Public Health,Public Health,Substance Misuse,5105706914,06.05.2022,Drug Misuse Adult- Treatment NP,Payment to Private Contractors,30,BOOTS UK LTD (107 HIGH ST SANDOWN)
Revenue,Public Health,Public Health,Sexual Health,5105706888,13.05.2022,Contraception P,Payment to Private Contractors,172,BOOTS UK LTD (COWES)
Revenue,Public Health,Public Health,Sexual Health,5105706888,13.05.2022,Contraception P,Payment to Private Contractors,10.4,BOOTS UK LTD (COWES)
Revenue,Public Health,Public Health,Sexual Health,5105706888,13.05.2022,Contraception P,Payment to Private Contractors,84.3,BOOTS UK LTD (COWES)
Revenue,Public Health,Public Health,Substance Misuse,5105706888,13.05.2022,Drug Misuse Adult- Treatment NP,Payment to Private Contractors,30,BOOTS UK LTD (COWES)
Revenue,Public Health,Public Health,Sexual Health,5105706890,13.05.2022,Contraception P,Payment to Private Contractors,21.5,BOOTS UK LTD (FRESHWATER)
Revenue,Public Health,Public Health,Sexual Health,5105706890,13.05.2022,Contraception P,Payment to Private Contractors,14.05,BOOTS UK LTD (FRESHWATER)
Revenue,Public Health,Public Health,Substance Misuse,5105706890,13.05.2022,Drug Misuse Adult- Treatment NP,Payment to Private Contractors,30,BOOTS UK LTD (FRESHWATER)
Revenue,Public Health,Public Health,Sexual Health,5105706884,06.05.2022,Contraception P,Payment to Private Contractors,"1,182.50",BOOTS UK LTD (NEWPORT)
Revenue,Public Health,Public Health,Sexual Health,5105706884,06.05.2022,Contraception P,Payment to Private Contractors,104,BOOTS UK LTD (NEWPORT)
Revenue,Public Health,Public Health,Sexual Health,5105706884,06.05.2022,Contraception P,Payment to Private Contractors,533.9,BOOTS UK LTD (NEWPORT)
Revenue,Public Health,Public Health,Substance Misuse,5105706884,06.05.2022,Drug Misuse Adult- Treatment NP,Payment to Private Contractors,30,BOOTS UK LTD (NEWPORT)
Revenue,Public Health,Public Health,Sexual Health,5105706898,13.05.2022,Contraception P,Payment to Private Contractors,129,BOOTS UK LTD (SHANKLIN)
Revenue,Public Health,Public Health,Sexual Health,5105706898,13.05.2022,Contraception P,Payment to Private Contractors,10.4,BOOTS UK LTD (SHANKLIN)
Revenue,Public Health,Public Health,Sexual Health,5105706898,13.05.2022,Contraception P,Payment to Private Contractors,56.2,BOOTS UK LTD (SHANKLIN)
Revenue,Public Health,Public Health,Substance Misuse,5105706898,13.05.2022,Drug Misuse Adult- Treatment NP,Payment to Private Contractors,30,BOOTS UK LTD (SHANKLIN)
Revenue,Public Health,Public Health,Sexual Health,5105706899,13.05.2022,Contraception P,Payment to Private Contractors,236.5,BOOTS UK LTD (TOWER HOUSE)
Revenue,Public Health,Public Health,Sexual Health,5105706899,13.05.2022,Contraception P,Payment to Private Contractors,26,BOOTS UK LTD (TOWER HOUSE)
Revenue,Public Health,Public Health,Sexual Health,5105706899,13.05.2022,Contraception P,Payment to Private Contractors,84.3,BOOTS UK LTD (TOWER HOUSE)
Revenue,Public Health,Public Health,Substance Misuse,5105706899,13.05.2022,Drug Misuse Adult- Treatment NP,Payment to Private Contractors,30,BOOTS UK LTD (TOWER HOUSE)
Revenue,Public Health,Public Health,Sexual Health,5105706947,06.05.2022,Contraception P,Payment to Private Contractors,215,BOOTS UK LTD
Revenue,Public Health,Public Health,Sexual Health,5105706947,06.05.2022,Contraception P,Payment to Private Contractors,26,BOOTS UK LTD
Revenue,Public Health,Public Health,Sexual Health,5105706947,06.05.2022,Contraception P,Payment to Private Contractors,70.25,BOOTS UK LTD
Revenue,Public Health,Public Health,Substance Misuse,5105706947,06.05.2022,Drug Misuse Adult- Treatment NP,Payment to Private Contractors,30,BOOTS UK LTD
Revenue,Public Health,Public Health,Sexual Health,5105706889,13.05.2022,Contraception P,Payment to Private Contractors,172,BOOTS UK LTD (YLB BEMBRIDGE)
Revenue,Public Health,Public Health,Sexual Health,5105706889,13.05.2022,Contraception P,Payment to Private Contractors,31.2,BOOTS UK LTD (YLB BEMBRIDGE)
Revenue,Public Health,Public Health,Sexual Health,5105706889,13.05.2022,Contraception P,Payment to Private Contractors,56.2,BOOTS UK LTD (YLB BEMBRIDGE)
Revenue,Public Health,Public Health,Substance Misuse,5105706889,13.05.2022,Drug Misuse Adult- Treatment NP,Payment to Private Contractors,30,BOOTS UK LTD (YLB BEMBRIDGE)
Revenue,Childrens Services,Adult Social Care,Social Care Activities,5105708490,25.05.2022,Adult Social Care - Workforce Development,Training,625,BOURNEMOUTH UNIVERSITY
Revenue,Childrens Services,Children's & Education Services,Safeguarding Children/Young Peoples Svs,5105708038,20.05.2022,Commissioning Team,Charges from Independent Providers,917.09,BOURNEMOUTH BOROUGH COUNCIL
Capital,Place,Capital,Capital,5105708298,20.05.2022,Parks and Gardens Capital,External Design and Supervision Fees,"3,000.00",BOYLE + SUMMERS LTD
Revenue,Resources,Central Services,Support Services,5105707836,18.05.2022,ICT Contracts,Computer Maintenance,"9,865.00",BRAMBLE HUB LIMITED
Revenue,Adult Services,Housing Services,Homelessness,5105708466,25.05.2022,Private Rented Sector Leasing Scheme,Accommodation Costs - Leaseholder Payments,769.43,BRAMBLE LETTINGS
Revenue,Adult Services,Housing Services,Homelessness,5105708466,25.05.2022,Private Rented Sector Leasing Scheme,Accommodation Costs - Leaseholder Payments,746.81,BRAMBLE LETTINGS
Revenue,Adult Services,Housing Services,Homelessness,5105708466,25.05.2022,Private Rented Sector Leasing Scheme,Accommodation Costs - Leaseholder Payments,746.81,BRAMBLE LETTINGS
Revenue,Adult Services,Housing Services,Homelessness,5105708466,25.05.2022,Private Rented Sector Leasing Scheme,Accommodation Costs - Leaseholder Payments,746.81,BRAMBLE LETTINGS
Revenue,Adult Services,Housing Services,Homelessness,5105708466,25.05.2022,Private Rented Sector Leasing Scheme,Accommodation Costs - Leaseholder Payments,746.81,BRAMBLE LETTINGS
Revenue,Adult Services,Housing Services,Homelessness,5105708466,25.05.2022,Private Rented Sector Leasing Scheme,Accommodation Costs - Leaseholder Payments,746.81,BRAMBLE LETTINGS
Revenue,Adult Services,Housing Services,Homelessness,5105708466,25.05.2022,Private Rented Sector Leasing Scheme,Accommodation Costs - Leaseholder Payments,746.81,BRAMBLE LETTINGS
Revenue,Adult Services,Housing Services,Homelessness,5105708466,25.05.2022,Private Rented Sector Leasing Scheme,Accommodation Costs - Leaseholder Payments,746.81,BRAMBLE LETTINGS
Revenue,Adult Services,Housing Services,Homelessness,5105708466,25.05.2022,Private Rented Sector Leasing Scheme,Accommodation Costs - Leaseholder Payments,746.81,BRAMBLE LETTINGS
Revenue,Adult Services,Housing Services,Homelessness,5105708466,25.05.2022,Private Rented Sector Leasing Scheme,Accommodation Costs - Leaseholder Payments,281.66,BRAMBLE LETTINGS
Revenue,Adult Services,Housing Services,Homelessness,5105708466,25.05.2022,Private Rented Sector Leasing Scheme,Accommodation Costs - Leaseholder Payments,216.66,BRAMBLE LETTINGS
Revenue,Adult Services,Housing Services,Homelessness,5105708466,25.05.2022,Private Rented Sector Leasing Scheme,Accommodation Costs - Leaseholder Payments,746.81,BRAMBLE LETTINGS
Revenue,Adult Services,Housing Services,Homelessness,5105708466,25.05.2022,Private Rented Sector Leasing Scheme,Accommodation Costs - Leaseholder Payments,588.38,BRAMBLE LETTINGS
Revenue,Adult Services,Housing Services,Homelessness,5105708466,25.05.2022,Private Rented Sector Leasing Scheme,Accommodation Costs - Leaseholder Payments,746.81,BRAMBLE LETTINGS
Revenue,Adult Services,Housing Services,Homelessness,5105708466,25.05.2022,Private Rented Sector Leasing Scheme,Accommodation Costs - Leaseholder Payments,588.38,BRAMBLE LETTINGS
Revenue,Adult Services,Housing Services,Homelessness,5105708466,25.05.2022,Private Rented Sector Leasing Scheme,Accommodation Costs - Leaseholder Payments,746.81,BRAMBLE LETTINGS
Revenue,Adult Services,Housing Services,Homelessness,5105708466,25.05.2022,Private Rented Sector Leasing Scheme,Accommodation Costs - Leaseholder Payments,588.38,BRAMBLE LETTINGS
Revenue,Adult Services,Housing Services,Homelessness,5105708466,25.05.2022,Private Rented Sector Leasing Scheme,Accommodation Costs - Leaseholder Payments,746.81,BRAMBLE LETTINGS
Revenue,Adult Services,Housing Services,Homelessness,5105708466,25.05.2022,Private Rented Sector Leasing Scheme,Accommodation Costs - Leaseholder Payments,588.38,BRAMBLE LETTINGS
Revenue,Adult Services,Housing Services,Homelessness,5105708466,25.05.2022,Private Rented Sector Leasing Scheme,Accommodation Costs - Leaseholder Payments,746.81,BRAMBLE LETTINGS
Revenue,Adult Services,Housing Services,Homelessness,5105708466,25.05.2022,Private Rented Sector Leasing Scheme,Accommodation Costs - Leaseholder Payments,588.38,BRAMBLE LETTINGS
Revenue,Adult Services,Housing Services,Homelessness,5105708466,25.05.2022,Private Rented Sector Leasing Scheme,Accommodation Costs - Leaseholder Payments,746.81,BRAMBLE LETTINGS
Revenue,Adult Services,Housing Services,Homelessness,5105708466,25.05.2022,Private Rented Sector Leasing Scheme,Accommodation Costs - Leaseholder Payments,588.38,BRAMBLE LETTINGS
Revenue,Adult Services,Housing Services,Homelessness,5105708466,25.05.2022,Private Rented Sector Leasing Scheme,Accommodation Costs - Leaseholder Payments,746.81,BRAMBLE LETTINGS
Revenue,Neighbourhoods,Cultural and Related Services,Library Service,5105709266,27.05.2022,Public Libraries Central,Purchase of Books,"6,314.00",BRIDGEALL LIBRARIES LTD
Revenue,Neighbourhoods,Cultural and Related Services,Recreation and Sport,5105706551,04.05.2022,Bandstands,Payment to Private Contractors,180,BRIGHSTONE LANDSCAPING LTD
Revenue,Neighbourhoods,Environmental & Regulatory Services,(Street) Cleansing (not highways),5105707772,18.05.2022,Beach Cleaning,Payment to Private Contractors,80,BRIGHSTONE LANDSCAPING LTD
Revenue,Neighbourhoods,Environmental & Regulatory Services,(Street) Cleansing (not highways),5105707798,18.05.2022,Beach Cleaning,Payment to Private Contractors,700,BRIGHSTONE LANDSCAPING LTD
Revenue,Neighbourhoods,Environmental & Regulatory Services,(Street) Cleansing (not highways),5105708559,25.05.2022,Beach Cleaning,Payment to Private Contractors,150,BRIGHSTONE LANDSCAPING LTD
Revenue,Neighbourhoods,Environmental & Regulatory Services,(Street) Cleansing (not highways),5105708558,25.05.2022,Beach Cleaning,Beach Management Contract,"1,476.00",BRIGHSTONE LANDSCAPING LTD
Revenue,Neighbourhoods,Environmental & Regulatory Services,Coast Protection,5105706550,04.05.2022,Coast Protection,Payment to Private Contractors,"5,500.00",BRIGHSTONE LANDSCAPING LTD
Capital,Resources,Capital,Capital,5105709503,30.05.2022,Boiler Replacement Heating Non Education,Payment to Contractors - Capital,"3,000.00",BRIGHT SPARKS VENTURES LTD
Revenue,Resources,Central Services,Support Services,5105708781,25.05.2022,Staff Benefits,Payment to Private Contractors,35,KCT CHILDCARE LIMITED
Revenue,Resources,Central Services,Support Services,5105709440,30.05.2022,Staff Benefits,Payment to Private Contractors,35,KCT CHILDCARE LIMITED
Revenue,Neighbourhoods,Cultural and Related Services,Recreation and Sport,5105707344,11.05.2022,Beach Safety & Inspection / Beach Awards,Professional Subscriptions,100,BRITISH DESTINATIONS
Revenue,Childrens Services,Central Services,Family Support Services,5105708417,20.05.2022,Youth Council,Professional Subscriptions,600,BRITISH YOUTH COUNCIL
Revenue,Adult Services,Adult Social Care,Learning Disability Suppt-adults (18-64),5105707107,11.05.2022,Learning Disability Residential 18-64,Charges from Independent Providers,"7,192.92",BROADHAM CARE LTD
Revenue,Childrens Services,Children's & Education Services,Children Looked After,5105706825,06.05.2022,In-house Fostering,Boarding Out Allowances,370.6,REDACTED PERSONAL DATA
Revenue,Childrens Services,Children's & Education Services,Children Looked After,5105708228,20.05.2022,In-house Fostering,Boarding Out Allowances,370.6,REDACTED PERSONAL DATA
Revenue,Childrens Services,Children's & Education Services,Children Looked After,5105707630,13.05.2022,In-house Fostering,Boarding Out Allowances,370.6,REDACTED PERSONAL DATA
Revenue,Childrens Services,Children's & Education Services,Children Looked After,5105709023,27.05.2022,In-house Fostering,Boarding Out Allowances,370.6,REDACTED PERSONAL DATA
Revenue,Public Health,Public Health,Sexual Health,5105706881,18.05.2022,Long Acting Reversible Contraception,Payment to Private Contractors,"1,270.00",BROOKSIDE HEALTH CENTRE
Revenue,Regeneration,Central Services,Central Services to the Public,5105708437,20.05.2022,Welcome Back Fund,Operational Equipment,"4,750.50",BROXAP LTD
Revenue,Adult Services,Adult Social Care,Social Support -Substance Misuse Support,5105707149,11.05.2022,Substance Misuse Residential,Charges from Independent Providers,"2,257.08",BUCKLAND CARE LTD
Revenue,Adult Services,Adult Social Care,Mental Health Support-older people (65+),5105709186,27.05.2022,Mental Health Residential 65+,Charges from Independent Providers,"7,737.80",BUCKLAND CARE LTD
Revenue,Adult Services,Adult Social Care,Mental Health Support-older people (65+),5105707149,11.05.2022,Mental Health Residential 65+,Charges from Independent Providers,"2,257.08",BUCKLAND CARE LTD
Revenue,Adult Services,Adult Social Care,Support - Memory /Cognition-older people (65+),5105707149,11.05.2022,Memory & Cognition Residential 65+,Charges from Independent Providers,"2,653.56",BUCKLAND CARE LTD
Revenue,Adult Services,Adult Social Care,Support - Memory /Cognition-older people (65+),5105707149,11.05.2022,Memory & Cognition Residential 65+,Charges from Independent Providers,"2,257.08",BUCKLAND CARE LTD
Revenue,Adult Services,Adult Social Care,Support - Memory /Cognition-older people (65+),5105707149,11.05.2022,Memory & Cognition Residential 65+,Charges from Independent Providers,"2,653.56",BUCKLAND CARE LTD
Balance Sheet,Adult Services,Balance Sheet,Balance Sheet,5105707149,11.05.2022,REDACTED PERSONAL DATA,Order Settlement to Bal Sht GL,"2,257.08",BUCKLAND CARE LTD
Revenue,Adult Services,Adult Social Care,Physical Support - older people (65+),5105707149,11.05.2022,Physical Support Residential 65+,Charges from Independent Providers,"2,653.56",BUCKLAND CARE LTD
Revenue,Adult Services,Adult Social Care,Physical Support - older people (65+),5105707149,11.05.2022,Physical Support Residential 65+,Charges from Independent Providers,"2,155.44",BUCKLAND CARE LTD
Revenue,Adult Services,Adult Social Care,Physical Support - older people (65+),5105707149,11.05.2022,Physical Support Residential 65+,Charges from Independent Providers,"2,155.44",BUCKLAND CARE LTD
Revenue,Adult Services,Adult Social Care,Physical Support - older people (65+),5105707149,11.05.2022,Physical Support Residential 65+,Charges from Independent Providers,"2,155.44",BUCKLAND CARE LTD
Revenue,Adult Services,Adult Social Care,Physical Support - older people (65+),5105707149,11.05.2022,Physical Support Residential 65+,Charges from Independent Providers,"2,155.44",BUCKLAND CARE LTD
Revenue,Adult Services,Adult Social Care,Physical Support - older people (65+),5105707149,11.05.2022,Physical Support Residential 65+,Charges from Independent Providers,"2,257.08",BUCKLAND CARE LTD
Revenue,Adult Services,Adult Social Care,Physical Support - older people (65+),5105707149,11.05.2022,Physical Support Residential 65+,Charges from Independent Providers,"2,653.56",BUCKLAND CARE LTD
Revenue,Adult Services,Adult Social Care,Physical Support - older people (65+),5105707149,11.05.2022,Physical Support Residential 65+,Charges from Independent Providers,"2,653.56",BUCKLAND CARE LTD
Revenue,Adult Services,Adult Social Care,Physical Support - older people (65+),5105707149,11.05.2022,Physical Support Residential 65+,Charges from Independent Providers,"2,653.56",BUCKLAND CARE LTD
Revenue,Adult Services,Adult Social Care,Physical Support - older people (65+),5105707149,11.05.2022,Physical Support Residential 65+,Charges from Independent Providers,"2,653.56",BUCKLAND CARE LTD
Revenue,Adult Services,Adult Social Care,Physical Support - older people (65+),5105707149,11.05.2022,Physical Support Residential 65+,Charges from Independent Providers,"2,653.56",BUCKLAND CARE LTD
Revenue,Adult Services,Adult Social Care,Physical Support - older people (65+),5105707149,11.05.2022,Physical Support Residential 65+,Charges from Independent Providers,"2,257.08",BUCKLAND CARE LTD
Revenue,Adult Services,Adult Social Care,Physical Support - older people (65+),5105707149,11.05.2022,Physical Support Residential 65+,Charges from Independent Providers,"2,529.52",BUCKLAND CARE LTD
Revenue,Adult Services,Adult Social Care,Physical Support - older people (65+),5105707149,11.05.2022,Physical Support Residential 65+,Charges from Independent Providers,"2,054.64",BUCKLAND CARE LTD
Revenue,Adult Services,Adult Social Care,Physical Support - older people (65+),5105707149,11.05.2022,Physical Support Residential 65+,Charges from Independent Providers,"2,529.52",BUCKLAND CARE LTD
Revenue,Adult Services,Adult Social Care,Physical Support - older people (65+),5105707149,11.05.2022,Physical Support Residential 65+,Charges from Independent Providers,"2,653.56",BUCKLAND CARE LTD
Revenue,Adult Services,Adult Social Care,Physical Support - older people (65+),5105707149,11.05.2022,Physical Support Residential 65+,Charges from Independent Providers,"2,653.56",BUCKLAND CARE LTD
Revenue,Adult Services,Adult Social Care,Physical Support - older people (65+),5105707149,11.05.2022,Physical Support Residential 65+,Charges from Independent Providers,"2,653.56",BUCKLAND CARE LTD
Revenue,Adult Services,Adult Social Care,Physical Support - older people (65+),5105707149,11.05.2022,Physical Support Residential 65+,Charges from Independent Providers,"2,155.44",BUCKLAND CARE LTD
Revenue,Adult Services,Adult Social Care,Physical Support - older people (65+),5105707149,11.05.2022,Physical Support Residential 65+,Charges from Independent Providers,"2,653.56",BUCKLAND CARE LTD
Revenue,Adult Services,Adult Social Care,Physical Support - older people (65+),5105708572,25.05.2022,Physical Support Residential 65+,Charges from Independent Providers,542.04,BUCKLAND CARE LTD
Revenue,Adult Services,Adult Social Care,Physical Support - older people (65+),5105708572,25.05.2022,Physical Support Residential 65+,Charges from Independent Providers,"1,326.78",BUCKLAND CARE LTD
Revenue,Adult Services,Adult Social Care,Physical Support - older people (65+),5105708875,27.05.2022,Physical Support Residential 65+,Charges from Independent Providers,845.24,BUCKLAND CARE LTD
Revenue,Adult Services,Adult Social Care,Physical Support - older people (65+),5105708875,27.05.2022,Physical Support Residential 65+,Charges from Independent Providers,"5,884.53",BUCKLAND CARE LTD
Revenue,Adult Services,Adult Social Care,Social Support - Support for Carer,5105709293,27.05.2022,Carers Residential,Charges from Independent Providers,323.39,BUCKLAND CARE LTD
Revenue,Adult Services,Adult Social Care,Social Support - Support for Carer,5105707149,11.05.2022,Carers Residential,Charges from Independent Providers,"2,653.56",BUCKLAND CARE LTD
Revenue,Adult Services,Adult Social Care,Social Support - Support for Carer,5105707149,11.05.2022,Carers Residential,Charges from Independent Providers,"2,529.52",BUCKLAND CARE LTD
Revenue,Adult Services,Adult Social Care,Social Support - Social Isolation/Other,5105707139,11.05.2022,Social Isolation/Other Nursing,Charges from Independent Providers,"2,954.56",BUCKLAND CARE LTD
Revenue,Adult Services,Adult Social Care,Commissioning & Service Delivery,5105707139,11.05.2022,"Funded Nursing Care, Registered Nursing Care Contribution",Charges from Independent Providers,750.4,BUCKLAND CARE LTD
Revenue,Adult Services,Adult Social Care,Commissioning & Service Delivery,5105707139,11.05.2022,"Funded Nursing Care, Registered Nursing Care Contribution",Charges from Independent Providers,750.4,BUCKLAND CARE LTD
Revenue,Adult Services,Adult Social Care,Commissioning & Service Delivery,5105707139,11.05.2022,"Funded Nursing Care, Registered Nursing Care Contribution",Charges from Independent Providers,750.4,BUCKLAND CARE LTD
Revenue,Adult Services,Adult Social Care,Commissioning & Service Delivery,5105707139,11.05.2022,"Funded Nursing Care, Registered Nursing Care Contribution",Charges from Independent Providers,750.4,BUCKLAND CARE LTD
Revenue,Adult Services,Adult Social Care,Commissioning & Service Delivery,5105707139,11.05.2022,"Funded Nursing Care, Registered Nursing Care Contribution",Charges from Independent Providers,750.4,BUCKLAND CARE LTD
Revenue,Adult Services,Adult Social Care,Commissioning & Service Delivery,5105707139,11.05.2022,"Funded Nursing Care, Registered Nursing Care Contribution",Charges from Independent Providers,750.4,BUCKLAND CARE LTD
Revenue,Adult Services,Adult Social Care,Learning Disability Suppt-adults (18-64),5105707139,11.05.2022,Learning Disability Nursing 18-64,Charges from Independent Providers,"5,712.00",BUCKLAND CARE LTD
Revenue,Adult Services,Adult Social Care,Learning Disability Suppt-adults (18-64),5105707139,11.05.2022,Learning Disability Nursing 18-64,Charges from Independent Providers,"2,954.56",BUCKLAND CARE LTD
Revenue,Adult Services,Adult Social Care,Support - Memory /Cognition-older people (65+),5105707139,11.05.2022,Memory & Cognition Residential 65+,Charges from Independent Providers,"2,653.56",BUCKLAND CARE LTD
Revenue,Adult Services,Adult Social Care,Commissioning & Service Delivery,5105707139,11.05.2022,FNC IWC funded clients,Charges from Independent Providers,750.4,BUCKLAND CARE LTD
Revenue,Adult Services,Adult Social Care,Commissioning & Service Delivery,5105707139,11.05.2022,FNC IWC funded clients,Charges from Independent Providers,750.4,BUCKLAND CARE LTD
Revenue,Adult Services,Adult Social Care,Commissioning & Service Delivery,5105707139,11.05.2022,FNC IWC funded clients,Charges from Independent Providers,750.4,BUCKLAND CARE LTD
Revenue,Adult Services,Adult Social Care,Commissioning & Service Delivery,5105707139,11.05.2022,FNC IWC funded clients,Charges from Independent Providers,750.4,BUCKLAND CARE LTD
Revenue,Adult Services,Adult Social Care,Commissioning & Service Delivery,5105707139,11.05.2022,FNC IWC funded clients,Charges from Independent Providers,750.4,BUCKLAND CARE LTD
Revenue,Adult Services,Adult Social Care,Commissioning & Service Delivery,5105707139,11.05.2022,FNC IWC funded clients,Charges from Independent Providers,750.4,BUCKLAND CARE LTD
Revenue,Adult Services,Adult Social Care,Commissioning & Service Delivery,5105707139,11.05.2022,FNC IWC funded clients,Charges from Independent Providers,750.4,BUCKLAND CARE LTD
Revenue,Adult Services,Adult Social Care,Commissioning & Service Delivery,5105707139,11.05.2022,FNC IWC funded clients,Charges from Independent Providers,750.4,BUCKLAND CARE LTD
Revenue,Adult Services,Adult Social Care,Commissioning & Service Delivery,5105707139,11.05.2022,FNC IWC funded clients,Charges from Independent Providers,750.4,BUCKLAND CARE LTD
Revenue,Adult Services,Adult Social Care,Commissioning & Service Delivery,5105707139,11.05.2022,FNC IWC funded clients,Charges from Independent Providers,750.4,BUCKLAND CARE LTD
Revenue,Adult Services,Adult Social Care,Commissioning & Service Delivery,5105707139,11.05.2022,FNC IWC funded clients,Regular Respite Care,750.4,BUCKLAND CARE LTD
Balance Sheet,Adult Services,Balance Sheet,Balance Sheet,5105707139,11.05.2022,REDACTED PERSONAL DATA,Order Settlement to Bal Sht GL,"2,653.56",BUCKLAND CARE LTD
Revenue,Adult Services,Adult Social Care,Physical Support - adults (18-64),5105707139,11.05.2022,Physical Support Nursing 18-64,Charges from Independent Providers,"2,954.56",BUCKLAND CARE LTD
Revenue,Adult Services,Adult Social Care,Physical Support - older people (65+),5105708078,20.05.2022,Physical Support Nursing 65+,Charges from Independent Providers,"4,431.84",BUCKLAND CARE LTD
Revenue,Adult Services,Adult Social Care,Physical Support - older people (65+),5105708078,20.05.2022,Physical Support Nursing 65+,Charges from Independent Providers,"1,125.60",BUCKLAND CARE LTD
Revenue,Adult Services,Adult Social Care,Physical Support - older people (65+),5105707139,11.05.2022,Physical Support Nursing 65+,Charges from Independent Providers,"2,954.56",BUCKLAND CARE LTD
Revenue,Adult Services,Adult Social Care,Physical Support - older people (65+),5105707139,11.05.2022,Physical Support Nursing 65+,Charges from Independent Providers,"2,954.56",BUCKLAND CARE LTD
Revenue,Adult Services,Adult Social Care,Physical Support - older people (65+),5105707139,11.05.2022,Physical Support Nursing 65+,Charges from Independent Providers,"2,954.56",BUCKLAND CARE LTD
Revenue,Adult Services,Adult Social Care,Physical Support - older people (65+),5105707139,11.05.2022,Physical Support Nursing 65+,Charges from Independent Providers,"2,954.56",BUCKLAND CARE LTD
Revenue,Adult Services,Adult Social Care,Physical Support - older people (65+),5105707139,11.05.2022,Physical Support Nursing 65+,Charges from Independent Providers,"2,954.56",BUCKLAND CARE LTD
Revenue,Adult Services,Adult Social Care,Physical Support - older people (65+),5105707139,11.05.2022,Physical Support Nursing 65+,Charges from Independent Providers,"2,954.56",BUCKLAND CARE LTD
Revenue,Adult Services,Adult Social Care,Commissioning & Service Delivery,5105707139,11.05.2022,CHC Nursing Care,Charges from Independent Providers,"3,704.96",BUCKLAND CARE LTD
Revenue,Adult Services,Adult Social Care,Commissioning & Service Delivery,5105707139,11.05.2022,CHC Nursing Care,Charges from Independent Providers,"3,704.96",BUCKLAND CARE LTD
Revenue,Adult Services,Adult Social Care,Commissioning & Service Delivery,5105707139,11.05.2022,CHC Nursing Care,Charges from Independent Providers,"3,704.96",BUCKLAND CARE LTD
Revenue,Adult Services,Adult Social Care,Commissioning & Service Delivery,5105707139,11.05.2022,CHC Nursing Care,Charges from Independent Providers,"3,704.96",BUCKLAND CARE LTD
Revenue,Adult Services,Adult Social Care,Commissioning & Service Delivery,5105707139,11.05.2022,CHC Nursing Care,Charges from Independent Providers,"3,704.96",BUCKLAND CARE LTD
Revenue,Adult Services,Adult Social Care,Commissioning & Service Delivery,5105707139,11.05.2022,CHC Nursing Care,Charges from Independent Providers,"11,424.00",BUCKLAND CARE LTD
Revenue,Adult Services,Adult Social Care,Commissioning & Service Delivery,5105707139,11.05.2022,CHC Nursing Care,Charges from Independent Providers,"3,704.96",BUCKLAND CARE LTD
Revenue,Adult Services,Adult Social Care,Commissioning & Service Delivery,5105707139,11.05.2022,CHC Nursing Care,Charges from Independent Providers,"13,332.48",BUCKLAND CARE LTD
Revenue,Adult Services,Adult Social Care,Commissioning & Service Delivery,5105707139,11.05.2022,CHC Nursing Care,Charges from Independent Providers,"3,704.96",BUCKLAND CARE LTD
Revenue,Adult Services,Adult Social Care,Physical Support - older people (65+),5105707139,11.05.2022,Physical Support Residential 65+,Charges from Independent Providers,"2,653.56",BUCKLAND CARE LTD
Revenue,Adult Services,Adult Social Care,Physical Support - older people (65+),5105707139,11.05.2022,Physical Support Residential 65+,Charges from Independent Providers,"2,653.56",BUCKLAND CARE LTD
Revenue,Adult Services,Adult Social Care,Support - Memory /Cognition-older people (65+),5105707139,11.05.2022,Memory & Cognition Nursing 65+,Charges from Independent Providers,"2,954.56",BUCKLAND CARE LTD
Revenue,Adult Services,Adult Social Care,Support - Memory /Cognition-older people (65+),5105707139,11.05.2022,Memory & Cognition Nursing 65+,Regular Respite Care,"2,835.00",BUCKLAND CARE LTD
Revenue,Adult Services,Adult Social Care,Physical Support - older people (65+),5105707159,11.05.2022,Physical Support Nursing 65+,Charges from Independent Providers,"3,953.88",BUPA CARE HOME (BNH) LTD
Revenue,Childrens Services,Children's & Education Services,Children Looked After,5105706444,04.05.2022,Leaving Care Costs,Support Children,19.99,REDACTED PERSONAL DATA
Revenue,Childrens Services,Children's & Education Services,Children Looked After,5105708111,20.05.2022,Special Guardianship Order Costs,Support Children,199.98,REDACTED PERSONAL DATA
Revenue,Childrens Services,Children's & Education Services,Children Looked After,5105708907,27.05.2022,Special Guardianship Order Costs,Support Children,199.98,REDACTED PERSONAL DATA
Revenue,Childrens Services,Children's & Education Services,Children Looked After,5105707514,13.05.2022,Special Guardianship Order Costs,Support Children,199.98,REDACTED PERSONAL DATA
Revenue,Childrens Services,Children's & Education Services,Children Looked After,5105706709,06.05.2022,Special Guardianship Order Costs,Support Children,199.98,REDACTED PERSONAL DATA
Revenue,Neighbourhoods,Cultural and Related Services,Open Spaces,5105708556,25.05.2022,Fort Victoria,Operational Equipment,41.94,C BREWER & SONS LTD
Revenue,Childrens Services,Children's & Education Services,Children Looked After,5105706734,06.05.2022,Children placed with Family&Friends,Boarding Out Allowances,285.93,REDACTED PERSONAL DATA
Revenue,Childrens Services,Children's & Education Services,Children Looked After,5105707539,13.05.2022,Children placed with Family&Friends,Boarding Out Allowances,285.93,REDACTED PERSONAL DATA
Revenue,Childrens Services,Children's & Education Services,Children Looked After,5105708136,20.05.2022,Children placed with Family&Friends,Boarding Out Allowances,285.93,REDACTED PERSONAL DATA
Revenue,Childrens Services,Children's & Education Services,Children Looked After,5105708931,27.05.2022,Children placed with Family&Friends,Boarding Out Allowances,285.93,REDACTED PERSONAL DATA
Revenue,Childrens Services,Children's & Education Services,Children Looked After,5105706727,06.05.2022,Adoption Costs,Support Children,200.83,REDACTED PERSONAL DATA
Revenue,Childrens Services,Children's & Education Services,Children Looked After,5105706727,06.05.2022,Adoption Costs,Support Children,168.09,REDACTED PERSONAL DATA
Revenue,Childrens Services,Children's & Education Services,Children Looked After,5105708129,20.05.2022,Adoption Costs,Support Children,200.83,REDACTED PERSONAL DATA
Revenue,Childrens Services,Children's & Education Services,Children Looked After,5105708129,20.05.2022,Adoption Costs,Support Children,168.09,REDACTED PERSONAL DATA
Revenue,Childrens Services,Children's & Education Services,Children Looked After,5105707532,13.05.2022,Adoption Costs,Support Children,200.83,REDACTED PERSONAL DATA
Revenue,Childrens Services,Children's & Education Services,Children Looked After,5105707532,13.05.2022,Adoption Costs,Support Children,168.09,REDACTED PERSONAL DATA
Revenue,Childrens Services,Children's & Education Services,Children Looked After,5105708925,27.05.2022,Adoption Costs,Support Children,200.83,REDACTED PERSONAL DATA
Revenue,Childrens Services,Children's & Education Services,Children Looked After,5105708925,27.05.2022,Adoption Costs,Support Children,168.09,REDACTED PERSONAL DATA
Revenue,Childrens Services,Children's & Education Services,Children Looked After,5105708118,20.05.2022,Special Guardianship Order Costs,Support Children,160.64,REDACTED PERSONAL DATA
Revenue,Childrens Services,Children's & Education Services,Children Looked After,5105708914,27.05.2022,Special Guardianship Order Costs,Support Children,160.64,REDACTED PERSONAL DATA
Revenue,Childrens Services,Children's & Education Services,Children Looked After,5105707521,13.05.2022,Special Guardianship Order Costs,Support Children,160.64,REDACTED PERSONAL DATA
Revenue,Childrens Services,Children's & Education Services,Children Looked After,5105706716,06.05.2022,Special Guardianship Order Costs,Support Children,160.64,REDACTED PERSONAL DATA
Revenue,Childrens Services,Children's & Education Services,Children Looked After,5105706732,06.05.2022,In-house Fostering,Boarding Out Allowances,285.93,REDACTED PERSONAL DATA
Revenue,Childrens Services,Children's & Education Services,Children Looked After,5105706732,06.05.2022,In-house Fostering,Boarding Out Allowances,285.93,REDACTED PERSONAL DATA
Revenue,Childrens Services,Children's & Education Services,Children Looked After,5105707537,13.05.2022,In-house Fostering,Boarding Out Allowances,370.6,REDACTED PERSONAL DATA
Revenue,Childrens Services,Children's & Education Services,Children Looked After,5105707537,13.05.2022,In-house Fostering,Boarding Out Allowances,285.93,REDACTED PERSONAL DATA
Revenue,Childrens Services,Children's & Education Services,Children Looked After,5105707537,13.05.2022,In-house Fostering,Boarding Out Allowances,285.93,REDACTED PERSONAL DATA
Revenue,Childrens Services,Children's & Education Services,Children Looked After,5105706732,06.05.2022,In-house Fostering,Boarding Out Allowances,370.6,REDACTED PERSONAL DATA
Revenue,Childrens Services,Children's & Education Services,Children Looked After,5105708134,20.05.2022,In-house Fostering,Boarding Out Allowances,370.6,REDACTED PERSONAL DATA
Revenue,Childrens Services,Children's & Education Services,Children Looked After,5105708134,20.05.2022,In-house Fostering,Boarding Out Allowances,285.93,REDACTED PERSONAL DATA
Revenue,Childrens Services,Children's & Education Services,Children Looked After,5105708134,20.05.2022,In-house Fostering,Boarding Out Allowances,285.93,REDACTED PERSONAL DATA
Revenue,Childrens Services,Children's & Education Services,Children Looked After,5105708929,27.05.2022,In-house Fostering,Boarding Out Allowances,370.6,REDACTED PERSONAL DATA
Revenue,Childrens Services,Children's & Education Services,Children Looked After,5105708929,27.05.2022,In-house Fostering,Boarding Out Allowances,285.93,REDACTED PERSONAL DATA
Revenue,Childrens Services,Children's & Education Services,Children Looked After,5105708929,27.05.2022,In-house Fostering,Boarding Out Allowances,285.93,REDACTED PERSONAL DATA
Revenue,Childrens Services,Children's & Education Services,Children Looked After,5105708145,20.05.2022,Special Guardianship Order Costs,Support Children,213.3,REDACTED PERSONAL DATA
Revenue,Childrens Services,Children's & Education Services,Children Looked After,5105708940,27.05.2022,Special Guardianship Order Costs,Support Children,213.3,REDACTED PERSONAL DATA
Revenue,Childrens Services,Children's & Education Services,Children Looked After,5105707548,13.05.2022,Special Guardianship Order Costs,Support Children,213.3,REDACTED PERSONAL DATA
Revenue,Childrens Services,Children's & Education Services,Children Looked After,5105706743,06.05.2022,Special Guardianship Order Costs,Support Children,213.3,REDACTED PERSONAL DATA
Revenue,Childrens Services,Children's & Education Services,Children Looked After,5105706697,06.05.2022,In-house Fostering,Boarding Out Allowances,202.41,REDACTED PERSONAL DATA
Revenue,Childrens Services,Children's & Education Services,Children Looked After,5105707502,13.05.2022,In-house Fostering,Boarding Out Allowances,202.41,REDACTED PERSONAL DATA
Revenue,Childrens Services,Children's & Education Services,Children Looked After,5105708895,27.05.2022,In-house Fostering,Boarding Out Allowances,202.41,REDACTED PERSONAL DATA
Revenue,Childrens Services,Children's & Education Services,Children Looked After,5105708099,20.05.2022,In-house Fostering,Boarding Out Allowances,202.41,REDACTED PERSONAL DATA
Revenue,Childrens Services,Children's & Education Services,Children Looked After,5105706703,06.05.2022,In-house Fostering,Boarding Out Allowances,318.67,REDACTED PERSONAL DATA
Revenue,Childrens Services,Children's & Education Services,Children Looked After,5105707508,13.05.2022,In-house Fostering,Boarding Out Allowances,318.67,REDACTED PERSONAL DATA
Revenue,Childrens Services,Children's & Education Services,Children Looked After,5105708901,27.05.2022,In-house Fostering,Boarding Out Allowances,318.67,REDACTED PERSONAL DATA
Revenue,Childrens Services,Children's & Education Services,Children Looked After,5105708105,20.05.2022,In-house Fostering,Boarding Out Allowances,318.67,REDACTED PERSONAL DATA
Revenue,Childrens Services,Children's & Education Services,Children Looked After,5105707498,13.05.2022,Leaving Care Costs,Support Children,320.85,REDACTED PERSONAL DATA
Revenue,Childrens Services,Children's & Education Services,Children Looked After,5105708095,20.05.2022,Leaving Care Costs,Support Children,320.85,REDACTED PERSONAL DATA
Revenue,Childrens Services,Children's & Education Services,Children Looked After,5105706693,06.05.2022,Leaving Care Costs,Support Children,320.85,REDACTED PERSONAL DATA
Revenue,Childrens Services,Children's & Education Services,Children Looked After,5105708891,27.05.2022,Leaving Care Costs,Support Children,320.85,REDACTED PERSONAL DATA
Revenue,Childrens Services,Children's & Education Services,Children Looked After,5105706707,06.05.2022,Adoption Costs,Support Children,207.13,REDACTED PERSONAL DATA
Revenue,Childrens Services,Children's & Education Services,Children Looked After,5105708109,20.05.2022,Adoption Costs,Support Children,207.13,REDACTED PERSONAL DATA
Revenue,Childrens Services,Children's & Education Services,Children Looked After,5105707512,13.05.2022,Adoption Costs,Support Children,207.13,REDACTED PERSONAL DATA
Revenue,Childrens Services,Children's & Education Services,Children Looked After,5105708905,27.05.2022,Adoption Costs,Support Children,207.13,REDACTED PERSONAL DATA
Revenue,Childrens Services,Children's & Education Services,Support Services,5105708783,25.05.2022,Learning & Development Running Costs,Gas,789.84,CALOR GAS LIMITED
Revenue,Childrens Services,Children's & Education Services,Support Services,5105707224,13.05.2022,Learning & Development Running Costs,Gas,14.71,CALOR GAS LIMITED
Revenue,Neighbourhoods,Cultural and Related Services,Open Spaces,5105707225,11.05.2022,Rights of Way Operations,Gas,14.71,CALOR GAS LIMITED
Revenue,Childrens Services,Children's & Education Services,Children Looked After,5105708705,25.05.2022,Purchased Residential,Charges from Independent Providers,"6,971.69",CAMBIAN CHILDCARE LTD
Revenue,Childrens Services,Children's & Education Services,Children Looked After,5105708787,25.05.2022,Purchased Residential,Charges from Independent Providers,"-6,971.69",CAMBIAN CHILDCARE LTD
Revenue,Childrens Services,Children's & Education Services,Children Looked After,5105707952,18.05.2022,Purchased Residential,Charges from Independent Providers,"11,542.88",CAMBIAN CHILDCARE LTD
Revenue,Childrens Services,Children's & Education Services,Children Looked After,5105705769,18.05.2022,Purchased Residential,Charges from Independent Providers,"-9,028.64",CAMBIAN CHILDCARE LTD
Revenue,Childrens Services,Children's & Education Services,Children Looked After,5105709164,27.05.2022,Purchased Residential,Charges from Independent Providers,"3,428.70",CAMBIAN CHILDCARE LTD
Revenue,Childrens Services,Children's & Education Services,Children Looked After,5105709165,27.05.2022,Purchased Residential,Charges from Independent Providers,"3,542.99",CAMBIAN CHILDCARE LTD
Revenue,Childrens Services,Children's & Education Services,Children Looked After,5105707039,07.05.2022,Purchased Residential,Charges from Independent Providers,"22,364.29",CAMBIAN CHILDCARE LTD
Revenue,Childrens Services,Children's & Education Services,Children Looked After,5105707040,18.05.2022,Purchased Residential,Charges from Independent Providers,"20,592.99",CAMBIAN CHILDCARE LTD
Revenue,Childrens Services,Children's & Education Services,Children Looked After,5105707041,07.05.2022,Purchased Residential,Charges from Independent Providers,"-22,364.29",CAMBIAN CHILDCARE LTD
Revenue,Childrens Services,Children's & Education Services,Children Looked After,5105707042,18.05.2022,Purchased Residential,Charges from Independent Providers,"22,364.29",CAMBIAN CHILDCARE LTD
Revenue,Childrens Services,Children's & Education Services,Children Looked After,5105707043,18.05.2022,Purchased Residential,Charges from Independent Providers,"20,150.00",CAMBIAN CHILDCARE LTD
Revenue,Neighbourhoods,Highways and Transport Services,"Airports, Harbours & Toll Facilities",5105708483,25.05.2022,Ferry Operation,Operational Equipment,36,CAMBRIDGE SENSOTEC LTD
Revenue,Neighbourhoods,Highways and Transport Services,"Airports, Harbours & Toll Facilities",5105708483,25.05.2022,Ferry Operation,Operational Equipment,632,CAMBRIDGE SENSOTEC LTD
Revenue,Neighbourhoods,Highways and Transport Services,"Airports, Harbours & Toll Facilities",5105709345,27.05.2022,Ferry Operation,Operational Equipment,15,CAPCOM LAND SEA & AIR COMMUN.LTD
Revenue,Neighbourhoods,Highways and Transport Services,"Airports, Harbours & Toll Facilities",5105709345,27.05.2022,Ferry Operation,Operational Equipment,620,CAPCOM LAND SEA & AIR COMMUN.LTD
Revenue,Neighbourhoods,Highways and Transport Services,"Airports, Harbours & Toll Facilities",5105707776,18.05.2022,Ferry Operation,Operational Equipment,140,CAPCOM LAND SEA & AIR COMMUN.LTD
Revenue,Resources,Central Services,Central Services to the Public,5105707239,13.05.2022,Internal Enforcement Team,Professional Services,"3,135.00",CAPITA BUSINESS SERVICES LTD
Capital,Resources,Capital,Capital,5105709378,27.05.2022,General ICT/Telephony,External Design and Supervision Fees,"5,225.00",CAPITA BUSINESS SERVICES
Revenue,Resources,Central Services,Support Services,5105709520,30.05.2022,ICT Contracts,Computer Maintenance,"22,649.15",CAPITA BUSINESS SERVICES LTD
Revenue,Adult Services,Adult Social Care,Assistive Equipment & Technology,5105706527,04.05.2022,Wightcare,Operational Equipment,636,CARE CHOICES LTD
Revenue,Childrens Services,Children's & Education Services,Family Support Services,5105707339,18.05.2022,S17 Disabled Children,Support Children,751.75,CARE CONNECT IOW CIC
